Workbook

Sheet Assessment Details
B1: =IF(AD_Mandatory_fields_text=AIS_statement09,AIS_statement29,"") -> Note: If you are starting a new pre-assessment please ensure you are using the latest template version of the BREEAM International 2013 Pre-Assessment tool and not a version used for an existing/previous pre-assessment.
B2: =IF(OR(projecttype=Z214,projecttype=""),"BREEAM International 2013 New Construction Pre-Assessment Estimator: Assessment Details","BREEAM International Bespoke 2013 New Construction Pre-Assessment Estimator: Assessment Details") -> BREEAM International 2013 New Construction Pre-Assessment Estimator: Assessment Details
B3: =IF(AD_Mandatory_fields_check>0,AIS_statement09,"") -> The fields below marked with a * are mandatory and must be completed/defined prior to beginning the pre-assessment to ensure an accurate indicative score and BREEAM rating. Note: without this information the pre-assessment tool cannot determine the applicable BREEAM issues and number of credits and data entry will not be possible for the building assessment.
B5: General information | Q5: =IF(projecttype=Z215,"BESPOKE","") -> 
H7: BRE Assessment reference no. | R7: *
H9: Client name | R9: *
H11: Building end user/occupier
H13: Assessor name | R13: *
H15: Assessor organisation | R15: *
B16: Pre assessment scoring option
B18: How would you like to estimate the BREEAM score? | J18: Please select: | R18: *
B20: Building details
H22: Building name | R22: *
H24: Building address | R24: *
H32: N/A in International Tool | R32: *
H34: Post code
H36: Country | R36: *
H38: Building type (main description) | R38: *
H40: Building type (sub-group) | R40: *
H42: Building floor area (GIA) m2 | R42: *
H44: Building floor area (NIA) m2 | R44: *
H46: BREEAM scheme | J46: New Construction
H48: BREEAM version | J48: =AD_BREEAM_version -> 2013 (SD5075)
H50: BREEAM International New Construction Technical Manual issue number | R50: *
H52: Project type | R52: *
H54: Assessment stage | J54: =ADAS01 -> Pre-assessment
H56: Location type
H58: Climatic zone
H60: Building services - heating system type | R60: *
H62: Building services - cooling system type | R62: *
H64: Building services - domestic hot water system type
H66: Building service - controls
H68: If applicable, does this industrial building have a heated or cooled operational area? | R68: =IF(ADBT0=ADBT2,"*","") -> 
H70: If applicable, will this healthcare building house inpatients?
H72: If applicable, does this industrial building have an office area? | R72: =IF(ADBT0=ADBT2,"*","") -> 
H74: Legislation prohibits the use of ozone depleting substances | R74: *
H76: Building contains multiple tenants/departments/function areas | R76: *
H78: Commercial/industrial refrigeration and cold storage systems | R78: *
B80: What is the building type category (for the purpose of the Transport section)? | R80: *
B82: Does the assessed development contain external site access areas (e.g. vehicle access and parking areas)? | R82: *
H84: Internal or external planting and/or soft landscaping | R84: *
B86: Are there any risks associated with natural hazards (other than flooding) for the assessed development? | R86: *
H88: Vehicle Wash System | R88: *
H90: Building user transportation systems (lifts and/or escalators) | R90: *
H92: Laboratory function/area and size category | R92: *
H94: Laboratory containment level | R94: *
H96: Fume cupboard(s) and/or other containment devices | R96: *
H98: If applicable, will this healthcare building house inpatients?
H100: If applicable, does this building contain areas requiring SAP assessment? | J100: Option not applicable to building type | R100: =IF(OR(ADBT0=ADBT8,ADBT0=ADBT9),"*","") -> 
H102: If SAP used, what proportion of the building's total floor area (GIA) does it apply to? | J102: Option not applicable to building type | R102: =IF(AND(AD_MultiRes_option01=AD_Yes,ADBT0=ADBT8),"*","") -> 
B103: Have the approved section weightings for the country been entered into the "Summary of Building Performance" sheet? | R103: *
B105: Project team details
H107: Developer
H109: Principal contractor
H111: Architect
H113: Project management
H115: Building services
H117: BREEAM Accredited Professional
H119: Other project team member 1
H121: Other project team member 2
H123: Other project team member 3
H125: Other project team member 4
B126: BREEAM assessor declaration of assessment accuracy and quality
B128: =CONCATENATE(AD_Statement04,AD_assessor,AD_statement05,AD_Assessor_org,AD_statement06) -> I, , a qualified BREEAM assessor working on behalf of confirm that the content of this report is to the best of my knowledge a true and accurate reflection of the performance of the above named building, as measured against the assessment criteria and reporting requirements of the BREEAM Scheme Document (SD5075). Furthermore, I confirm that this assessment and the information on which it is based has been checked and verified in accordance with BRE Global Ltd's UKAS accredited BREEAM operating procedures for BREEAM assessments and assessors, as described in the technical scheme document (SD5075) and associated BREEAM operational documents. | S128: Note: The tool will populate the statement opposite with the BREEAM assessor and organisation name once it has been entered above in the General Information section.
C130: BREEAM Assessor Signature | J130: Date
B131: Which precipitation zone will the building be located in? | R131: *
Z137: Please select:
Z138: Simple approach - Manually enter the number of credits achieved for each BREEAM issue (see ‘Simple Scoring Approach’ tab)
Z139: Detailed approach - Answer questions for each BREEAM issue to estimate which credits will be achieved (see 'Detailed Scoring Approach' tab)
Y143: Building & Project details data
Z144: Note: If you are starting a new pre-assessment please ensure you are using the latest template version of the BREEAM International 2013 Pre-Assessment tool and not a version used for an existing/previous pre-assessment.
Z145: Note: If laboratory area/function not present, then please select the option "No Laboratory" for the "laboratory size category" or change the laboratory area/function option to "Yes".
Z146: The fields below marked with a * are mandatory and must be completed/defined prior to beginning the pre-assessment to ensure an accurate indicative score and BREEAM rating. Note: without this information the pre-assessment tool cannot determine the applicable BREEAM issues and number of credits and data entry will not be possible for the building assessment.
Z147: Note: Some multi-residential buildings will require areas to be assessed using SAP, where they have self-contained dwellings which are classified under Approved Document L1A Conservation of fuel and power (New dwellings)) of the Building Regulations.
Z148: I,
Z149: , a qualified BREEAM assessor working on behalf of
Z150: confirm that the content of this report is to the best of my knowledge a true and accurate reflection of the performance of the above named building, as measured against the assessment criteria and reporting requirements of the BREEAM Scheme Document (SD5075). Furthermore, I confirm that this assessment and the information on which it is based has been checked and verified in accordance with BRE Global Ltd's UKAS accredited BREEAM operating procedures for BREEAM assessments and assessors, as described in the technical scheme document (SD5075) and associated BREEAM operational documents.
AB152: Pre-assessment | AD152: Office
AB153: Post Construction (Final, as-built) | AD153: Industrial
AD154: Retail
AB155: New Construction (fully fitted) | AD155: Residential
AB156: New Construction (shell only) | AD156: Bespoke
AB157: Major Refurbishment (fully fitted) | AD157: Bespoke - Residential and Non-Residential
Z158: Wet system | AB158: Major Refurbishment (shell only)
Z161: Air system
B162: Disclaimer | Z162: Other type of heating system
B163: This Pre-Assessment Estimator is the property of BRE Global Ltd and is made publicly available for information purposes only. Its use for testing, assessment, certification or approval is not permitted. The results presented are indicative only of a building's potential performance which is based on a simplified, informal assessment and unverified commitments. The results do not represent a formal certified BREEAM assessment or rating and must not be communicated as such. BRE Global Ltd accepts no responsibility for any actions taken as a result of information presented or interpreted by the BREEAM Pre-Assessment Estimator. To carry out a formal BREEAM assessment contact a licensed BREEAM Assessor organisation. A list of licensed BREEAM Assessors is available from the Green Book Live website: www.greenbooklive.com | Z163: None | AB163: 2013 (SD5075)
B165: Copyright | Z165: Air-conditioning | AB165: SD5075 Issue 0.0
B166: Copyright exists on the BREEAM logo and this may not be used or reproduced for any purpose without the prior written consent of the BRE Global Ltd. | Z166: Comfort cooling
Z167: Other type of cooling
B168: The BREEAM name and logo are registered trademarks of the Building Research Establishment Limited. | Z168: None
AD169: Industrial - Process / manufacturing unit
O170: Version | Q170: =TVC_current_version -> 1 | Z170: Centralised supply and distribution | AB170: Yes | AD170: Industrial - Vehicle servicing unit
Z171: Point of use | AB171: Yes | AD171: Industrial - Warehouse storage / distribution
Z172: Other | AB172: Yes | AD172: Office - General office building
Z173: None | AB173: Yes | AD173: Office - Office with research and development areas
AB174: =IF(ADBN="",AD_no,AD_Yes) -> No | AD174: Retail - Café
Z175: Standard controls (time/temperature) | AB175: Yes | AD175: Retail - Drinking establishment
Z176: Other | AB176: Yes | AD176: Retail - Food takeaway
Z177: None | AB177: =IF(AD_Country="",AD_no,AD_Yes) -> No | AD177: Retail - Restaurant
AB178: =IF(OR(ADBT0=ADBT1,ADBT0=ADBT2,ADBT0=ADBT3,ADBT0=ADBT8,ADBT0=ADBT9,ADBT0=ADBT12,ADBT0=ADBT13),AD_Yes,AD_no) -> No | AD178: Retail - Retail park/warehouse
Z179: Yes | AB179: =IF(OR(OR(ADBT_sub01=ADBT_sub02,ADBT_sub01=ADBT_sub02,ADBT_sub01=ADBT_sub03,ADBT_sub01=ADBT_sub04,ADBT_sub01=ADBT_sub05,ADBT_sub01=ADBT_sub06,ADBT_sub01=ADBT_sub07,ADBT_sub01=ADBT_sub08,ADBT_sub01=ADBT_sub09,ADBT_sub01=ADBT_sub10,ADBT_sub01=ADBT_sub11,ADBT_sub01=ADBT_sub12,ADBT_sub01=ADBT_sub13,ADBT_sub01=ADBT_sub14,ADBT_sub01=ADBT_sub15,ADBT_sub01=ADBT_sub16,ADBT_sub01=ADBT_sub17,,ADBT_sub01=ADBT_sub20,)),AIS_Yes,AIS_No) -> No | AD179: Retail - Service provider 'over the counter'
Z180: No | AB180: Yes | AD180: Retail - Shop
Z181: Option not applicable to building type | AB181: Yes | AD181: Retail - Shopping centre
AB182: Yes | AD182: Retail - Showroom
Z183: Laboratory present: <10% of building's Gross Internal Floor Area | AB183: =IF(OR(ADPT=ADPT01,ADPT=ADPT02,ADPT=ADPT03,ADPT=ADPT04),AD_Yes,AD_no) -> No | AD183: Residential - Individual Dwellings
Z184: Laboratory present: ≥10% - <25% of building's Gross Internal Floor Area | AB184: Yes | AD184: Residential - Apartment Blocks
Z185: Laboratory present: ≥25% of building's Gross Internal Floor Area | AB185: Yes | AD185: Bespoke
Z186: No laboratory | AB186: Yes
AB187: =IF(OR(AD_Ozoneleg=AD_Yes,AD_Ozoneleg=AD_no),AD_Yes,AD_no) -> No
Z188: Cat Level 1 only | AB188: =IF(OR(AD_Multitenant=AD_Yes,AD_Multitenant=AD_no),AD_Yes,AD_no) -> No
Z189: Cat Level 2 | AB189: =IF(OR(AD_refrig=AD_Yes,AD_refrig=AD_no),AD_Yes,AD_no) -> No
Z190: Cat Level 3 | AB190: =IF(OR(AD_Landscape=AD_Yes,AD_Landscape=AD_no),AD_Yes,AD_no) -> No
Z191: No laboratory | AB191: =IF(OR(AD_Trans=AD_Yes,AD_Trans=AD_no),AD_Yes,AD_no) -> No
AB192: =IF(OR(AD_Labsize=AD_labsize04,AD_Labsize=AD_Labsize01,AD_Labsize=AD_Labsize02,AD_Labsize=AD_Labsize03),AD_Yes,AD_no) -> No
Z193: New Construction | AB193: =IF(OR(AD_catlevel=AD_catlevel01,AD_catlevel=AD_catlevel02,AD_catlevel=AD_catlevel03,AD_catlevel=AD_nolab),AD_Yes,AD_no) -> No
AB194: =IF(OR(ADFume_option01=AD_Yes,ADFume_option01=AD_no),AD_Yes,AD_no) -> No
Z195: Large city >1m population | AB195: =IF(OR(AD_Vehiclewash=AD_Yes,AD_Vehiclewash=AD_no),AD_Yes,AD_no) -> No
Z196: Metropolitan built-up area (>250,000 population) | AB196: Yes
Z197: Large urban (>250,000 population) | AB197: =IF(ADBT0=ADBT2,IF(OR(ADIND_option01=AD_Yes,ADIND_option01=AD_no,ADIND_option01=AD_option_na),AD_Yes,AD_no),AD_Yes) -> Yes
Z198: Medium urban (>25,000 population) | AB198: =IF(ADBT0=ADBT2,IF(OR(ADIND_option02=AD_Yes,ADIND_option02=AD_no,ADIND_option02=AD_option_na),AD_Yes,AD_no),AD_Yes) -> Yes
Z199: Small/medium urban (>10,000 population) | AB199: =IF(AD_Weightings="",AIS_No,AIS_Yes) -> No | AD199: Yes
Z200: Small urban (>3000 population) | AB200: =IF(OR(Score_option=PSc0,Score_option=""),"No","Yes") -> No | AD200: Default weightings used for pre-assessment
Z201: Rural (<3000 population) | AB201: =IF(OR(AD_p_zone=AD_p_zone0,AD_p_zone=""),"No","Yes") -> No
AB202: =IF(OR(AD_tra01type="",AD_tra01type="Please select:"),AIS_No,AIS_Yes) -> No
AB203: =IF(S2="remove mandatory filter",0,COUNTIF(AD_mandatory_fields,AD_no)) -> 18
Z204: =IF(ADBT0=ADBT2,AD_Yes,AD_option_na) -> Option not applicable to building type
Z205: =IF(ADBT0=ADBT2,AD_no,"") ->  | AB205: =IF(AD_MultiRes_option01=AD_Yes,0%,"Option not applicable to building type") -> Option not applicable to building type | AD205: Please select:
AB206: =IF(AD_MultiRes_option01=AD_Yes,AB205+1%,"") ->  | AD206: Precipitation zone 1
Z207: =IF(ADBT0=ADBT5,AD_Yes,AD_option_na) ->  | AB207: =IF(AD_MultiRes_option01=AD_Yes,#REF!+1%,"") ->  | AD207: Precipitation zone 2
Z208: =IF(ADBT0=ADBT5,AD_no,"") ->  | AB208: =IF(AD_MultiRes_option01=AD_Yes,AB207+1%,"") ->  | AD208: Precipitation zone 3
Z210: =IF(OR(ADBT0=ADBT8,ADBT0=ADBT9),AD_Yes,AD_option_na) -> Option not applicable to building type
Z211: =IF(OR(ADBT0=ADBT8,ADBT0=ADBT9),AD_no,"") -> 
Z213: Project type:
Z214: Standard assessment
Z215: Bespoke
Z216: Standard assessment
Z219: Criteria
Z220: Amended Criteria
Z223: A. Equatorial
Z224: B. Arid
Z225: C. Warm Temperate
Z226: D. Snow
Z227: E. Polar
Z230: Afghanistan
Z231: Albania
Z232: Algeria
Z233: Angola
Z234: Antigua & Barbuda
Z235: Argentina
Z236: Armenia
Z237: Australia | AB237: =IF(AD_MultiRes_option01=AD_Yes,AB236+1%,"") -> 
Z238: Austria
Z239: Azerbaijan
Z240: Bahamas
Z241: Bahrain
Z242: Bangladesh
Z243: Barbados
Z244: Belarus
Z245: Belgium
Z246: Belize
Z247: Benin
Z248: Bhutan
Z249: Bolivia
Z250: Bosnia & Herzegovina
Z251: Botswana
Z252: Brazil
Z253: Brunei
Z254: Bulgaria
Z255: Burkina Faso
Z256: Burundi
Z257: Cambodia
Z258: Cameroon
Z259: Canada
Z260: Cape Verde
Z261: Central African Republic
Z262: Chad
Z263: Chile
Z264: China
Z265: Colombia
Z266: Comoros
Z267: Congo
Z268: Congo, Dem. Republic
Z269: Cook Islands | AB269: =IF(AD_MultiRes_option01=AD_Yes,AB268+1%,"") -> 
Z270: Costa Rica
Z271: Côte d'Ivoire
Z272: Croatia
Z273: Cuba
Z274: Cyprus
Z275: Czech Republic
Z276: Denmark
Z277: Djibouti
Z278: Dominica
Z279: Dominican Republic
Z280: Ecuador
Z281: Egypt
Z282: El Salvador
Z283: Equatorial Guinea
Z284: Eritrea
Z285: Estonia
... 129 more rows

Sheet Simple Scoring Approach
B2: =IF(OR(projecttype='Assessment Details'!Z214,projecttype=""),"BREEAM International 2013 New Construction Pre-Assessment Estimator: Summary of Building Performance","BREEAM International Bespoke 2013 New Construction Pre-Assessment Estimator: Summary of Building Performance") -> BREEAM International 2013 New Construction Pre-Assessment Estimator: Summary of Building Performance
B3: =IF(AD_Mandatory_fields_text=AIS_statement09,"Warning: All Mandatory fields in the assessment details worksheet must be completed/defined to reveal the BREEAM rating and Summary of building performance.","") -> Warning: All Mandatory fields in the assessment details worksheet must be completed/defined to reveal the BREEAM rating and Summary of building performance.
B4: Overall Building Performance
D6: Building name | F6: =IF(ISBLANK(ADBN),"",ADBN) -> 
D8: Indicative BREEAM rating | F8: =BP_BREEAMRating ->  | H8: =IF(ISERROR(IF(AIS_MinStand_rating_check=AIS_No,"Note: the BREEAM rating has been pegged back to the minimum standards level achieved","")),"",IF(AIS_MinStand_rating_check=AIS_No,"Note: the BREEAM rating has been limited to the minimum standards level achieved","")) -> 
D10: Indicative total score | F10: =BP_OverallScore -> 
D12: Min. standards level achieved | F12: =BP_MinStandards -> 
B14: Building Performance by Key Environmental Performance Indicator | P14: =SUM(#REF!) ->  | R14: =SUM(#REF!) -> 
B15: Energy (consumption/production) | H15: Life cycle stage | J15: Measurement | L15: Intensity | N15: Units | P15: Total | R15: Units
F17: Building operation[1] | H17: Use | J17: Modelled | L17: =IF(Ene01_80=AIS_statement91,IF(OR(Ene01_05="",Ene01_47=""),AIS_units22,Ene01_05+Ene01_47),IF(Ene01_80=AIS_statement90,IF(Ene01_05="",AIS_units22,Ene01_05))) -> INA | N17: kWh/m2/yr | P17: =IF(Ene01_80=AIS_statement91,IF(OR(Ene01_05="",Ene01_47=""),AIS_units22,BP_KPI01*AD_GIA),IF(Ene01_80=AIS_statement90,IF(Ene01_05="",AIS_units22,BP_KPI01*AD_GIA))) -> INA | R17: kWh/yr
F19: Energy production[2] | H19: Use | J19: Modelled | L19: =IF(ISERROR(BP_KPI08/AD_GIA),AIS_units22,BP_KPI08/AD_GIA) -> INA | N19: kWh/m2/yr | P19: =AIS_units22 -> INA | R19: kWh/yr
D21: Construction process[3] | H21: =IF(ADAS0=ADAS01,AIS_units22,AIS_construction) -> INA | J21: =IF(ADAS0=ADAS01,AIS_units22,AIS_measured) -> INA | L21: =IF(OR(ADAS0=ADAS01,Man03_01=AIS_No),AIS_units22,Man03_KPI02) -> INA | N21: =IF(ADAS0=ADAS01,AIS_units22,AIS_units02) -> INA | P21: =IF(OR(ADAS0=ADAS01,Man03_01=AIS_No),AIS_units22,Man03_kPI01) -> INA | R21: =IF(ADAS0=ADAS01,AIS_units22,AIS_units01) -> INA
F23: Transport[4] | H23: =IF(ADAS0=ADAS01,AIS_units22,AIS_construction) -> INA | J23: =IF(ADAS0=ADAS01,AIS_units22,AIS_measured) -> INA | L23: =IF(ISERROR(IF(OR(ADAS0=ADAS01,Man03_03=AIS_No),AIS_units22,Man03_KPI09+Man03_KPI14)),AIS_units22,IF(OR(ADAS0=ADAS01,Man03_03=AIS_No),AIS_units22,Man03_KPI09+Man03_KPI14) ) -> INA | N23: =IF(ADAS0=ADAS01,AIS_units22,AIS_units10) -> INA | P23: =IF(OR(ADAS0=ADAS01,Man03_03=AIS_No,AND(Man03_KPI08="",Man03_KPI13="")),AIS_units22,Man03_KPI08+Man03_KPI13) -> INA | R23: =IF(ADAS0=ADAS01,AIS_units22,AIS_units08) -> INA
B25: Greenhouse Gas Emissions
F27: Building operation[1] | H27: Use | J27: Modelled | L27: =IF(Ene01_80=AIS_statement91,IF(OR(Ene01_07="",Ene01_49=""),AIS_units22,Ene01_07+Ene01_49),IF(Ene01_80=AIS_statement90,IF(Ene01_07="",AIS_units22,Ene01_07))) -> INA | N27: kgCO2eq/m2/yr | P27: =IF(Ene01_80=AIS_statement91,IF(OR(Ene01_07="",Ene01_49=""),AIS_units22,BP_KPI09*AD_GIA),IF(Ene01_80=AIS_statement90,IF(Ene01_07="",AIS_units22,BP_KPI09*AD_GIA))) -> INA | R27: kgCO2eq/yr
F29: Embodied[5] | H29: Cradle-to-grave | J29: Measured | L29: =IF(Mat01_KPI01=AIS_Missing_data,AIS_units22,Mat01_KPI02) -> INA | N29: kgCO2eq/m2 | P29: =IF(Mat01_KPI01=AIS_Missing_data,AIS_units22,Mat01_KPI01) -> INA | R29: kgCO2eq
P31: Proportion of applicable main building elements that data reported covers | R31: =IF(Mat01_KPI01=AIS_Missing_data,AIS_units22,Mat01_KPI03) -> INA
F33: Construction process[3] | H33: =IF(ADAS0=ADAS01,AIS_units22,AIS_construction) -> INA | J33: =IF(ADAS0=ADAS01,AIS_units22,AIS_measured) -> INA | L33: =IF(OR(ADAS0=ADAS01,Man03_01=AIS_No),AIS_units22,Man03_KPI04) -> INA | N33: =IF(ADAS0=ADAS01,AIS_units22,AIS_units03) -> INA | P33: =IF(OR(ADAS0=ADAS01,Man03_01=AIS_No),AIS_units22,Man03_KPI03) -> INA | R33: =IF(ADAS0=ADAS01,AIS_units22,AIS_units05) -> INA
F35: Transport[4] | H35: =IF(ADAS0=ADAS01,AIS_units22,AIS_construction) -> INA | J35: =IF(ADAS0=ADAS01,AIS_units22,AIS_measured) -> INA | L35: =IF(ISERROR(IF(OR(ADAS0=ADAS01,Man03_03=AIS_No),AIS_units22,Man03_KPI11+Man03_KPI16)),AIS_units22,IF(OR(ADAS0=ADAS01,Man03_03=AIS_No),AIS_units22,Man03_KPI11+Man03_KPI16)) -> INA | N35: =IF(ADAS0=ADAS01,AIS_units22,AIS_units04) -> INA | P35: =IF(OR(ADAS0=ADAS01,Man03_03=AIS_No,AND(Man03_KPI10="",Man03_KPI15="")),AIS_units22,Man03_KPI10+Man03_KPI15) -> INA | R35: =IF(ADAS0=ADAS01,AIS_units22,AIS_units05) -> INA
F37: Direct GHG emissions - Refrigerants[5] | H37: Use | J37: Modelled | L37: =IF(Pol01_02=AIS_No,0,IF(Pol01_07="",AIS_units22,Pol01_07)) -> INA | N37: KgCO2eq/kWcoolth | P37: =IF(ISERROR(IF(Pol01_02=AIS_No,0,IF(Pol01_07="",AIS_units22,BP_KPI17*Pol01_21))),AIS_units22,IF(Pol01_02=AIS_No,0,IF(Pol01_07="",AIS_units22,BP_KPI17*Pol01_21))) -> INA | R37: KgCO2eq
B38: Emissions to outdoor air, soil and water
F40: Nitrogen Oxides (NOx)[6] | H40: Use | J40: Measured | L40: =IF(OR(Pol02_20="",AIS_units22),AIS_units22,SUM(IF(OR(Pol02_29="INA",Pol02_29="N/A"),0,Pol02_29))+(IF(OR(Pol02_21="INA",Pol02_21="N/A"),0,Pol02_21))+(IF(OR(Pol02_20="INA",Pol02_20="N/A",Pol02_20="HIB"),0,Pol02_20))) -> INA | N40: mg/kWh | P40: =IF(OR(Pol01_KPI02="",Pol01_KPI02=AIS_units22),AIS_units22,(Pol01_KPI02*AD_GIA)*(Pol02_20+Pol02_29)/1000000) ->  | R40: kg/yr
B41: Use of freshwater resource
F43: Building operation[7] | H43: =IF(Wat01_01=AIS_option09,AIS_use,AIS_units22) -> INA | J43: =IF(Wat01_01=AIS_option09,AIS_Modelled,AIS_units22) -> INA | L43: =IF(OR(Wat01_KPI01="",Wat01_KPI01=AIS_units22),AIS_units22,IF(Wat01_01=AIS_option09,Wat01_KPI01,AIS_units22)) -> INA | N43: =IF(Wat01_01=AIS_option09,AIS_units14,AIS_units22) -> INA | P43: =IF(OR(Wat01_KPI02="",Wat01_KPI01="",Wat01_KPI02=AIS_units22,Wat01_KPI01=AIS_units22),AIS_units22,IF(Wat01_01=AIS_option09,Wat01_KPI02*Wat01_KPI01,AIS_units22)) -> INA | R43: =IF(Wat01_01=AIS_option09,AIS_units26,AIS_units22) -> INA
F45: Construction process[8] | H45: =IF(ADAS0=ADAS01,AIS_units22,AIS_use) -> INA | J45: =IF(ADAS0=ADAS01,AIS_units22,AIS_measured) -> INA | L45: =IF(OR(ADAS0=ADAS01,Man03_02=AIS_No),AIS_units22,Man03_KPI06) -> INA | N45: =IF(ADAS0=ADAS01,AIS_units22,AIS_units06) -> INA | P45: =IF(OR(ADAS0=ADAS01,Man03_02=AIS_No),AIS_units22,Man03_KPI05) -> INA | R45: =IF(ADAS0=ADAS01,AIS_units22,AIS_units07) -> INA
B46: Construction waste and recovery
F48: Construction waste generated[9] | H48: =AIS_construction -> Construction | J48: =IF(ADAS0=ADAS01,AIS_target,AIS_measured) -> Target | L48: =Wst01_generationKPI -> 1 | N48: =Wst01_KPI1units -> m3/100m2 | P48: =IF(OR(Wst01_01=AIS_No,Wst01_06=AIS_No),AIS_units22,IF(OR(Wst01_02="",Wst01_02=AIS_units22),AIS_units22,Wst01_03)) -> INA | R48: =IF(Wst01_04=AIS_units18,AIS_units20,AIS_units21) -> tonnes
F50: Construction waste diverted from landfill[10] | H50: =AIS_construction -> Construction | J50: =IF(ADAS0=ADAS01,AIS_target,AIS_measured) -> Target | L50: =Wst01_KPI2 -> 0 | N50: =Wst01_KPI2units -> m3/100m2 | P50: =IF(OR(Wst01_01=AIS_No,Wst01_06=AIS_No),AIS_units22,IF(OR(Wst01_05="",Wst01_05=AIS_units22),AIS_units22,Wst01_06)) -> INA | R50: =IF(Wst01_04=AIS_units18,AIS_units20,AIS_units21) -> tonnes
F52: Demolition waste diverted from landfill[11] | H52: =IF(Wst01_06=AIS_NA,"-",AIS_construction) -> Construction | J52: =IF(Wst01_06=AIS_NA,"-",IF(ADAS0=ADAS01,AIS_target,AIS_measured)) -> Target | L52: =IF(Wst01_06=AIS_NA,"-",IF(OR(Wst01_01=AIS_No,Wst01_06=AIS_No),AIS_units22,IF(OR(Wst01_07="",Wst01_07=AIS_units22),AIS_units22,Wst01_07))) -> INA | N52: =IF(Wst01_06=AIS_NA,"-",AIS_units12) -> % | P52: =IF(Wst01_06=AIS_NA,"-",IF(OR(Wst01_01=AIS_No,Wst01_06=AIS_No,ADAS0=ADAS01),AIS_units22,IF(OR(Wst01_29="",Wst01_29=AIS_units22),AIS_units22,Wst01_29))) -> INA | R52: =IF(Wst01_06=AIS_NA,"-",IF(AND(Wst01_06=AIS_No,Wst01_04=AIS_units18),AIS_units20,IF(AND(Wst01_06=AIS_No,Wst01_04=AIS_units21),AIS_units21,IF(ADAS0=ADAS01,AIS_units22,IF(Wst01_04=AIS_units18,AIS_units20,AIS_units21))))) -> INA
F54: Demolition waste to disposal[11] | H54: =IF(Wst01_06=AIS_NA,"-",AIS_construction) -> Construction | J54: =IF(Wst01_06=AIS_NA,"-",IF(ADAS0=ADAS01,AIS_target,AIS_measured)) -> Target | L54: =IF(Wst01_06=AIS_NA,"-",IF(OR(Wst01_01=AIS_No,Wst01_06=AIS_No),AIS_units22,IF(OR(Wst01_29="",Wst01_29=AIS_units22),AIS_units22,1-BP_KPI31))) -> INA | N54: =IF(Wst01_06=AIS_NA,"-",AIS_units12) -> % | P54: =IF(Wst01_06=AIS_NA,"-",IF(OR(Wst01_01=AIS_No,Wst01_06=AIS_No,ADAS0=ADAS01),AIS_units22,IF(OR(Wst01_29="",Wst01_29=AIS_units22),AIS_units22,Wst01_08))) -> INA | R54: =IF(Wst01_06=AIS_NA,"-",IF(AND(Wst01_06=AIS_No,Wst01_04=AIS_units18),AIS_units20,IF(AND(Wst01_06=AIS_No,Wst01_04=AIS_units21),AIS_units21,IF(ADAS0=ADAS01,AIS_units22,IF(Wst01_04=AIS_units18,AIS_units20,AIS_units21))))) -> INA
F56: Material for re-use[12] | H56: =AIS_construction -> Construction | J56: =IF(ADAS0=ADAS01,AIS_target,AIS_measured) -> Target | L56: =IF(OR(Wst01_01=AIS_No,Wst01_06=AIS_No),AIS_units22,IF(OR(Wst01_09="",Wst01_09=AIS_units22),AIS_units22,BP_KPI38/AD_GIA)) -> INA | N56: =IF(Wst01_04=AIS_units18,AIS_units16,AIS_units17) -> tonnes/100m2 | P56: =IF(OR(Wst01_01=AIS_No,Wst01_06=AIS_No),AIS_units22,IF(OR(Wst01_09="",Wst01_09=AIS_units22),AIS_units22,Wst01_09)) -> INA | R56: =IF(Wst01_04=AIS_units18,AIS_units20,AIS_units21) -> tonnes
F58: Material for recycling[12] | H58: =AIS_construction -> Construction | J58: =IF(ADAS0=ADAS01,AIS_target,AIS_measured) -> Target | L58: =IF(OR(Wst01_01=AIS_No,Wst01_06=AIS_No),AIS_units22,IF(OR(Wst01_10="",Wst01_10=AIS_units22),AIS_units22,BP_KPI40/AD_GIA)) -> INA | N58: =IF(Wst01_04=AIS_units18,AIS_units16,AIS_units17) -> tonnes/100m2 | P58: =IF(OR(Wst01_01=AIS_No,Wst01_06=AIS_No),AIS_units22,IF(OR(Wst01_10="",Wst01_10=AIS_units22),AIS_units22,Wst01_10)) -> INA | R58: =IF(Wst01_04=AIS_units18,AIS_units20,AIS_units21) -> tonnes
F60: Material for energy recovery[12] | H60: =AIS_construction -> Construction | J60: =IF(ADAS0=ADAS01,AIS_target,AIS_measured) -> Target | L60: =IF(OR(Wst01_01=AIS_No,Wst01_06=AIS_No),AIS_units22,IF(OR(Wst01_11="",Wst01_11=AIS_units22),AIS_units22,BP_KPI42/AD_GIA)) -> INA | N60: =IF(Wst01_04=AIS_units18,AIS_units16,AIS_units17) -> tonnes/100m2 | P60: =IF(OR(Wst01_01=AIS_No,Wst01_06=AIS_No),AIS_units22,IF(OR(Wst01_11="",Wst01_11=AIS_units22),AIS_units22,Wst01_11)) -> INA | R60: =IF(Wst01_04=AIS_units18,AIS_units20,AIS_units21) -> tonnes
F62: Hazardous waste to disposal[12] | H62: =AIS_construction -> Construction | J62: =IF(ADAS0=ADAS01,AIS_target,AIS_measured) -> Target | L62: =IF(OR(Wst01_01=AIS_No,Wst01_06=AIS_No),AIS_units22,IF(OR(Wst01_12="",Wst01_12=AIS_units22),AIS_units22,BP_KPI36/AD_GIA)) -> INA | N62: =IF(Wst01_04=AIS_units18,AIS_units16,AIS_units17) -> tonnes/100m2 | P62: =IF(OR(Wst01_01=AIS_No,Wst01_06=AIS_No),AIS_units22,IF(OR(Wst01_12="",Wst01_12=AIS_units22),AIS_units22,Wst01_12)) -> INA | R62: =IF(Wst01_04=AIS_units18,AIS_units20,AIS_units21) -> tonnes
B63: Sourcing of materials
F65: Materials responsibly sourced[11] | H65: Construction | J65: Measured | L65: =IF(Mat03_03=AIS_No,AIS_units22,Mat03_03) -> INA | N65: % | P65: - | R65: -
B66: Thermal comfort
F67: Predicted percentage dissatisfied (PPD)[12] | H67: Use | J67: Modelled | L67: =IF(OR(Hea03_12="",Hea03_12=AIS_units22),AIS_units22,Hea03_12) -> INA | N67: % | P67: INA | R67: INA
F69: Predicted mean vote (PMV)[12a] | H69: Use | J69: Modelled | L69: =IF(OR(Hea03_12a="",Hea03_12a=AIS_units22),AIS_units22,Hea03_12a) -> INA | N69: PMV | P69: INA | R69: INA
B70: Indoor Air Quality
F72: Formaldehyde concentration level[13] | H72: =IF(ADAS0=ADAS01,AIS_units22,AIS_use) -> INA | J72: =IF(ADAS0=ADAS01,AIS_units22,AIS_measured) -> INA | L72: =IF(ADAS0=ADAS01,"-",IF(Hea02_03=AIS_No,AIS_units22,IF(OR(Hea02_KPI01="",Hea02_KPI01=AIS_units22),AIS_units22,Hea02_KPI01))) -> - | N72: =IF(ADAS0=ADAS01,AIS_units22,AIS_units11) -> INA | P72: =AIS_units22 -> INA | R72: =AIS_units22 -> INA
F74: Total volatile organic compound concentration[13] | H74: =IF(ADAS0=ADAS01,AIS_units22,AIS_construction) -> INA | J74: =IF(ADAS0=ADAS01,AIS_units22,AIS_measured) -> INA | L74: =IF(ADAS0=ADAS01,AIS_units22,IF(Hea02_03=AIS_No,AIS_units22,IF(OR(Hea02_KPI02="",Hea02_KPI02=AIS_units22),AIS_units22,Hea02_KPI02))) -> INA | N74: =IF(ADAS0=ADAS01,AIS_units22,AIS_units11) -> INA | P74: =AIS_units22 -> INA | R74: =AIS_units22 -> INA
B76: Notes
B78: 1 | C78: Modelled using approved building energy software compliant with the BREEAM definition. Modelling includes building energy consumption resulting from the service energy within the building.
B79: 2 | C79: The reported impact includes technologies that produce energy (on-site and/or near-site) as defined by Directive 2009/28/EC of the European Parliament and of the Council of 23 April 2009 on the promotion of the use of energy from renewable sources and amending and subsequently repealing Directives 2001/77/EC and 2003/30/EC.
B80: 3 | C80: The reported impact includes energy consumption from construction plant, equipment and site accommodation. This KPI is not assessed/reported at the design stage of assessment/certification.
B81: 4 | C81: The reported impact covers transport of the construction materials that make-up the main building elements and ground works and landscaping materials (from the factory gate to the site) and construction waste (from the construction gate to waste disposal processing / recovery centre gate). Main building elements are defined in the BREEAM International New Construction Technical Guide (SD5075). This KPI is not assessed/reported at the design stage of assessment/certification.
B82: 5 | C82: The reported impact covers the construction materials that make-up the main building elements (over a 60 year study period). Main building elements are defined in the BREEAM 2011 New Construction Technical Guide (SD5073). The data is quantified using BRE's Environmental Profiles Methodology. The Environmental Profiles Methodology has been peer reviewed to comply with BS ISO 14040 and represents the Product Category Rules for BRE Global’s environmental labelling scheme (EPD - ISO 14025, Type III) for construction products and elements.
B83: 5 | C83: The reported impact is for a 10 year study period. The calculation of the Direct Effect Life Cycle CO2eq emissions used by BREEAM is based on the Total Equivalent Warming Impact (TEWI) calculation method for new stationary refrigeration and air conditioning systems, as described in Annex B of BS EN 378-1:2008, IPCC/TEAP Special Report 2005 and British Refrigeration Association’s (BRA) Guideline Methods of Calculating TEWI.
B84: 6 | C84: The reported impact covers emissions from either one or a combination of space heating, cooling and hot water heating (refer to Pol02 Assessment Issue for scope of emissions)
B85: 7 | C85: The reported impact includes net water consumption from the micro-components utilised by building occupants for sanitary purposes. The impact accounts for water recycling/rainwater collection, where used for permissible non-potable water demands (For further detail refer to BREEAM International New Construction Technical Guide (SD5075)).
B86: 8 | C86: The reported impact is net water consumption i.e. accounts for any water recycling/rainwater collection used to off-set a potable site demand. This KPI is not assessed/reported at the design stage of assessment/certification.
B87: 9 | C87: The reported impact covers non-hazardous waste generated. Where assessed and reported at the design stage of assessment this KPI is based on the target as required in assessment criterion 1.
B88: 10 | C88: The reported impact covers non-hazardous waste diverted from landfill.
B89: 11 | C89: The reported impact covers the proportion of the key building elements present and assessed by BREEAM that are responsibly sourced, where responsibly sourced is defined as follows; where at least 80% of the materials that make-up an element achieve certification in accordance with one of the responsible sourcing schemes defined in table - 41 of the BREEAM International New Construction Technical Guide (SD5075).
B90: 12 | C90: The reported impact covers the Predicted percentage dissatisfied (PPD). This is an index that establishes a quantitative prediction of the percentage of thermally dissatisfied people who feel too cool or too warm. For the purposes of ISO 7730, thermally dissatisfied people are those who will feel hot, warm, cool or cold (refer to the BREEAM International New Construction Technical Guide (SD5075) for further detail).
B91: 12a | C91: Predicted Mean Vote (PMV) The PMV is an index that predicts the mean votes of a large group of persons on the seven-point thermal sensation scale based on the heat balance of the human body. Thermal balance is obtained when the internal heat production in the body is equal to the loss of heat to the environment (refer to the BREEAM International New Construction Technical Guide (SD5075) for further detail).
B92: 13 | C92: The total volatile organic compound (TVOC) concentration is measured post construction (but pre-occupancy) over 8 hours. Formaldehyde concentration level is measured post construction (but pre-occupancy) averaged over 30 minutes. Both KPI's are measured in accordance with ISO standards (refer to the BREEAM International New Construction Technical Manual for relevant standard numbers. At the design stage of assessment no data is available for this KPI as they are both measured once the building has been constructed (but pre-occupancy) for the purpose of post construction assessment.
C93: "INA" = Indicator Not Assessed. This will be the case where either the data required for the KPI is not gathered/measured by the building's project team or not assessed/quantified in BREEAM for a particular building type or assessment stage e.g. energy consumption for construction process at the design stage of assessment.
C94: "-" = KPI not applicable to building being assessed.
B95: Simple approach: Indicative Building Performance by Environmental Section and Assessment Issue | AK95: Man04b credits
AI96: Please select: | AK96: Please select:
AI97: Yes | AK97: =IF(ADBT0=ADBT8,"Excellent","Outstanding") -> Outstanding
AI98: No | AK98: =IF(ADBT0=ADBT8,"Outstanding","") -> 
J99: Indicative no. credits available | L99: Indicative no. credits Achieved (detailed approach) | N99: Indicative no. credits Achieved (simple approach) | P99: Indicative contribution to score | R99: Minimum standards level achieved for issue | T99: Additional Minimum standards criteria
B101: MANAGEMENT
B103: =Man_01 -> Man01 Sustainable Procurement | J103: =Man01_credits -> 9 | L103: =Man01_Tot -> 0 | P103: =Man01_39 -> 0 | R103: =Man01_37 -> Unclassified | T103: N/A
B105: =Man_02 -> Man02 Responsible Construction Practices | J105: =Man02_credits -> 2 | L105: =Man02_Tot -> 0 | P105: =Man02_12 -> 0 | R105: =Man02_minstd -> Very Good | T105: N/A
B107: =Man_03 -> Man03 Construction Site Impacts | J107: =Man03_credits -> 5 | L107: =Man03_Tot -> 0 | P107: =Man03_18 -> 0 | R107: =Man03_minstd -> N/A | T107: N/A
B109: =Man_04 -> Man04 Stakeholder Participation | J109: =Man04_credits -> 4 | L109: =Man04_tot -> 0 | P109: =Man04_cont -> 0 | R109: =Man04_minstd -> Pass | T109: Which minimum standards will be achieved? | X109: Please select:
B111: =Man_05 -> Man05 Life cycle cost and service life planning | J111: =Man05_credits -> 3 | L111: =Man05_tot -> 0 | P111: =Man05_cont -> 0 | R111: =Man05_minstd -> N/A | T111: N/A | X111: =IF(ADBT0<>ADBT8,"Note: For an Outstanding rating, the Building user information credit must be achieved",IF(Man04_user_mst=HUG, "Note: For an Excellent rating, the Home user information credit must be achieved","Note: For an Outstanding rating, the Home user Information and Inclusive & Accessibile design credit must be achieved")) -> Note: For an Outstanding rating, the Building user information credit must be achieved
B113: Total indicative environmental section performance | J113: =BP_01 -> 23 | L113: =SUM(L103,L105,L107,L109,L111) -> 0 | N113: =N103+N105+N107+N109+N111 -> 0 | P113: =SUM(P103,P105,P107,P109,P111) -> 0
B115: HEALTH & WELLBEING
B117: =Hea_01 -> Hea01 Visual Comfort | J117: =Hea01_credits -> 3 | L117: =Hea01_tot -> 0 | P117: =Hea01_27 -> 0 | R117: =Hea01_minstd -> Unclassified | T117: Will high frequency ballasts be fitted? | X117: Please select:
B119: =Hea_02 -> Hea02 Indoor Air Quality | J119: =IF(Hea02_credits="N/A",0,Hea02_credits) -> 4 | L119: =Hea02_tot -> 0 | P119: =Hea02_26 -> 0 | R119: =Hea02_minstd -> Unclassified | T119: Will all asbestos materials be banned? | X119: Please select:
B121: =Hea_03 -> Hea03 Thermal Comfort | J121: =IF(Hea03_credits="N/A",0,Hea03_credits) -> 2 | L121: =Hea03_tot -> 0 | P121: =Hea03_contr -> 0 | R121: =Hea03_11 -> N/A | T121: N/A
B123: =Hea_04 -> Hea04 Water Quality | J123: =Hea04_credits -> 1 | L123: =Hea04_tot -> 0 | P123: =Hea04_13 -> 0 | R123: =Hea04_11 -> Unclassified | T123: Will criterion 1 be met? | X123: Please select:
B125: =Hea_05 -> Hea05 Acoustic Performance | J125: =Hea05_credits -> 2 | L125: =Hea05_tot -> 0 | P125: =Hea05_08 -> 0 | R125: =Hea05_minstd -> N/A | T125: N/A
B127: =Hea_06 -> Hea06 Safe Access | J127: =IF(Hea06_credits="N/A",0,Hea06_credits) -> 1 | L127: =Hea06_tot -> 0 | P127: =Hea06_contr -> 0 | R127: =Hea06_minstd -> N/A | T127: N/A
B129: =Hea_07 -> Hea07 Hazards | J129: =IF(Hea07_Credits="N/A",0,Hea07_Credits) -> 1 | L129: =Hea07_Tot -> 0 | P129: =Hea07_contr -> 0 | R129: =Hea07_minstd -> N/A | T129: N/A
B131: =Hea_08 -> Hea08 Private Space | J131: =IF(Hea08_Credits="N/A",0,Hea08_Credits) -> 0 | L131: =Hea08_tot -> 0 | P131: =Hea08_contr -> 0.00% | R131: =Hea08_minstd -> N/A | T131: N/A
B133: Total indicative environmental section performance | J133: =BP_02+BP_02c -> 14 | L133: =SUM(L117,L119,L121,L123,L125,L127,L129,L131) -> 0 | N133: =SUM(N117,N119,N121,N123,N125,N127,N129,N131) -> 0 | P133: =BP_HW_score_unmerged -> 0
B135: ENERGY
B137: =Ene_01 -> Ene01 Energy Efficiency | J137: =Ene01_credits -> 15 | L137: =Ene01_tot -> 0 | P137: =Ene01_42 -> 0 | R137: =Ene01_28 -> Very Good | T137: N/A
B139: =Ene_02 -> Ene02 Energy Monitoring | J139: =Ene02_credits -> 1 | L139: =Ene02_tot -> 0 | P139: =Ene02_13 -> 0 | R139: =Ene02_12 -> Good | T139: Will the first sub-metering credit be met? | X139: Please select:
B141: =Ene_03 -> Ene03 External Lighting | J141: =Ene03_credits -> 1 | L141: =Ene03_tot -> 0 | P141: =Ene03_06 -> 0 | R141: =Ene03_minstd -> N/A | T141: N/A
B143: =Ene_04 -> Ene04 Low and Zero Carbon Technology | J143: =Ene04_credits -> 2 | L143: =Ene04_tot -> 0 | P143: =Ene04_20 -> 0 | R143: =Ene04_16 -> Very Good | T143: N/A
B145: =Ene_05 -> Ene05 Energy Efficient Cold Storage | J145: =IF(Ene05_credits="N/A",0,Ene05_credits) -> 0 | L145: =Ene05_tot -> 0 | P145: =Ene05_21 -> N/A | R145: =Ene05_15 -> N/A | T145: N/A
B147: =Ene_06 -> Ene06 Energy Efficient Transportation Systems | J147: =IF(Ene06_credits="N/A",0,Ene06_credits) -> 2 | L147: =Ene06_tot -> 0 | P147: =Ene06_12 -> 0 | R147: =Ene06_minstd -> N/A | T147: N/A
B149: =Ene_07 -> Ene07 Energy Efficient Laboratory Systems | J149: N/A | L149: N/A | N149: N/A | P149: N/A | R149: N/A | T149: N/A
B151: =Ene_08 -> Ene08 Energy Efficient Equipment | J151: =Ene08_credits -> 2 | L151: =Ene08_tot -> 0 | P151: =Ene08_29 -> 0 | R151: =Ene08_minstd -> N/A | T151: N/A
B153: =Ene_09 -> Ene09 Drying Space | J153: =IF(Ene09_credits="N/A",0,Ene09_credits) -> 0 | L153: =Ene09_tot -> N/A | P153: =Ene09_10 -> N/A | R153: =Ene09_minstd -> N/A | T153: N/A
B155: Total indicative environmental section performance | J155: =BP_03 -> 23 | L155: =SUM(L137,L139,L141,L143,L145,L147,L149,L151,L153) -> 0 | N155: =SUM(N137,N139,N141,N143,N145,N147,N149,N151,N153) -> 0 | P155: =BP_Energy_score -> 0
B157: TRANSPORT
B159: =Tra_01 -> Tra01 Public Transport Accessibility | J159: =IF(Tra01_credits="See instruction",0,Tra01_credits) -> 0 | L159: =Tra01_tot -> 0 | P159: =TRa01_08 -> See instruction | R159: =Tra01_minstd -> N/A | T159: N/A
B161: =Tra_02 -> Tra02 Proximity to Amenities | J161: =Tra02_credits -> 1 | L161: =Tra02_tot -> 0 | P161: =Tra02_07 -> See instruction | R161: =Tra02_minstd -> N/A | T161: N/A
B163: =Tra_03 -> Tra03 Alternative modes of transport | J163: =Tra03_credits -> 2 | L163: =Tra03_tot -> 0 | P163: =Tra03_14 -> See instruction | R163: =Tra03_minstd -> N/A | T163: N/A
B165: =Tra_04 -> Tra04 Maximum Car Parking Capacity | J165: =IF(Tra04_credits="N/A",0,Tra04_credits) -> 2 | L165: =Tra04_tot -> 0 | P165: =Tra04_10 -> N/A | R165: =Tra04_minstd -> N/A | T165: N/A
B167: =Tra_05 -> Tra05 Travel Plan | J167: =IF(Tra05_credits="N/A",0,Tra05_credits) -> 1 | L167: =Tra05_tot -> 0 | P167: =Tra05_05 -> N/A | R167: =Tra05_minstd -> N/A | T167: N/A
B169: =Tra_06 -> Tra06 Home Office | J169: =IF(Tra06_credits="N/A",0,Tra06_credits) -> 0 | L169: =Tra06_tot -> 0 | P169: =Tra06_contr -> 0 | R169: =Tra06_minstd -> N/A | T169: N/A
B171: Total indicative environmental section performance | J171: =BP_04 -> See note | L171: =SUM(L159,L161,L163,L165,L167,L169) -> 0 | N171: =SUM(N159,N161,N163,N165,N167,N169) -> 0 | P171: =BP_Trans_score -> 0
B173: WATER
B175: =Wat_01 -> Wat01 Water Consumption | J175: =Wat01_credits -> 5 | L175: =Wat01_tot -> 0 | P175: =Wat01_15 -> 0 | R175: =Wat01_09 -> Good | T175: N/A
B177: =Wat_02 -> Wat02 Water Monitoring | J177: =Wat02_credits -> 1 | L177: =Wat02_tot -> 0 | P177: =Wat02_13 -> 0 | R177: =Wat02_11 -> Pass | T177: Meter on the mains supply specified? | X177: Please select:
B179: =Wat_03 -> Wat03 Water Leak Detection and Prevention | J179: =Wat03_credits -> 2 | L179: =Wat03_tot -> 0 | P179: =Wat03_10 -> 0 | R179: =Wat03_minstd -> N/A | T179: N/A
B181: =Wat_04 -> Wat04 Water Efficient Equipment | J181: =IF(Wat04_credits="N/A",0,Wat04_credits) -> 1 | L181: =Wat04_tot -> 0 | P181: =Wat04_06 -> 0 | R181: =Wat04_minstd -> N/A | T181: N/A
B183: Total indicative environmental section performance | J183: =BP_05 -> 9 | L183: =SUM(L175,L177,L179,L181) -> 0 | N183: =SUM(N175,N177,N179,N181) -> 0 | P183: =BP_Water_score -> 0
B185: MATERIALS
B187: =Mat_01 -> Mat01 Life Cycle Impacts | J187: =Mat01_credits -> 6 | L187: =Mat01_tot -> 0 | P187: =Mat01_28 -> 0 | R187: =Mat01_minstd -> N/A | T187: N/A
B189: =Mat_03 -> Mat03 Responsible Sourcing | J189: =Mat03_credits -> 3 | L189: =Mat03_tot -> 0 | P189: =Mat03_38 -> 0 | R189: =Mat03_36 -> Excellent | T189: Will all timber be legally harvested/traded? | X189: Please select:
B191: =Mat_04 -> Mat04 Insulation | J191: =Mat04_credits -> 1 | L191: =Mat04_tot -> 0 | P191: =Mat04_10 -> 0 | R191: =Mat04_minstd -> N/A | T191: N/A
B193: =Mat_05 -> Mat05 Designing for Robustness | J193: =Mat05_credits -> 1 | L193: =Mat05_tot -> 0 | P193: =Mat05_06 -> 0 | R193: =Mat05_minstd -> N/A | T193: N/A
B195: Total indicative environmental section performance | J195: =BP_06 -> 11 | L195: =SUM(L187,L189,L191,L193) -> 0 | N195: =SUM(N187,N189,N191,N193) -> 0 | P195: =BP_Materials_score -> 0
B197: WASTE
B199: =Wst_01 -> Wst01 Construction Waste Management | J199: =Wst01_credits -> 3 | L199: =Wst01_tot -> 0 | P199: =Wst01_28 -> 0 | R199: =Wst01_18 -> Excellent | T199: N/A
B201: =Wst_02 -> Wst02 Recycled Aggregates | J201: =Wst02_credits -> 1 | L201: =Wst02_tot -> 0 | P201: =Wst02_15 -> 0 | R201: =Wst02_minstd -> N/A | T201: N/A
B203: =Wst_03 -> Wst03 Operational Waste | J203: =Wst03_credits -> 1 | L203: =Wst03_tot -> 0 | P203: =Wst03_13 -> 0 | R203: =Wst03_10 -> Very Good | T203: N/A
B205: =Wst_04 -> Wst04 Speculative Floor and Ceiling Finishes | J205: =IF(Wst04_credits="N/A",0,Wst04_credits) -> 0 | L205: =Wst04_tot -> N/A | P205: =Wst04_09 -> N/A | R205: =Wst04_minstd -> N/A | T205: N/A
B207: Total indicative environmental section performance | J207: =BP_07 -> 5 | L207: =SUM(L199,L201,L203,L205) -> 0 | N207: =SUM(N199,N201,N203,N205) -> 0 | P207: =BP_Waste_Score -> 0
B209: LAND USE & ECOLOGY
B211: =LE_01 -> LE01 Site Selection | J211: =LE01_credits -> 3 | L211: =LE01_tot -> 0 | P211: =LE01_08 -> 0 | R211: =LE01_minstd -> N/A | T211: N/A
B213: =LE_02 -> LE02 Ecological Value of Site and Protection of Ecological Features | J213: =LE02_credits -> 2 | L213: =LE02_tot -> 0 | P213: =LE02_08 -> 0 | R213: =LE02_minstd -> N/A | T213: N/A
B215: =LE_04 -> LE04 Enhancing Site Ecology | J215: =LE04_credits -> 3 | L215: =LE04_tot -> 0 | P215: =LE04_14 -> 0 | R215: =LE03_minstd -> N/A | T215: N/A
B217: =LE_05 -> LE05 Long Term Impact on Biodiversity | J217: =LE05_credits -> 2 | L217: =LE05_tot -> 0 | P217: =LE05_15 -> 0 | R217: =LE05_minstd -> N/A | T217: N/A
B219: =LE_06 -> LE06 Building Footprint (Residential Only) | J219: =LE06_creditsNA -> 0 | L219: =LE06_tot -> 0 | P219: =LE06_contr -> 0 | R219: =LE06_minstd -> N/A | T219: N/A
B221: Total indicative environmental section performance | J221: =BP_08 -> 10 | L221: =SUM(L211,L213,L215,L217,L219) -> 0 | N221: =SUM(N211,N213,N215,N217,N219) -> 0 | P221: =BP_LUE_score -> 0
B223: POLLUTION
B225: =Pol_01 -> Pol01 Impact of Refrigerants | J225: =IF(Pol01_credits="N/A",0,Pol01_credits) -> 4 | L225: =Pol01_tot -> 0 | P225: =Pol01_20 -> 0 | R225: =Pol01_minstd -> N/A | T225: N/A
B227: =Pol_02 -> Pol02 NOx Emissions | J227: =Pol02_credits -> 3 | L227: =Pol02_tot -> 0 | P227: =Pol02_27 -> 0 | R227: =Pol02_minstd -> N/A | T227: N/A
B229: =Pol_03 -> Pol03 Surface Water Run off | J229: =Pol03_credits -> 5 | L229: =Pol03_tot -> 0 | P229: =Pol03_15 -> 0 | R229: =Pol03_minstd -> N/A | T229: N/A
B231: =Pol_04 -> Pol04 Reduction of Night Time Light Pollution | J231: =Pol04_credits -> 1 | L231: =Pol04_tot -> 0 | P231: =Pol04_06 -> 0 | R231: =Pol04_minstd -> N/A | T231: N/A
B233: =Pol_05 -> Pol05 Noise Attenuation | J233: =IF(Pol05_credits="N/A",0,Pol05_credits) -> 1 | L233: =Pol05_tot -> 0 | P233: =Pol05_11 -> 0 | R233: =Pol05_minstd -> N/A | T233: N/A
B235: Total indicative environmental section performance | J235: =BP_09+BP_09b -> 14 | L235: =SUM(L225,L227,L229,L231,L233) -> 0 | N235: =SUM(N225,N227,N229,N231,N233) -> 0 | P235: =BP_Pol_score_unmerged -> 0
B237: INNOVATION
B239: =Inn_01 -> Inn01 Innovation | J239: =Inn01_credits -> 10 | L239: =Inn01_tot -> 0 | P239: =Inn01_04 -> 0 | R239: =Inn_minstd -> N/A | T239: N/A
B241: Total indicative environmental section performance | J241: =Inn01_credits -> 10 | L241: =Inn01_tot -> 0 | N241: =N239 -> 0 | P241: =BP_Innovation_score -> 0
AD248: =#REF! ->  | AF248: =#REF! -> 
AD249: =#REF! ->  | AF249: =#REF! -> 
AD250: =#REF! ->  | AF250: =#REF! -> 
AD251: =#REF! ->  | AF251: =#REF! -> 
AD252: =#REF! ->  | AF252: =#REF! -> 
AD253: =#REF! ->  | AF253: =#REF! -> 
AD254: =#REF! ->  | AF254: =#REF! -> 
AD255: =#REF! ->  | AF255: =#REF! -> 
AD256: =#REF! ->  | AF256: =#REF! -> 
AD257: =#REF! ->  | AF257: =#REF! -> 

Sheet Detailed Scoring Approach
B1: HIDDEN CONTENT AND FORUMULAE IS PRESENT WITHIN THESE COLUMNS. DO NOT DELETE OR ADD CONTENT OR COLOUMNS OR ROWS WITHOUT FIRST UN-HIDING ALL AND CHECKING FOR CONTENT THAT MAY BE HIDDEN. | W1: HIDDEN CONTENT AND FORUMULAE IS PRESENT WITHIN THESE COLUMNS. DO NOT DELETE OR ADD CONTENT OR COLOUMNS OR ROWS WITHOUT FIRST UN-HIDING ALL AND CHECKING FOR CONTENT THAT MAY BE HIDDEN. | AM1: HIDDEN CONTENT AND FORUMULAE IS PRESENT WITHIN THESE COLUMNS. DO NOT DELETE OR ADD CONTENT OR COLOUMNS OR ROWS WITHOUT FIRST UN-HIDING ALL AND CHECKING FOR CONTENT THAT MAY BE HIDDEN.
B4: =IF(OR(projecttype='Assessment Details'!Z214,projecttype=""),"BREEAM International 2013 New Construction Pre-Assessment Estimator: Assessment Issue Scoring","BREEAM International Bespoke 2013 New Construction Pre-Assessment Estimator: Assessment Issue Scoring") -> BREEAM International 2013 New Construction Pre-Assessment Estimator: Assessment Issue Scoring
B5: =IF(AD_Mandatory_fields_text=AIS_statement09,"Warning: All Mandatory fields in the assessment details worksheet must be completed/defined to reveal the applicable assessment issues.","") -> Warning: All Mandatory fields in the assessment details worksheet must be completed/defined to reveal the applicable assessment issues.
F8: Building name | H8: =IF(ISBLANK(ADBN),"",ADBN) -> 
F10: Indicative building score (%) | H10: =BP_OverallScore -> 
F12: Indicative building rating | H12: =BP_BREEAMRating -> 
F14: Minimum standards level achieved | H14: =BP_MinStandards -> 
B15: This tab has been disabled as the simple approach for estimating the BREEAM score has been selected in the Assessment Details tab
B16: MANAGEMENT
B18: Man01 Sustainable Procurement
F20: No. of BREEAM credits available | H20: =SUM(L25:L33) -> 9 | N20: Available contribution to overall score | P20: =(BP_32/BP_01)*Man01_credits -> 0.04695652174
F22: No. of BREEAM innovation credits available | H22: 1 | N22: Minimum standards applicable | P22: Yes
B23: Assessment Criteria | J23: Compliant? | L23: Credits available | N23: Credits achieved | P23: Shell & Core option?
H25: Will roles, responsibilities and a training schedule be defined in accordance with BREEAM? | J25: No | L25: 1 | N25: =IF(Man01_01=AIS_Yes,1,0) -> 0 | P25: N/A
H26: Will a BREEAM AP be appointed before concept design stage & performance targets contractually agreed? | J26: No | L26: 1 | N26: =IF(Man01_02=AIS_Yes,1,0) -> 0 | P26: N/A
H27: Will a BREEAM AP be appointed to monitor and report progress during feasibility & design stage? | J27: No | L27: 1 | N27: =IF(AND(Man01_02=AIS_Yes,Man01_03=AIS_Yes),1,0) -> 0 | P27: N/A | Q27: =IF(AND(Man01_03=AIS_Yes,OR(Man01_02=AIS_No,Man01_02="")),AIS_statement92,"") -> 
H28: BREEAM AP appointed to monitor & report progress during pre-construction to post-practical completion? | J28: No | L28: 1 | N28: =IF(Man01_04=AIS_Yes,1,0) -> 0 | P28: N/A
H29: Will a thermographic survey or air leakage test be conducted and any defects uncovered remedied? | J29: No | L29: =IF(ADBT0=ADBT8,AIS_NA,1) -> 1 | N29: =IF(ADBT0=ADBT8,AIS_NA,IF(AND(Man01_05=AIS_Yes,(OR(Man01_32=AIS_option05,Man01_32=AIS_option00))),Man01_14,IF(AND(Man01_05=AIS_Yes,Man01_32=AIS_option01),Man01_14,IF(AND(Man01_05=AIS_Yes,Man01_32=AIS_option02),Man01_14*0.5,IF(AND(Man01_05=AIS_Yes,Man01_32=AIS_option03),Man01_14,0))))) -> 0 | P29: N/A
H30: Will compliant commissioning of building services be carried out? | J30: No | L30: 1 | N30: =IF(AND(Man01_06=AIS_Yes,(OR(Man01_33=AIS_option05,Man01_33=AIS_option00))),Man01_15,IF(AND(Man01_06=AIS_Yes,Man01_33=AIS_option01),Man01_15,IF(AND(Man01_06=AIS_Yes,Man01_33=AIS_option02),Man01_15*0.5,IF(AND(Man01_06=AIS_Yes,Man01_33=AIS_option03),Man01_15,0)))) -> 0 | P30: N/A
H31: Will national best practice commissioning codes be followed? | J31: No | L31: 1 | N31: =IF(AND(Man01_07=AIS_Yes, Man01_06=AIS_Yes,(OR(Man01_34=AIS_option05a,Man01_34=AIS_option00a))),Man01_16,IF(AND(Man01_07=AIS_Yes,Man01_34=AIS_option01a),Man01_16,IF(AND(Man01_07=AIS_Yes,Man01_34=AIS_option03a),Man01_16,0))) -> 0 | P31: N/A | Q31: =IF(AND(Man01_06=AIS_Yes,Man01_07=AIS_Yes),1,0) -> 0
H32: Will compliant seasonal commissioning of building services be carried out? | J32: No | L32: 1 | N32: =IF(AND(Man01_08=AIS_Yes,(OR(Man01_35=AIS_option05a,Man01_35=AIS_option00a))),Man01_17,IF(AND(Man01_08=AIS_Yes,Man01_07=AIS_Yes,Man01_35=AIS_option01a),Man01_17,IF(AND(Man01_08=AIS_Yes,Man01_07=AIS_Yes,Man01_35=AIS_option03a),Man01_17,0))) -> 0 | P32: N/A | Q32: =IF(AND(Man01_07=AIS_Yes,OR(Man01_06=AIS_No,Man01_06="")),AIS_statement93,"") -> 
H33: Will water/energy consumption data be recorded and aftercare support provided for 12 months? | J33: No | L33: 1 | N33: =IF(AND(Man01_08=AIS_Yes,Man01_40=AIS_Yes,(OR(Man01_35=AIS_option05a,Man01_35=AIS_option00a))),Man01_41,IF(AND(Man01_08=AIS_Yes,Man01_40=AIS_Yes,Man01_35=AIS_option01a),Man01_41,IF(AND(Man01_08=AIS_Yes,Man01_41=AIS_Yes,Man01_35=AIS_option03a),Man01_41,0))) -> 0 | P33: N/A
H35: Exemplary level: Will occupant satisfaction, water/energy be recorded/reported for 3 yrs post construction? | J35: No | L35: 1 | N35: =IF(AND(Man01_09=AIS_Yes,(OR(Man01_36=AIS_option05a,Man01_36=AIS_option00a))),Man01_18,IF(AND(Man01_09=AIS_Yes,Man01_36=AIS_option01a),Man01_18,IF(AND(Man01_09=AIS_Yes,Man01_36=AIS_option03a),Man01_18,0))) -> 0 | P35: N/A
Q36: =IF(AND(Man01_08=AIS_Yes,J33=AIS_Yes),1,0) -> 0
F37: Total BREEAM credits achieved | H37: =IF(ISERROR(Man01_Tot_Err), 0, Man01_Tot_Err) -> 0
F39: Total contribution to overall building score | H39: =IF(Score_option=_PSc2,(Man01_38/Man01_credits)*Man01_user,(Man01_38/Man01_credits)*Man01_Tot) -> 0
F41: Total BREEAM innovation credits achieved | H41: =N35 -> 0
F43: Minimum standard(s) level | H43: =VLOOKUP(MinSt_01,AIS_MinSt_benchmarks,2,FALSE) -> Unclassified
B45: Comments/notes:
B47: Man02 Responsible Construction Practices
F49: No. of BREEAM credits available | H49: 2 | N49: Available contribution to overall score | P49: =(BP_32/BP_01)*Man02_credits -> 0.01043478261
F51: No. of BREEAM innovation credits available | H51: 1 | N51: Minimum standards applicable | P51: Yes
B53: Assessment Criteria
P54: Shell & Core option?
H56: Which level of responsible construction practices will be achieved by the contractor? | J56: Please select
F58: Total BREEAM credits achieved | H58: =IF(ISERROR(Man02_Tot_Err), 0, Man02_Tot_Err) -> 0 | P58: Shell & Core option?
F60: Total contribution to overall building score | H60: =IF(Score_option=_PSc2,(Man02_11/Man02_credits)*Man02_user,(Man02_11/Man02_credits)*Man02_Tot) -> 0
F63: Total BREEAM innovation credits achieved | H63: =IF(Man02_14=Man02_ccs_option03,1,0) -> 0 | P63: N/A
F65: Minimum standard(s) level | H65: =VLOOKUP(MinSt_02,AIS_MinSt_benchmarks,2,FALSE) -> Very Good
B67: Comments/notes:
B69: Man03 Construction Site Impacts
F71: No. of BREEAM credits available | H71: 5 | N71: Available contribution to overall score | P71: =(BP_32/BP_01)*Man03_credits -> 0.02608695652
F73: No. of BREEAM innovation credits available | H73: 0 | N73: Minimum standards applicable | P73: No
B74: Assessment Criteria | J74: Compliant? | L74: Credits available | N74: Credits achieved | P74: Shell & Core option?
H76: Will site energy consumption be metered/monitored? | J76: No | L76: 1 | N76: =IF(J76=AIS_Yes,Man03_06,0) -> 0 | P76: N/A
H77: Will site water consumption be metered/monitored? | J77: No | L77: 1 | N77: =IF(J77=AIS_Yes,Man03_07,0) -> 0 | P77: N/A
H78: Will the transport of construction materials and waste to/from site be measured/monitored? | J78: No | L78: 1 | N78: =IF(J78=AIS_Yes,Man03_08,0) -> 0 | P78: N/A
H79: Will all site timber be from legally harvested and legally traded sources? | J79: No | L79: 1 | N79: =IF(J79=AIS_Yes,Man03_09,0) -> 0 | P79: N/A
H80: Will/does the principal contractor operate a compliant Environmental Management System? | J80: No | L80: 1 | N80: =IF(Man03_05=AIS_No,0,IF(AND(Man03_05=AIS_Yes,Man03_11=AIS_Yes),Man03_10,0)) -> 0 | P80: N/A
H81: Will the principal contractor adopt best practice pollution prevention policies & procedures? | J81: No
B82: Key Performance Indicators: Construction site energy use
H84: Energy consumption (total) - site processes | L84: =IF(AIS_stage00=AIS_stage01,AIS_statement01,IF(Man03_01=AIS_No,AIS_statement03,AIS_units01)) -> Information not available at pre-assessment stage
H85: Energy consumption (intensity) - site processes | L85: =IF(AIS_stage00=AIS_stage01,AIS_statement01,IF(Man03_01=AIS_No,AIS_statement03,AIS_units02)) -> Information not available at pre-assessment stage
H86: Distance (total) - materials transport to site | L86: =IF(AIS_stage00=AIS_stage01,AIS_statement01,IF(Man03_03=AIS_No,AIS_statement03,AIS_units09)) -> Information not available at pre-assessment stage
H87: Distance (total) -waste transport from site | L87: =IF(AIS_stage00=AIS_stage01,AIS_statement01,IF(Man03_03=AIS_No,AIS_statement03,AIS_units09)) -> Information not available at pre-assessment stage
H88: Energy consumption (total) - materials transport to site | L88: =IF(AIS_stage00=AIS_stage01,AIS_statement01,IF(Man03_03=AIS_No,AIS_statement03,AIS_units08)) -> Information not available at pre-assessment stage
H89: Energy consumption (total) - waste transport from site | L89: =IF(AIS_stage00=AIS_stage01,AIS_statement01,IF(Man03_03=AIS_No,AIS_statement03,AIS_units08)) -> Information not available at pre-assessment stage
H90: Energy consumption (intensity) - materials transport to site | L90: =IF(AIS_stage00=AIS_stage01,AIS_statement01,IF(Man03_03=AIS_No,AIS_statement03,AIS_units10)) -> Information not available at pre-assessment stage
H91: Energy consumption (intensity) - waste transport from site | L91: =IF(AIS_stage00=AIS_stage01,AIS_statement01,IF(Man03_03=AIS_No,AIS_statement03,AIS_units10)) -> Information not available at pre-assessment stage
B92: Key Performance Indicators: Construction site greenhouse gas emissions
H94: Process greenhouse gas emissions (total) - site processes | L94: =IF(AIS_stage00=AIS_stage01,AIS_statement01,IF(Man03_01=AIS_No,AIS_statement03,AIS_units05)) -> Information not available at pre-assessment stage
H95: Greenhouse gas emissions (intensity) - site processes | L95: =IF(AIS_stage00=AIS_stage01,AIS_statement01,IF(Man03_01=AIS_No,AIS_statement03,AIS_units03)) -> Information not available at pre-assessment stage
H96: Greenhouse gas emissions (total) - materials transport to site | L96: =IF(AIS_stage00=AIS_stage01,AIS_statement01,IF(Man03_03=AIS_No,AIS_statement03,AIS_units05)) -> Information not available at pre-assessment stage
H97: Greenhouse gas emissions (total) - waste transport from site | L97: =IF(AIS_stage00=AIS_stage01,AIS_statement01,IF(Man03_03=AIS_No,AIS_statement03,AIS_units05)) -> Information not available at pre-assessment stage
H98: Greenhouse gas emissions (intensity) - materials transport to site | L98: =IF(AIS_stage00=AIS_stage01,AIS_statement01,IF(Man03_03=AIS_No,AIS_statement03,AIS_units04)) -> Information not available at pre-assessment stage
H99: Greenhouse gas emissions (intensity) - waste transport from site | L99: =IF(AIS_stage00=AIS_stage01,AIS_statement01,IF(Man03_03=AIS_No,AIS_statement03,AIS_units04)) -> Information not available at pre-assessment stage
B100: Key Performance Indicators: Construction site use of freshwater resources
H102: Use of freshwater resource (total) - site processes | L102: =IF(AIS_stage00=AIS_stage01,AIS_statement01,IF(Man03_02=AIS_No,AIS_statement03,AIS_units07)) -> Information not available at pre-assessment stage
H103: Use of freshwater resource (intensity) - site processes | L103: =IF(AIS_stage00=AIS_stage01,AIS_statement01,IF(Man03_02=AIS_No,AIS_statement03,AIS_units06)) -> Information not available at pre-assessment stage
F105: Total BREEAM credits achieved | H105: =IF(ISERROR(Man03_Tot_Err),0,Man03_Tot_Err) -> 0
F107: Total contribution to overall building score | H107: =IF(Score_option=_PSc2,(Man03_12/Man03_credits)*Man03_user, (Man03_12/Man03_credits)*Man03_Tot) -> 0
F109: Total BREEAM innovation credits achieved | H109: N/A
F111: Minimum standard(s) level | H111: N/A
B113: Comments/notes:
B115: Man04 Stakeholder Participation
F117: No. of BREEAM credits available | H117: =SUM(L122:L125)+SUM(L128:L131) -> 4 | N117: Available contribution to overall score | P117: =(BP_32/BP_01)*Man04_credits -> 0.02086956522
F119: No. of BREEAM innovation credits available | H119: 0 | N119: Minimum standards applicable | P119: Yes
B120: 04a - Assessment Criteria - Non Residential | J120: Compliant? | L120: Credits available | N120: Credits achieved | P120: Shell & Core option?
H122: Will an appropriate level of consultation activities be undertaken? | J122: No | L122: =IF(ADBT0=ADBT8,0,1) -> 1 | N122: =IF(ADBT0=ADBT8,0,IF(Man04_01=AIS_Yes,Man04_05,0)) -> 0 | P122: N/A
H123: Will an access statement be developed and appropriate building user facilities provided? | J123: No | L123: =IF(ADBT0=ADBT8,0,1) -> 1 | N123: =IF(ADBT0=ADBT8,0,IF(Man04_02=AIS_Yes,Man04_05,0)) -> 0 | P123: N/A
H124: Will building user guides and relevant user information be provided? | J124: No | L124: =IF(ADBT0=ADBT8,0,1) -> 1 | N124: =IF(AND((J124=AIS_Yes),(P124="Option 2: N/A")),0,IF(AND((J124=AIS_Yes),(P124="Option 1")),1,IF(AND((J124=AIS_Yes),(P124="Option 3")),1,IF(AND((J124=AIS_Yes),(P124="N/A")),1,0)))) -> 0 | P124: N/A | Q124: =IF(Man04_03=AIS_No,AIS_statement04,"") -> Note: Compliance with the criteria and award of this credit is a minimum standard for achieving the BREEAM Good rating and above.
H125: Will a post occupancy evaluation assessment be undertaken and information disseminated? | J125: No | L125: =IF(ADBT0=ADBT8,0,1) -> 1 | N125: =IF(AND((J125=AIS_Yes),(P125="Option 2: N/A")),0,IF(AND((J125=AIS_Yes),(P125="Option 1")),1,IF(AND((J125=AIS_Yes),(P125="Option 3")),1,IF(AND((J125=AIS_Yes),(P125="N/A")),1,0)))) -> 0 | P125: N/A
B127: 04b - Assessment Criteria - Residential | J127: Compliant? | L127: Credits available | N127: Credits achieved
H128: Will an access statement be developed and appropriate building user facilities provided? | J128: No | L128: =IF(ADBT0<>ADBT8,0,2) -> 0 | N128: =IF(ADBT0<>ADBT8,0,IF(Man04_02b=AIS_Yes,2,0)) -> 0
H129: Will a Home User Guide compliant to Part 1 (operational issues) of Checklist A3 be provided? | J129: No | L129: =IF(ADBT0<>ADBT8,0,1) -> 0 | M129: =IF(AND(Hea05_02=AIS_Yes,Hea05_06=""),"→","") ->  | N129: =IF(ADBT0<>ADBT8,0,IF(Man04_03b=AIS_Yes,1,0)) -> 0 | O129: =IF(AND(Hea05_02=AIS_Yes,Hea05_06=""),"←","") ->  | Q129: =IF(Man04_03b=AIS_No,AIS_statement04,"") -> Note: Compliance with the criteria and award of this credit is a minimum standard for achieving the BREEAM Good rating and above.
H130: Will a Home User Guide compliant to Part 1 and Part 2 (site and surroundings) of Checklist A3 be provided? | J130: No | L130: =IF(ADBT0<>ADBT8,0,1) -> 0 | N130: =IF(OR(ADBT0<>ADBT8,Man04_03b=AIS_No),0,IF(Man04_03b2=AIS_Yes,1,0)) -> 0
H131: Will a post occupancy evaluation assessment be undertaken and information disseminated? | J131: No | L131: =IF(ADBT0<>ADBT8,0,1) -> 0 | N131: =IF(ADBT0<>ADBT8,0,IF(Man04_04b=AIS_Yes,1,0)) -> 0
F134: Total BREEAM credits achieved | H134: =IF(ISERROR(Man04_Tot_Err),0,Man04_Tot_Err) -> 0
F136: Total contribution to overall building score | H136: =IF(Score_option=_PSc2,(Man04_17/Man04_credits)*Man04_user,(Man04_17/Man04_credits)*Man04_tot) -> 0
F138: Total BREEAM innovation credits achieved | H138: N/A
F140: Minimum standard(s) level | H140: =IF(ADBT0=ADBT8,VLOOKUP(MinSt_04,AIS_MinSt_benchmarks,2,FALSE),VLOOKUP(MinSt_03,AIS_MinSt_benchmarks,2,FALSE)) -> Pass
B142: Comments/notes:
B144: Man05 Life cycle cost and service life planning
F146: No. of BREEAM credits available | H146: 3 | N146: Available contribution to overall score | P146: =(BP_32/BP_01)*Man05_credits -> 0.01565217391
F148: No. of BREEAM innovation credits available | H148: 0 | N148: Minimum standards applicable | P148: No
B149: Assessment Criteria | J149: Compliant? | L149: Credits available | N149: Credits achieved | P149: Shell & Core option?
H151: Will a feasibility stage Life Cycle Cost (LCC) analysis be commissioned and completed? | J151: No | L151: 1 | N151: =IF(Man05_01=AIS_Yes,Man05_04,0) -> 0 | P151: N/A
H152: Will a strategic and system level LCC be commissioned and completed? | J152: No | L152: 1 | N152: =IF(AND(Man05_02=AIS_Yes,Man05_01=AIS_Yes),Man05_05,0) -> 0 | P152: N/A | Q152: =IF(AND(Man05_02=AIS_Yes,Man05_01=AIS_No),AIS_statement94,"") -> 
H153: Will a technical design LCC to be commissioned and completed? | J153: No | L153: 1 | N153: =IF(AND(Man05_02=AIS_Yes,Man05_01=AIS_Yes,Man05_03=AIS_Yes),Man05_06,0) -> 0 | P153: N/A | Q153: =IF(AND(Man05_03=AIS_Yes,OR(Man05_01=AIS_No,Man05_02=AIS_No)),AIS_Statement95,"") -> 
F155: Total BREEAM credits achieved | H155: =IF(ISERROR(Man05_Tot_Err),0,Man05_Tot_Err) -> 0
F157: Total contribution to overall building score | H157: =IF(Score_option=_PSc2,(Man05_10/Man05_credits)*Man05_user,(Man05_10/Man05_credits)*Man05_tot) -> 0
F159: Total BREEAM innovation credits achieved | H159: N/A
F161: Minimum standard(s) level | H161: N/A
B163: Comments/notes:
B166: HEALTH & WELLBEING
B168: Hea01 Visual Comfort
F170: No. of BREEAM credits available | H170: =SUM(L175:L178) -> 3 | N170: Available contribution to overall score | P170: =(BP_33/BP_02)*Hea01_credits -> 0.03230769231
F172: No. of BREEAM innovation credits available | H172: =AIS_NA -> N/A | N172: Minimum standards applicable | P172: Yes
B173: Assessment Criteria | J173: Compliant? | L173: Credits available | N173: Credits achieved | P173: Shell & Core option?
H175: Will all fluorescent lamps be fitted with high frequency ballasts? | J175: No | L175: N/A | N175: N/A | P175: N/A | Q175: =IF(Hea01_01=AIS_No,AIS_statement19,"") -> Note: Compliance with this item is a minimum standard for achieving any BREEAM rating level (it is not necessary to achieve the credit to comply with the minimum standards).
H176: Will all relevant building areas be designed to achieve the appropriate daylight criteria? | J176: No | L176: =IF(ADBT0=ADBT3,AIS_credit02,IF(ADBT0=ADBT8,AS1388,AS1385)) -> 1 | M176: =IF(AND(Hea01_02=AIS_Yes,Hea01_13=""),"→","") ->  | O176: =IF(AND(Hea01_02=AIS_Yes,Hea01_13=""),"←","") ->  | P176: N/A | Q176: =IF((AND(Hea01_02=AIS_No,Hea01_13>0)),AIS_statement08,IF(Hea01_13>Hea01_07,AIS_statement74,IF(AND(Hea01_02=AIS_Yes,Hea01_13=""),AIS_statement84,""))) -> 
H177: Will the design provide adequate glare control and view out for building users? | J177: No | L177: =IF(ADBT0=ADBT8,AS1384,AS1385) -> 1 | N177: =IF(AND(Hea01_03=AIS_Yes,(OR(Hea01_20=AIS_option05,Hea01_20=AIS_option00))),Hea01_08,IF(AND(Hea01_03=AIS_Yes,Hea01_20=AIS_option01),Hea01_08,IF(AND(Hea01_03=AIS_Yes,Hea01_20=AIS_option02),Hea01_08*0.5,IF(AND(Hea01_03=AIS_Yes,Hea01_20=AIS_option03),Hea01_08,0)))) -> 0 | P177: N/A | Q177: =IF(Hea01_20="N/A","","Note: The shell and core options are only applicable to the glare control criteria.") -> 
H178: Will internal/external lighting be specified in accordance with the relevant best practice standards? | J178: No | L178: =IF(ADBT0=ADBT8,AS1384,AS1385) -> 1 | N178: =IF(AND((J178=AIS_Yes),(P178="Option 2")),0.5*Hea01_09,IF(AND((J178=AIS_Yes),(P178="Option 1")),Hea01_09,IF(AND((J178=AIS_Yes),(P178="Option 3")),Hea01_09,IF(AND((J178=AIS_Yes),(P178="N/A")),Hea01_09,0)))) -> 0 | P178: N/A
F181: Total BREEAM credits achieved | H181: =IF(ISERROR(Hea01_Tot_Err), 0, Hea01_Tot_Err) -> 0
F183: Total contribution to overall building score | H183: =IF(Score_option=_PSc2,(Hea01_26/Hea01_credits)*Hea01_user,(Hea01_26/Hea01_credits)*Hea01_tot) -> 0
F185: Total BREEAM innovation credits achieved | H185: =AIS_NA -> N/A
F187: Minimum standard(s) level | H187: =VLOOKUP(MinSt_05,AIS_MinSt_benchmarks,2,FALSE) -> Unclassified
B189: Comments/notes:
B191: Hea02 Indoor Air Quality | P191: =IF(Hea02_credits=AIS_NA,AIS_statement32,"") -> 
H192: =IF(Hea02_credits=AIS_NA,0,Hea02_credits) -> 4
F193: No. of BREEAM credits available | H193: =IF(SUM(L199:L206)=0,AIS_NA,SUM(L199:L206)) -> 4 | N193: Available contribution to overall score | P193: =IF(Hea02_credits=AIS_NA,AIS_NA,(BP_33/BP_02)*Hea02_credits) -> 0.04307692308 | Q193: =IF(AND(ADBT0=ADBT2,ADIND_option03=AD_no,ADFume_option01=AD_no,(OR(AD_catlevel=AD_catlevel01,AD_catlevel=AD_nolab))),AIS_statement16,"") -> 
F195: No. of BREEAM innovation credits available | H195: =IF(Hea02_credits=AIS_NA,AIS_NA,2) -> 2 | N195: Minimum standards applicable | P195: =IF(Hea02_credits=AIS_NA,AIS_NA,AIS_Yes) -> Yes
B196: Assessment Criteria | J196: Compliant? | L196: Credits available | N196: Credits achieved | P196: Shell & Core option?
H198: Will asbestos containing materials be prohibited from use within the building? | J198: No | L198: N/A | N198: N/A | P198: N/A | Q198: =IF(Hea02_00=AIS_No,AIS_statement19,"") -> Note: Compliance with this item is a minimum standard for achieving any BREEAM rating level (it is not necessary to achieve the credit to comply with the minimum standards).
H199: Will an air quality plan be produced? | J199: No | L199: =IF(AND(ADIND_option03=AD_no,ADBT0=ADBT2),AIS_option05,AS1385) -> 1 | N199: =IF(Hea02_00=AIS_No,0,(IF(AND(ADIND_option03=AD_no,ADBT0=ADBT2),AIS_option05,IF(AND(Hea02_01=AIS_Yes,Hea02_28=AIS_Yes),Hea02_07,AS1384)))) -> 0 | P199: N/A
H200: Will the building be designed to minimise sources of internal and external air pollution? | J200: No | Q200: =IF(Hea02_27=AIS_statement32,"",IF((AND(ADIND_option03=AD_no,ADBT0=ADBT2)),AIS_statement15,"")) -> 
H201: Will the relevant products be specified to meet the VOC testing and emission levels required? | J201: No | L201: =IF(AND(ADIND_option03=AD_no,ADBT0=ADBT2),AIS_option05,AS1385) -> 1 | N201: =IF(Hea02_00=AIS_No,0,(IF(AND(ADIND_option03=AD_no,ADBT0=ADBT2),AIS_option05,IF(AND(Hea02_02=AIS_Yes,Hea02_01=AIS_Yes,(OR(Hea02_20=AIS_option05,Hea02_20=AIS_option00))),Hea02_08,IF(AND(Hea02_02=AIS_Yes,Hea02_01=AIS_Yes,Hea02_20=AIS_option01),Hea02_08,IF(AND(Hea02_02=AIS_Yes,Hea02_01=AIS_Yes,Hea02_20=AIS_option02),Hea02_08*0.5,IF(AND(Hea02_02=AIS_Yes,Hea02_01=AIS_Yes,Hea02_20=AIS_option03),Hea02_08,0))))))) -> 0 | P201: N/A | Q201: =IF(Hea02_27=AIS_statement32,"",IF(AND(ADIND_option03=AD_no,ADBT0=ADBT2),AIS_statement15,IF(AND(Hea02_01=AIS_No,Hea02_02=AIS_Yes),AIS_statement97,""))) -> 
H202: Will formaldehyde and total VOC levels be measured post construction? | J202: No | L202: =IF(AND(ADIND_option03=AD_no,ADBT0=ADBT2),AIS_option05,AS1385) -> 1 | N202: =IF(Hea02_00=AIS_No,0,(IF(AND(ADIND_option03=AD_no,ADBT0=ADBT2),AIS_option05,IF(AND(Hea02_03=AIS_Yes,Hea02_01=AIS_Yes,(OR(Hea02_21=AIS_option05,Hea02_21=AIS_option00))),Hea02_09,IF(AND(Hea02_03=AIS_Yes,Hea02_01=AIS_Yes,Hea02_21=AIS_option01),Hea02_09,IF(AND(Hea02_03=AIS_Yes,Hea02_01=AIS_Yes,Hea02_21=AIS_option02),Hea02_09*0.5,IF(AND(Hea02_03=AIS_Yes,Hea02_01=AIS_Yes,Hea02_21=AIS_option03),Hea02_09,0))))))) -> 0 | P202: N/A | Q202: =IF(Hea02_27=AIS_statement32,"",IF(AND(ADIND_option03=AD_no,ADBT0=ADBT2),AIS_statement15,IF(AND(Hea02_01=AIS_No,Hea02_03=AIS_Yes),AIS_statement97,""))) -> 
H203: Will the building be designed to, or have the potential to provide, natural ventilation? | J203: No | L203: =IF(AND(ADIND_option03=AD_no,ADBT0=ADBT2),AIS_NA,1) -> 1 | N203: =IF(AND(ADIND_option03=AD_no,ADBT0=ADBT2),AIS_NA,IF(Hea02_04=AIS_Yes,Hea02_10,0)) -> 0 | P203: N/A | Q203: =IF(Hea02_27=AIS_statement32,"",IF(AND(ADIND_option03=AD_no,ADBT0=ADBT2),AIS_statement15,"")) ->  | S203: FC+CL available | T203: FC+CL ach.
H204: Fume cupboards (manufacture and installation) | J204: No | L204: N/A | N204: N/A | P204: N/A | S204: =IF(ADFume_option01=AD_Yes,1,AIS_NA) -> N/A | T204: =IF(Hea02_00=AIS_No,0,(IF(ADFume_option01=AD_no,AIS_NA,IF(Hea02_05=AIS_Yes,Hea02_11,0)))) -> 0
H206: Containment Level 2 and 3 labs (ventilation, pollution and safety) | J206: No | L206: N/A | N206: N/A | P206: N/A | S206: =IF(OR(AD_catlevel=AD_catlevel02,AD_catlevel=AD_catlevel03),1,AIS_NA) -> N/A | T206: =IF(OR(AD_catlevel=AD_catlevel02,AD_catlevel=AD_catlevel03),IF(Hea02_06=AIS_Yes,Hea02_12,0),AIS_NA) -> N/A
H208: Exemplary level - will the VOC emission levels of the specified products fall below 60μg/m3? | J208: No | L208: 1 | N208: =IF(AND(Hea02_Ex01=AIS_Yes,Hea02_02=AIS_Yes,Hea02_03=AIS_Yes),Hea02_Ex03,0) -> 0 | P208: N/A
H209: Exemplary level - will the VOC emission levels of the specified products fall below 10μg/m3? | J209: No | L209: 1 | N209: =IF(AND(Hea02_Ex02=AIS_Yes,Hea02_02=AIS_Yes,Hea02_03=AIS_Yes),Hea02_Ex04,0) -> 0 | P209: N/A
B210: Key Performance Indicators: Indoor air quality
H212: Concentration levels of formaldehyde | L212: =IF(P191=AIS_statement32,"",IF(AIS_stage00=AIS_stage01,AIS_statement01,IF(Hea02_03=AIS_No,AIS_statement03,AIS_units11))) -> Information not available at pre-assessment stage
H213: Total volatile organic compound (TVOC) concentration | L213: =IF(P191=AIS_statement32,"",IF(AIS_stage00=AIS_stage01,AIS_statement01,IF(Hea02_03=AIS_No,AIS_statement03,AIS_units11))) -> Information not available at pre-assessment stage
F215: Total BREEAM credits achieved | H215: =IF(ISERROR(Hea02_Tot_Err), 0, Hea02_Tot_Err) -> 0
F217: Total contribution to overall building score | H217: =IF(Hea02_27=AIS_statement32,AIS_NA,IF(Score_option=_PSc2,(Hea02_25/Hea02_credits)*Hea02_user,(Hea02_25/Hea02_credits)*Hea02_tot)) -> 0
F219: Total BREEAM innovation credits achieved | H219: =N208+N209 -> 0
F221: Minimum standard(s) level | H221: =VLOOKUP(MinSt_15,AIS_MinSt_benchmarks,2,FALSE) -> Unclassified
B223: Comments/notes:
B225: Hea03 Thermal Comfort | P225: =IF(AND(ADBT0=ADBT2,ADIND_option03=AD_no),AIS_statement32,"") -> 
H226: =IF(Hea03_credits=AIS_NA,0,Hea03_credits) -> 2
F227: No. of BREEAM credits available | H227: =IF(Hea03_13=AIS_statement32,AIS_NA,2) -> 2 | N227: Available contribution to overall score | P227: =IF(Hea03_13=AIS_statement32,AIS_NA,(BP_33/BP_02)*Hea03_credits) -> 0.02153846154 | Q227: =IF(AND(ADBT0=ADBT2,ADIND_option03=AD_no),AIS_statement18,"") -> 
F229: No. of BREEAM innovation credits available | H229: =IF(Hea03_13=AIS_statement32,AIS_NA,0) -> 0 | N229: Minimum standards applicable | P229: =IF(Hea03_13=AIS_statement32,AIS_NA,AIS_No) -> No
B230: Assessment Criteria | J230: Compliant? | L230: Credits available | N230: Credits achieved | P230: Shell & Core option?
H232: Will thermal modelling of the design be carried out? | J232: No | L232: =IF(AND(ADIND_option03=AD_no,ADBT0=ADBT2),AIS_NA,1) -> 1 | N232: =IF(Hea03_03=AIS_NA,AIS_NA,IF(AND((Hea03_01=AIS_Yes),(Hea03_07="Option 2")),0.5,IF(AND((Hea03_01=AIS_Yes),(Hea03_07="Option 1")),1,IF(AND((Hea03_01=AIS_Yes),(Hea03_07="Option 3")),1,IF(AND((Hea03_01=AIS_Yes),(Hea03_07="N/A")),1,0))))) -> 0 | P232: N/A
H233: Will the modelling inform the development of a thermal zoning and control strategy? | J233: No | L233: =IF(AND(ADIND_option03=AD_no,ADBT0=ADBT2),AIS_NA,1) -> 1 | N233: =IF(Hea03_04=AIS_NA,AIS_NA,IF(Hea03_01=AIS_No,0,IF(AND(Hea03_02=AIS_Yes,Hea03_08="Option 1"),1,IF(AND(Hea03_02=AIS_Yes,Hea03_08="Option 2"),0.5,IF(AND(Hea03_02=AIS_Yes,Hea03_08="Option 3"),1,IF(AND(Hea03_02=AIS_Yes,Hea03_08="N/A"),1,0)))))) -> 0 | P233: N/A | Q233: =IF(AND(Hea03_02=AIS_Yes,Hea03_01=AIS_No),AIS_statement96,"") -> 
B234: Key Performance Indicators: Thermal comfort (PPD and PMV)
H236: Predicted percentage dissatisfied (PPD)
H237: Predicted mean vote (PMV)
F239: Total BREEAM credits achieved | H239: =IF(ISERROR(Hea03_Tot_Err), 0, Hea03_Tot_Err) -> 0
F241: Total contribution to overall building score | H241: =IF(Hea03_13=AIS_statement32,AIS_NA,IF(Score_option=_PSc2,(Hea03_09/Hea03_credits)*Hea03_user,(Hea03_09/Hea03_credits)*Hea03_tot)) -> 0
F243: Total BREEAM innovation credits achieved | H243: N/A
F245: Minimum standard(s) level | H245: N/A
B247: Comments/notes:
B249: Hea04 Water Quality
F251: No. of BREEAM credits available | H251: 1 | N251: Available contribution to overall score | P251: =(BP_33/BP_02)*Hea04_credits -> 0.01076923077
F253: No. of BREEAM innovation credits available | H253: 0 | N253: Minimum standards applicable | P253: Yes
B254: Assessment Criteria | J254: Compliant? | L254: Credits available | N254: Credits achieved | P254: Shell & Core option?
H256: Will water systems comply with relevant best practice standards for microbial contamination? | J256: No | L256: 1 | N256: =IF(AND(ADBT0=ADBT8,Hea04_01=AIS_Yes,OR(Hea04_02=AIS_Yes,Hea04_02=AIS_NA)),1,IF(AND(Hea04_01=AIS_Yes,(OR(Hea04_02=AIS_Yes,Hea04_02=AIS_NA)),Hea04_03=AIS_Yes,(Hea04_14=AIS_Yes)),Hea04_04,IF(AND(Hea04_01=AIS_Yes,(OR(Hea04_02=AIS_Yes,Hea04_02=AIS_NA)),Hea04_03=AIS_Yes,Hea04_14=AIS_option02),Hea04_04*0.5,0))) -> 0 | P256: N/A | Q256: =IF(Hea04_01=AIS_No,AIS_statement19,"") -> Note: Compliance with this item is a minimum standard for achieving any BREEAM rating level (it is not necessary to achieve the credit to comply with the minimum standards).
H257: Where humidification is to be provided, will a failsafe humidification system be specified? | J257: No | P257: N/A
H258: Will a wholesome supply of accessible, clean and fresh drinking water be supplied for building users? | J258: No | P258: N/A | Q258: =IF(OR(ADPT=ADPT02,ADPT=ADPT04),IF(OR(Hea04_06=AIS_option02,Hea04_07=AIS_option02,Hea04_08=AIS_option02),AIS_statement79,""),"") -> 
F260: Total BREEAM credits achieved | H260: =IF(ISERROR(N256), 0, N256) -> 0
F262: Total contribution to overall building score | H262: =IF(Score_option=_PSc2,(Hea04_12/Hea04_credits)*Hea04_user,(Hea04_12/Hea04_credits)*Hea04_tot) -> 0
F264: Total BREEAM innovation credits achieved | H264: N/A
F266: Minimum standard(s) level | H266: =VLOOKUP(MinSt_06,AIS_MinSt_benchmarks,2,FALSE) -> Unclassified
B268: Comments/notes:
B270: Hea05 Acoustic Performance
F272: No. of BREEAM credits available | H272: =IF(ADBT0=ADBT8,4,IF(ADBT0<>ADBT8,2,0)) -> 2 | N272: Available contribution to overall score | P272: =(BP_33/BP_02)*Hea05_credits -> 0.02153846154
F274: No. of BREEAM innovation credits available | H274: 0 | N274: Minimum standards applicable | P274: No
H276: Will a suitably qualified acoustician be appointed to provide appropriate design advice? | J276: No
B278: 05a - Assessment Criteria - Non Residential | J278: Compliant? | L278: Credits available | N278: Credits achieved | P278: Shell & Core option?
H279: Will the building meet the relevant ambient noise & sound insulation requirements? | J279: No | L279: =IF(ADBT0<>ADBT8,1,0) -> 1 | N279: =IF(AND(ADBT0<>ADBT8,Hea05_PreReq=AIS_Yes,Hea05_01=AIS_Yes),1,0) -> 0 | P279: N/A
H280: Will the building meet the relevant reverberation times? | J280: No | L280: =IF(ADBT0<>ADBT8,1,0) -> 1 | N280: =IF(AND(ADBT0<>ADBT8,Hea05_PreReq=AIS_Yes,Hea05_02=AIS_Yes),1,0) -> 0 | P280: N/A | Q280: =IF(AND(Hea05_02=AIS_Yes,Hea05_06=""),AIS_statement84,"") -> 
B283: 05b - Assessment Criteria - Residential | J283: Compliant? | L283: Credits available | N283: Credits achieved
H284: Will the building meet the relevant ambient noise & sound insulation requirements? | J284: Yes | L284: =IF(AND(ADBT0=ADBT8,Hea05_PreReq=AIS_Yes),4,0) -> 0 | M284: → | N284: 0 | Q284: =IF(AND(Hea05_01b=AIS_Yes,Hea05_PreReq=AIS_Yes,N284=""),"Enter Credits achieved.","") -> 
F288: Total BREEAM credits achieved | H288: =IF(ISERROR(Hea05_Tot_Err), 0, Hea05_Tot_Err) -> 0
F290: Total contribution to overall building score | H290: =IF(Score_option=_PSc2,(Hea05_07/Hea05_credits)*Hea05_user,(Hea05_07/Hea05_credits)*Hea05_tot) -> 0
F292: Total BREEAM innovation credits achieved | H292: N/A
F294: Minimum standard(s) level | H294: N/A
B296: Comments/notes:
B298: Hea06 Safe Access
H299: =IF(Hea06_credits=AIS_NA,0,Hea06_credits) -> 1
F300: No. of BREEAM credits available | H300: =IF(AD_SiteAccess=AD_no,AIS_NA,1) -> 1 | N300: Available contribution to overall score | P300: =IF(Hea06_credits=AIS_NA,0,(BP_33/BP_02)*Hea03_credits) -> 0.02153846154
F302: No. of BREEAM innovation credits available | H302: 0 | N302: Minimum standards applicable | P302: No
B303: Assessment Criteria | J303: Compliant? | L303: Credits available | N303: Credits achieved | P303: Shell & Core option? | Q303: =IF(Hea06_credits=AIS_NA,AIS_statement20,"") -> 
H305: Where external site areas are present, will safe access be designed for pedestrians and cyclists? | J305: No | L305: =IF(Hea06_01=AIS_NA,AIS_NA,AS1385) -> 1 | N305: =IF(Hea06_01=AIS_Yes,Hea06_03,IF(Hea06_01=AIS_NA,AIS_NA,0)) -> 0 | P305: N/A | Q305: =IF(Hea06_01=AIS_NA,AIS_statement20,"") -> 
F307: Total BREEAM credits achieved | H307: =IF(ISERROR(Hea06_Tot_Err), 0, Hea06_Tot_Err) -> 0
F309: Total contribution to overall building score | H309: =IF(Hea06_credits=AIS_NA,"0.00%",IF(Score_option=_PSc2,(Hea06_07/Hea06_credits)*Hea06_user,(Hea06_07/Hea06_credits)*Hea06_tot)) -> 0
F311: Total BREEAM innovation credits achieved | H311: N/A
F313: Minimum standard(s) level | H313: N/A
B315: Comments/notes:
B318: Hea07 Hazards
F320: No. of BREEAM credits available | H320: =IF(AD_NaturalHazards=AD_no,AIS_NA,1) -> 1 | N320: Available contribution to overall score | P320: =IF(Hea07_Credits=AIS_NA,0,(BP_33c/BP_02c)*Hea07_Credits) -> 0.01
F322: No. of BREEAM innovation credits available | H322: 0 | N322: Minimum standards applicable | P322: No
B323: Assessment Criteria | J323: Compliant? | L323: Credits available | N323: Credits achieved | P323: Shell & Core option? | Q323: =IF(Hea07_Credits=AIS_NA,AIS_statement20b,"") -> 
H325: Will a risk assessment and appropriate mitigation be carried out for natural hazards? | J325: No | L325: =IF(Hea07_01=AIS_NA,AIS_NA,AS1385) -> 1 | N325: =IF(Hea07_01=AIS_Yes,Hea07_03,IF(Hea07_01=AIS_NA,AIS_NA,0)) -> 0 | P325: N/A
F327: Total BREEAM credits achieved | H327: =IF(ISERROR(Hea07_Tot_Err), 0, Hea07_Tot_Err) -> 0
F329: Total contribution to overall building score | H329: =IF(Hea07_Credits=AIS_NA,"0.00%",IF(Score_option=_PSc2,(Hea07_07/Hea07_Credits)*Hea07_user,(Hea07_07/Hea07_Credits)*Hea07_Tot)) -> 0
... 1131 more rows

Sheet Assessment Data (hidden)
BJ2: ='Simple Scoring Approach'!B15 -> Energy (consumption/production) | BR2: ='Simple Scoring Approach'!B25 -> Greenhouse Gas Emissions | CC2: ='Simple Scoring Approach'!B38 -> Emissions to outdoor air, soil and water | CE2: ='Simple Scoring Approach'!B41 -> Use of freshwater resource | CI2: ='Simple Scoring Approach'!B46 -> Construction waste and recovery | CY2: ='Simple Scoring Approach'!B63 -> Sourcing of materials | CZ2: ='Simple Scoring Approach'!B66 -> Thermal comfort | DA2: ='Simple Scoring Approach'!B70 -> Indoor Air Quality
A3: ='Assessment Details'!B5 -> General information | F3: ='Assessment Details'!B20 -> Building details | AN3: ='Assessment Details'!B105 -> Project team details | AX3: ='Simple Scoring Approach'!B4 -> Overall Building Performance | AZ3: ='Simple Scoring Approach'!#REF! ->  | BJ3: ='Simple Scoring Approach'!F17 -> Building operation[1] | BL3: ='Simple Scoring Approach'!F19 -> Energy production[2] | BN3: ='Simple Scoring Approach'!F23 -> Transport[4] | BP3: ='Simple Scoring Approach'!D21 -> Construction process[3] | BR3: ='Simple Scoring Approach'!F27 -> Building operation[1] | BT3: ='Simple Scoring Approach'!F33 -> Construction process[3] | BV3: ='Simple Scoring Approach'!F35 -> Transport[4] | BX3: ='Simple Scoring Approach'!F29 -> Embodied[5] | CA3: ='Simple Scoring Approach'!F37 -> Direct GHG emissions - Refrigerants[5] | CC3: ='Simple Scoring Approach'!F40 -> Nitrogen Oxides (NOx)[6] | CE3: ='Simple Scoring Approach'!F43 -> Building operation[7] | CG3: ='Simple Scoring Approach'!F45 -> Construction process[8] | CI3: ='Simple Scoring Approach'!F48 -> Construction waste generated[9] | CK3: ='Simple Scoring Approach'!F50 -> Construction waste diverted from landfill[10] | CM3: ='Simple Scoring Approach'!F52 -> Demolition waste diverted from landfill[11] | CO3: ='Simple Scoring Approach'!F54 -> Demolition waste to disposal[11] | CQ3: ='Simple Scoring Approach'!F56 -> Material for re-use[12] | CS3: ='Simple Scoring Approach'!F58 -> Material for recycling[12] | CU3: ='Simple Scoring Approach'!F60 -> Material for energy recovery[12] | CW3: ='Simple Scoring Approach'!F62 -> Hazardous waste to disposal[12] | CY3: ='Simple Scoring Approach'!F65 -> Materials responsibly sourced[11] | CZ3: ='Simple Scoring Approach'!F67 -> Predicted percentage dissatisfied (PPD)[12] | DA3: ='Simple Scoring Approach'!F72 -> Formaldehyde concentration level[13] | DB3: ='Simple Scoring Approach'!F74 -> Total volatile organic compound concentration[13]
A4: ='Assessment Details'!H7 -> BRE Assessment reference no. | B4: ='Assessment Details'!H9 -> Client name | C4: ='Assessment Details'!H11 -> Building end user/occupier | D4: ='Assessment Details'!H13 -> Assessor name | E4: ='Assessment Details'!H15 -> Assessor organisation | F4: ='Assessment Details'!H22 -> Building name | G4: ='Assessment Details'!H24 -> Building address | K4: ='Assessment Details'!H32 -> N/A in International Tool | L4: ='Assessment Details'!H34 -> Post code | M4: ='Assessment Details'!H38 -> Building type (main description) | N4: ='Assessment Details'!H40 -> Building type (sub-group) | O4: ='Assessment Details'!H42 -> Building floor area (GIA) m2 | P4: ='Assessment Details'!H44 -> Building floor area (NIA) m2 | Q4: ='Assessment Details'!H46 -> BREEAM scheme | R4: ='Assessment Details'!H48 -> BREEAM version | S4: ='Assessment Details'!H50 -> BREEAM International New Construction Technical Manual issue number | T4: ='Assessment Details'!H52 -> Project type | U4: ='Assessment Details'!H54 -> Assessment stage | V4: ='Assessment Details'!H56 -> Location type | W4: ='Assessment Details'!H58 -> Climatic zone | X4: ='Assessment Details'!H60 -> Building services - heating system type | Y4: ='Assessment Details'!H62 -> Building services - cooling system type | Z4: ='Assessment Details'!H64 -> Building services - domestic hot water system type | AA4: ='Assessment Details'!H66 -> Building service - controls | AB4: ='Assessment Details'!H68 -> If applicable, does this industrial building have a heated or cooled operational area? | AC4: ='Assessment Details'!H78 -> Commercial/industrial refrigeration and cold storage systems | AD4: ='Assessment Details'!H84 -> Internal or external planting and/or soft landscaping | AE4: ='Assessment Details'!H90 -> Building user transportation systems (lifts and/or escalators) | AF4: ='Assessment Details'!H92 -> Laboratory function/area and size category | AG4: ='Assessment Details'!H94 -> Laboratory containment level | AH4: ='Assessment Details'!H96 -> Fume cupboard(s) and/or other containment devices | AI4: ='Assessment Details'!H88 -> Vehicle Wash System | AJ4: ='Assessment Details'!H98 -> If applicable, will this healthcare building house inpatients? | AK4: ='Assessment Details'!#REF! ->  | AL4: ='Assessment Details'!H100 -> If applicable, does this building contain areas requiring SAP assessment? | AM4: ='Assessment Details'!H102 -> If SAP used, what proportion of the building's total floor area (GIA) does it apply to? | AN4: ='Assessment Details'!H107 -> Developer | AO4: ='Assessment Details'!H109 -> Principal contractor | AP4: ='Assessment Details'!H111 -> Architect | AQ4: ='Assessment Details'!H113 -> Project management | AR4: ='Assessment Details'!H115 -> Building services | AS4: ='Assessment Details'!H117 -> BREEAM Accredited Professional | AT4: ='Assessment Details'!H119 -> Other project team member 1 | AU4: ='Assessment Details'!H121 -> Other project team member 2 | AV4: ='Assessment Details'!H123 -> Other project team member 3 | AW4: ='Assessment Details'!H125 -> Other project team member 4 | AX4: ='Simple Scoring Approach'!D8 -> Indicative BREEAM rating | AY4: ='Simple Scoring Approach'!D10 -> Indicative total score | AZ4: ='Simple Scoring Approach'!#REF! ->  | BA4: ='Simple Scoring Approach'!#REF! ->  | BB4: ='Simple Scoring Approach'!#REF! ->  | BC4: ='Simple Scoring Approach'!#REF! ->  | BD4: ='Simple Scoring Approach'!#REF! ->  | BE4: ='Simple Scoring Approach'!#REF! ->  | BF4: ='Simple Scoring Approach'!#REF! ->  | BG4: ='Simple Scoring Approach'!#REF! ->  | BH4: ='Simple Scoring Approach'!#REF! ->  | BI4: ='Simple Scoring Approach'!#REF! ->  | BJ4: ='Simple Scoring Approach'!L15 -> Intensity | BK4: ='Simple Scoring Approach'!P15 -> Total | BL4: =$BJ$4 -> Intensity | BM4: =$BK$4 -> Total | BN4: =$BJ$4 -> Intensity | BO4: =$BK$4 -> Total | BP4: =$BJ$4 -> Intensity | BQ4: =$BK$4 -> Total | BR4: =$BJ$4 -> Intensity | BS4: =$BK$4 -> Total | BT4: =$BJ$4 -> Intensity | BU4: =$BK$4 -> Total | BV4: =$BJ$4 -> Intensity | BW4: =$BK$4 -> Total | BX4: =$BJ$4 -> Intensity | BY4: =$BK$4 -> Total | BZ4: ='Simple Scoring Approach'!P31 -> Proportion of applicable main building elements that data reported covers | CA4: =$BJ$4 -> Intensity | CB4: =$BK$4 -> Total | CC4: =$BJ$4 -> Intensity | CD4: =$BK$4 -> Total | CE4: =$BJ$4 -> Intensity | CF4: =$BK$4 -> Total | CG4: =$BJ$4 -> Intensity | CH4: =$BK$4 -> Total | CI4: =$BJ$4 -> Intensity | CJ4: =$BK$4 -> Total | CK4: =$BJ$4 -> Intensity | CL4: =$BK$4 -> Total | CM4: =$BJ$4 -> Intensity | CN4: =$BK$4 -> Total | CO4: =$BJ$4 -> Intensity | CP4: =$BK$4 -> Total | CQ4: =$BJ$4 -> Intensity | CR4: =$BK$4 -> Total | CS4: =$BJ$4 -> Intensity | CT4: =$BK$4 -> Total | CU4: =$BJ$4 -> Intensity | CV4: =$BK$4 -> Total | CW4: =$BJ$4 -> Intensity | CX4: =$BK$4 -> Total | CY4: =$BK$4 -> Total | CZ4: =$BJ$4 -> Intensity | DA4: =$BJ$4 -> Intensity | DB4: =$BJ$4 -> Intensity
A5: No./Text | B5: Text | C5: Text | D5: Text | E5: Text | F5: Text | G5: Text | H5: Text | I5: Text | J5: Text | K5: Text | L5: Text | M5: Text | N5: Text | O5: No. | P5: No. | Q5: Text | R5: Text | S5: No. | T5: Text | U5: Text | V5: Text | W5: Text | X5: Text | Y5: Text | Z5: Text | AA5: Text | AB5: Text | AC5: Text | AD5: Text | AE5: Text | AF5: Text | AG5: Text | AH5: Text | AI5: Text | AJ5: Text | AK5: Text | AL5: Text | AM5: % | AN5: Text | AO5: Text | AP5: Text | AQ5: Text | AR5: Text | AS5: Text | AT5: Text | AU5: Text | AV5: Text | AW5: Text | AX5: Text | AY5: % | AZ5: % | BA5: % | BB5: % | BC5: % | BD5: % | BE5: % | BF5: % | BG5: % | BH5: % | BI5: % | BJ5: ='Simple Scoring Approach'!N17 -> kWh/m2/yr | BK5: ='Simple Scoring Approach'!R17 -> kWh/yr | BL5: ='Simple Scoring Approach'!N19 -> kWh/m2/yr | BM5: ='Simple Scoring Approach'!R19 -> kWh/yr | BN5: ='Simple Scoring Approach'!N23 -> INA | BO5: ='Simple Scoring Approach'!R23 -> INA | BP5: ='Simple Scoring Approach'!N21 -> INA | BQ5: ='Simple Scoring Approach'!R21 -> INA | BR5: ='Simple Scoring Approach'!N27 -> kgCO2eq/m2/yr | BS5: ='Simple Scoring Approach'!R27 -> kgCO2eq/yr | BT5: ='Simple Scoring Approach'!N33 -> INA | BU5: ='Simple Scoring Approach'!R33 -> INA | BV5: ='Simple Scoring Approach'!N35 -> INA | BW5: ='Simple Scoring Approach'!R35 -> INA | BX5: ='Simple Scoring Approach'!N29 -> kgCO2eq/m2 | BY5: ='Simple Scoring Approach'!R29 -> kgCO2eq | BZ5: % | CA5: ='Simple Scoring Approach'!N37 -> KgCO2eq/kWcoolth | CB5: ='Simple Scoring Approach'!R37 -> KgCO2eq | CC5: ='Simple Scoring Approach'!N40 -> mg/kWh | CD5: ='Simple Scoring Approach'!R40 -> kg/yr | CE5: ='Simple Scoring Approach'!N43 -> INA | CF5: ='Simple Scoring Approach'!R43 -> INA | CG5: ='Simple Scoring Approach'!N45 -> INA | CH5: ='Simple Scoring Approach'!R45 -> INA | CI5: ='Simple Scoring Approach'!N48 -> m3/100m2 | CJ5: ='Simple Scoring Approach'!R48 -> tonnes | CK5: ='Simple Scoring Approach'!N50 -> m3/100m2 | CL5: ='Simple Scoring Approach'!R50 -> tonnes | CM5: ='Simple Scoring Approach'!N52 -> % | CN5: ='Simple Scoring Approach'!R52 -> INA | CO5: ='Simple Scoring Approach'!N54 -> % | CP5: ='Simple Scoring Approach'!R54 -> INA | CQ5: ='Simple Scoring Approach'!N56 -> tonnes/100m2 | CR5: ='Simple Scoring Approach'!R56 -> tonnes | CS5: ='Simple Scoring Approach'!N58 -> tonnes/100m2 | CT5: ='Simple Scoring Approach'!R58 -> tonnes | CU5: ='Simple Scoring Approach'!N60 -> tonnes/100m2 | CV5: ='Simple Scoring Approach'!R60 -> tonnes | CW5: ='Simple Scoring Approach'!N62 -> tonnes/100m2 | CX5: ='Simple Scoring Approach'!R62 -> tonnes | CY5: ='Simple Scoring Approach'!N65 -> % | CZ5: ='Simple Scoring Approach'!N67 -> % | DA5: ='Simple Scoring Approach'!N72 -> INA | DB5: ='Simple Scoring Approach'!N74 -> INA
A6: =AD_ref -> 0 | B6: =AD_client -> 0 | C6: =AD_Builduser -> 0 | D6: =AD_assessor -> 0 | E6: =AD_Assessor_org -> 0 | F6: =ADBN -> 0 | G6: =AD_Add01 -> 0 | H6: =AD_Add02 -> 0 | I6: =AD_Add03 -> 0 | J6: =AD_Add04 -> 0 | K6: =AD_County -> 0 | L6: =AD_PC -> 0 | M6: =ADBT0 -> 0 | N6: =ADBT_sub01 -> 0 | O6: =AD_GIA -> 0 | P6: =AD_NIFA -> 0 | Q6: =AD_scheme -> New Construction | R6: =AD_version -> 2013 (SD5075) | S6: =AD_SchIss -> 0 | T6: =ADPT -> 0 | U6: =ADAS0 -> Pre-assessment | V6: =AD_Location -> 0 | W6: =AD_climate -> 0 | X6: =AD_heat -> 0 | Y6: =AD_cool -> 0 | Z6: =AD_DHWS -> 0 | AA6: =AD_controls -> 0 | AB6: =ADIND_option02 -> 0 | AC6: =AD_refrig -> 0 | AD6: =AD_Landscape -> 0 | AE6: =AD_Trans -> 0 | AF6: =AD_Labsize -> 0 | AG6: =AD_catlevel -> 0 | AH6: =ADFume_option01 -> 0 | AI6: =AD_Vehiclewash -> 0 | AJ6: =ADHC_option01 -> 0 | AK6: =ADIND_option01 ->  | AL6: =AD_MultiRes_option01 -> Option not applicable to building type | AM6: =AD_MultiRes_option02 -> Option not applicable to building type | AN6: =AD_Developer -> 0 | AO6: =AD_Contractor -> 0 | AP6: =AD_Architect -> 0 | AQ6: =AD_Projman -> 0 | AR6: =AD_Buildserve -> 0 | AS6: =AD_BREEAMAP -> 0 | AT6: =AD_Other01 -> 0 | AU6: =AD_Other02 -> 0 | AV6: =AD_other03 -> 0 | AW6: =AD_Other04 -> 0 | AX6: =BP_BREEAMRating ->  | AY6: =BP_OverallScore ->  | AZ6: =BP_Man_score -> 0 | BA6: =BP_HW_score ->  | BB6: =BP_Energy_score -> 0 | BC6: =BP_Trans_score -> 0 | BD6: =BP_Water_score -> 0 | BE6: =BP_Materials_score -> 0 | BF6: =BP_Waste_Score -> 0 | BG6: =BP_LUE_score -> 0 | BH6: =BP_Pollution_score ->  | BI6: =BP_Innovation_score -> 0 | BJ6: =BP_KPI01 -> INA | BK6: =BP_KPI02 -> INA | BL6: =BP_KPI07 -> INA | BM6: =BP_KPI08 -> INA | BN6: =BP_KPI05 -> INA | BO6: =BP_KPI06 -> INA | BP6: =BP_KPI03 -> INA | BQ6: =BP_KPI04 -> INA | BR6: =BP_KPI09 -> INA | BS6: =BP_KPI10 -> INA | BT6: =BP_KPI11 -> INA | BU6: =BP_KPI12 -> INA | BV6: =BP_KPI13 -> INA | BW6: =BP_KPI14 -> INA | BX6: =BP_KPI15 -> INA | BY6: =BP_KPI16 -> INA | BZ6: =BP_KPI49 -> INA | CA6: =BP_KPI17 -> INA | CB6: =BP_KPI18 -> INA | CC6: =BP_KPI21 -> INA | CD6: =BP_KPI22 ->  | CE6: =BP_KPI23 -> INA | CF6: =BP_KPI24 -> INA | CG6: =BP_KPI25 -> INA | CH6: =BP_KPI26 -> INA | CI6: =BP_KPI27 -> 1 | CJ6: =BP_KPI28 -> INA | CK6: =BP_KPI29 -> 0 | CL6: =BP_KPI30 -> INA | CM6: =BP_KPI31 -> INA | CN6: =BP_KPI32 -> INA | CO6: =BP_KPI33 -> INA | CP6: =BP_KPI34 -> INA | CQ6: =BP_KPI37 -> INA | CR6: =BP_KPI38 -> INA | CS6: =BP_KPI39 -> INA | CT6: =BP_KPI40 -> INA | CU6: =BP_KPI41 -> INA | CV6: =BP_KPI42 -> INA | CW6: =BP_KPI35 -> INA | CX6: =BP_KPI36 -> INA | CY6: =BP_KPI43 -> INA | CZ6: =BP_KPI45 -> INA | DA6: =BP_KPI47 -> - | DB6: =BP_KPI48 -> INA
A8: =Man_01 -> Man01 Sustainable Procurement | M8: =Man_02 -> Man02 Responsible Construction Practices | R8: =Man_03 -> Man03 Construction Site Impacts | AA8: =Man_04 -> Man04 Stakeholder Participation | AG8: =Man_05 -> Man05 Life cycle cost and service life planning | AL8: =Hea_01 -> Hea01 Visual Comfort | AU8: =Hea_02 -> Hea02 Indoor Air Quality | BC8: =Hea_03 -> Hea03 Thermal Comfort | BG8: =Hea_04 -> Hea04 Water Quality | BL8: ='Detailed Scoring Approach'!B270 -> Hea05 Acoustic Performance | BP8: =Hea_06 -> Hea06 Safe Access | BT8: =Ene_01 -> Ene01 Energy Efficiency | CB8: Ene01 modelling data (SBEM or SAP): note where both SAP and SBEM are used on an assessed project this data relates to SBEM (non-dwellings) data only (the columns further on contain the SAP data) | CN8: Ene01: note where both SAP and SBEM are used on an assessed project this data relates to SAP (non-dwellings) data. | DA8: =Ene_02 -> Ene02 Energy Monitoring | DE8: =Ene_03 -> Ene03 External Lighting | DH8: =Ene_04 -> Ene04 Low and Zero Carbon Technology | DT8: =Ene_05 -> Ene05 Energy Efficient Cold Storage | DZ8: =Ene_06 -> Ene06 Energy Efficient Transportation Systems | ED8: =Ene_07 -> Ene07 Energy Efficient Laboratory Systems | ES8: =Ene_08 -> Ene08 Energy Efficient Equipment | EV8: Equipment present | FD8: Equipment defined as significant majority contributor | FL8: =Ene_09 -> Ene09 Drying Space | FO8: =Tra_01 -> Tra01 Public Transport Accessibility | FV8: =Tra_02 -> Tra02 Proximity to Amenities | FY8: =Tra_03 -> Tra03 Alternative modes of transport | GF8: =Tra_04 -> Tra04 Maximum Car Parking Capacity | GI8: =Tra_05 -> Tra05 Travel Plan | GL8: =Wat_01 -> Wat01 Water Consumption | GX8: =Wat_02 -> Wat02 Water Monitoring | HD8: =Wat_03 -> Wat03 Water Leak Detection and Prevention | HH8: =Wat_04 -> Wat04 Water Efficient Equipment
A9: ='Detailed Scoring Approach'!F37 -> Total BREEAM credits achieved | B9: ='Detailed Scoring Approach'!F39 -> Total contribution to overall building score | C9: ='Detailed Scoring Approach'!F41 -> Total BREEAM innovation credits achieved | D9: ='Detailed Scoring Approach'!H25 -> Will roles, responsibilities and a training schedule be defined in accordance with BREEAM? | E9: ='Detailed Scoring Approach'!H26 -> Will a BREEAM AP be appointed before concept design stage & performance targets contractually agreed? | F9: ='Detailed Scoring Approach'!H27 -> Will a BREEAM AP be appointed to monitor and report progress during feasibility & design stage? | G9: ='Detailed Scoring Approach'!H28 -> BREEAM AP appointed to monitor & report progress during pre-construction to post-practical completion? | H9: ='Detailed Scoring Approach'!H29 -> Will a thermographic survey or air leakage test be conducted and any defects uncovered remedied? | I9: ='Detailed Scoring Approach'!H30 -> Will compliant commissioning of building services be carried out? | J9: ='Detailed Scoring Approach'!H31 -> Will national best practice commissioning codes be followed? | K9: ='Detailed Scoring Approach'!H32 -> Will compliant seasonal commissioning of building services be carried out? | L9: ='Detailed Scoring Approach'!H35 -> Exemplary level: Will occupant satisfaction, water/energy be recorded/reported for 3 yrs post construction? | M9: ='Detailed Scoring Approach'!F58 -> Total BREEAM credits achieved | N9: ='Detailed Scoring Approach'!F62 -> 0 | O9: ='Detailed Scoring Approach'!F60 -> Total contribution to overall building score | P9: ='Detailed Scoring Approach'!H54 -> 0 | Q9: ='Detailed Scoring Approach'!H56 -> Which level of responsible construction practices will be achieved by the contractor? | R9: ='Detailed Scoring Approach'!F105 -> Total BREEAM credits achieved | S9: ='Detailed Scoring Approach'!F107 -> Total contribution to overall building score | T9: ='Detailed Scoring Approach'!H76 -> Will site energy consumption be metered/monitored? | U9: ='Detailed Scoring Approach'!H77 -> Will site water consumption be metered/monitored? | V9: ='Detailed Scoring Approach'!H78 -> Will the transport of construction materials and waste to/from site be measured/monitored? | W9: ='Detailed Scoring Approach'!H79 -> Will all site timber be from legally harvested and legally traded sources? | X9: ='Detailed Scoring Approach'!H80 -> Will/does the principal contractor operate a compliant Environmental Management System? | Y9: ='Detailed Scoring Approach'!H81 -> Will the principal contractor adopt best practice pollution prevention policies & procedures? | Z9: Construction site management credit achieved | AA9: ='Detailed Scoring Approach'!F134 -> Total BREEAM credits achieved | AB9: ='Detailed Scoring Approach'!F136 -> Total contribution to overall building score | AC9: ='Detailed Scoring Approach'!H122 -> Will an appropriate level of consultation activities be undertaken? | AD9: ='Detailed Scoring Approach'!H123 -> Will an access statement be developed and appropriate building user facilities provided? | AE9: ='Detailed Scoring Approach'!H124 -> Will building user guides and relevant user information be provided? | AF9: ='Detailed Scoring Approach'!H125 -> Will a post occupancy evaluation assessment be undertaken and information disseminated? | AG9: ='Detailed Scoring Approach'!F155 -> Total BREEAM credits achieved | AH9: ='Detailed Scoring Approach'!F157 -> Total contribution to overall building score | AI9: ='Detailed Scoring Approach'!H151 -> Will a feasibility stage Life Cycle Cost (LCC) analysis be commissioned and completed? | AJ9: ='Detailed Scoring Approach'!H152 -> Will a strategic and system level LCC be commissioned and completed? | AK9: ='Detailed Scoring Approach'!H153 -> Will a technical design LCC to be commissioned and completed? | AL9: ='Detailed Scoring Approach'!F181 -> Total BREEAM credits achieved | AM9: ='Detailed Scoring Approach'!F183 -> Total contribution to overall building score | AN9: ='Detailed Scoring Approach'!F185 -> Total BREEAM innovation credits achieved | AO9: ='Detailed Scoring Approach'!H175 -> Will all fluorescent lamps be fitted with high frequency ballasts? | AP9: ='Detailed Scoring Approach'!H176 -> Will all relevant building areas be designed to achieve the appropriate daylight criteria? | AQ9: ='Detailed Scoring Approach'!H177 -> Will the design provide adequate glare control and view out for building users? | AR9: ='Detailed Scoring Approach'!H178 -> Will internal/external lighting be specified in accordance with the relevant best practice standards? | AS9: ='Detailed Scoring Approach'!H179 -> 0 | AT9: ='Detailed Scoring Approach'!#REF! ->  | AU9: ='Detailed Scoring Approach'!F215 -> Total BREEAM credits achieved | AV9: ='Detailed Scoring Approach'!F217 -> Total contribution to overall building score | AW9: ='Detailed Scoring Approach'!H199 -> Will an air quality plan be produced? | AX9: ='Detailed Scoring Approach'!H201 -> Will the relevant products be specified to meet the VOC testing and emission levels required? | AY9: ='Detailed Scoring Approach'!H202 -> Will formaldehyde and total VOC levels be measured post construction? | AZ9: ='Detailed Scoring Approach'!H203 -> Will the building be designed to, or have the potential to provide, natural ventilation? | BA9: ='Detailed Scoring Approach'!H204 -> Fume cupboards (manufacture and installation) | BB9: ='Detailed Scoring Approach'!H206 -> Containment Level 2 and 3 labs (ventilation, pollution and safety) | BC9: ='Detailed Scoring Approach'!F239 -> Total BREEAM credits achieved | BD9: ='Detailed Scoring Approach'!F241 -> Total contribution to overall building score | BE9: ='Detailed Scoring Approach'!H232 -> Will thermal modelling of the design be carried out? | BF9: ='Detailed Scoring Approach'!H233 -> Will the modelling inform the development of a thermal zoning and control strategy? | BG9: ='Detailed Scoring Approach'!F260 -> Total BREEAM credits achieved | BH9: ='Detailed Scoring Approach'!F262 -> Total contribution to overall building score | BI9: ='Detailed Scoring Approach'!H256 -> Will water systems comply with relevant best practice standards for microbial contamination? | BJ9: ='Detailed Scoring Approach'!H257 -> Where humidification is to be provided, will a failsafe humidification system be specified? | BK9: ='Detailed Scoring Approach'!H258 -> Will a wholesome supply of accessible, clean and fresh drinking water be supplied for building users? | BL9: ='Detailed Scoring Approach'!F288 -> Total BREEAM credits achieved | BM9: ='Detailed Scoring Approach'!F290 -> Total contribution to overall building score | BN9: ='Detailed Scoring Approach'!H279 -> Will the building meet the relevant ambient noise & sound insulation requirements? | BO9: ='Detailed Scoring Approach'!H280 -> Will the building meet the relevant reverberation times? | BP9: ='Detailed Scoring Approach'!F307 -> Total BREEAM credits achieved | BQ9: ='Detailed Scoring Approach'!F309 -> Total contribution to overall building score | BR9: ='Detailed Scoring Approach'!H305 -> Where external site areas are present, will safe access be designed for pedestrians and cyclists? | BS9: ='Detailed Scoring Approach'!#REF! ->  | BT9: ='Detailed Scoring Approach'!F416 -> Total BREEAM credits achieved | BU9: ='Detailed Scoring Approach'!F418 -> Total contribution to overall building score | BV9: ='Detailed Scoring Approach'!F420 -> Total BREEAM innovation credits achieved | BW9: Regulated energy consumption met via carbon neutral sources | BX9: ='Detailed Scoring Approach'!N413 -> Is the building designed to be 'carbon negative' ? | BY9: ='Detailed Scoring Approach'!N414 -> If the building is defined as 'carbon negative' what is the total (modelled) renewable/carbon neutral energy generated and exported | BZ9: Energy modelling outputs used | CA9: Area weighted percentage improvement on Target Emission Rate | CB9: ='Detailed Scoring Approach'!F394 -> Notional building energy demand | CC9: ='Detailed Scoring Approach'!F395 -> Actual building energy demand | CD9: ='Detailed Scoring Approach'!F396 -> Notional building primary energy consumption | CE9: ='Detailed Scoring Approach'!F397 -> Actual building primary energy consumption | CF9: ='Detailed Scoring Approach'!F398 -> Notional Building Emission Rate | CG9: ='Detailed Scoring Approach'!F399 -> Actual Building Emission Rate | CH9: ='Detailed Scoring Approach'!F400 -> Actual Bdg Emission Rate improvement over Notional Building | CI9: ='Detailed Scoring Approach'!F401 -> Demand Energy Performance Ratio (EPR) | CJ9: ='Detailed Scoring Approach'!F402 -> Consumption Energy Performance Ratio (EPR) | CK9: ='Detailed Scoring Approach'!F403 -> CO2 Energy Performance Ratio (EPR) | CL9: ='Detailed Scoring Approach'!F404 -> Overall Building Energy Performance Ratio (EPRNC) | CM9: Credits achieved for SBEM modelled outputs (Where SAP and SBEM used) | CN9: ='Assessment Details'!H102 -> If SAP used, what proportion of the building's total floor area (GIA) does it apply to? | CO9: ='Detailed Scoring Approach'!F394 -> Notional building energy demand | CP9: ='Detailed Scoring Approach'!F395 -> Actual building energy demand | CQ9: ='Detailed Scoring Approach'!F396 -> Notional building primary energy consumption | CR9: ='Detailed Scoring Approach'!F397 -> Actual building primary energy consumption | CS9: ='Detailed Scoring Approach'!F398 -> Notional Building Emission Rate | CT9: ='Detailed Scoring Approach'!F399 -> Actual Building Emission Rate | CU9: ='Detailed Scoring Approach'!F400 -> Actual Bdg Emission Rate improvement over Notional Building | CV9: ='Detailed Scoring Approach'!F401 -> Demand Energy Performance Ratio (EPR) | CW9: ='Detailed Scoring Approach'!F402 -> Consumption Energy Performance Ratio (EPR) | CX9: ='Detailed Scoring Approach'!F403 -> CO2 Energy Performance Ratio (EPR) | CY9: ='Detailed Scoring Approach'!F404 -> Overall Building Energy Performance Ratio (EPRNC) | CZ9: Credits achieved for SAP modelled outputs (Where SAP and SBEM used) | DA9: ='Detailed Scoring Approach'!F447 -> Total BREEAM credits achieved | DB9: ='Detailed Scoring Approach'!F449 -> Total contribution to overall building score | DC9: ='Detailed Scoring Approach'!H434 -> Will a BMS or sub-meters be specified to monitor energy use from major building services systems? | DD9: ='Detailed Scoring Approach'!H435 -> Will a BMS or sub-meters be specified to monitor energy use by tenant/building function areas? | DE9: ='Detailed Scoring Approach'!F466 -> Total BREEAM credits achieved | DF9: ='Detailed Scoring Approach'!F468 -> Total contribution to overall building score | DG9: ='Detailed Scoring Approach'!H464 -> Will external light fittings and controls be specified in accordance with the BREEAM criteria? | DH9: ='Detailed Scoring Approach'!F487 -> Total BREEAM credits achieved | DI9: ='Detailed Scoring Approach'!F489 -> Total contribution to overall building score | DJ9: ='Detailed Scoring Approach'!F491 -> Total BREEAM innovation credits achieved | DK9: Feasibility study | DL9: ='Detailed Scoring Approach'!#REF! ->  | DM9: Feasibility study credits achieved | DN9: Percentage net reduction in CO2 emissions (for scoping period) | DO9: Credits achieved for percentage net reduction in CO2 emissions (for scoping period) | DP9: ='Detailed Scoring Approach'!#REF! ->  | DQ9: ='Detailed Scoring Approach'!#REF! ->  | DR9: Free Cooling stategy | DS9: Free Cooling strategy credits | DT9: ='Detailed Scoring Approach'!F508 -> Total BREEAM credits achieved | DU9: ='Detailed Scoring Approach'!F510 -> Total contribution to overall building score | DV9: ='Detailed Scoring Approach'!F512 -> Total BREEAM innovation credits achieved | DW9: ='Detailed Scoring Approach'!H504 -> Will the refrigeration system be designed, installed & commissioned in accordance with BREEAM criteria? | DX9: ='Detailed Scoring Approach'!H505 -> Will the components meet published energy efficiency criteria? | DY9: ='Detailed Scoring Approach'!H506 -> Will the refrigeration system demonstrate a saving in indirect greenhouse gas emissions? | DZ9: ='Detailed Scoring Approach'!F528 -> Total BREEAM credits achieved | EA9: ='Detailed Scoring Approach'!F530 -> Total contribution to overall building score | EB9: ='Detailed Scoring Approach'!H525 -> Will an analysis be carried out to determine the optimum number and size of lifts/escalators? | EC9: ='Detailed Scoring Approach'!H526 -> Will the appropriate energy efficient transportation design features be included? | ED9: ='Detailed Scoring Approach'!F561 -> Total BREEAM credits achieved | EE9: ='Detailed Scoring Approach'!F563 -> Total contribution to overall building score | EF9: ='Detailed Scoring Approach'!H546 -> Fume cupboards and/or other containment device specification | EG9: ='Detailed Scoring Approach'!H548 -> Best Practice Energy Practices in Laboratories (table 6-2) | EH9: ='Detailed Scoring Approach'!H549 -> Item b) Fan power | EI9: ='Detailed Scoring Approach'!H550 -> Item c) Fume cupboard volume flow rates | EJ9: ='Detailed Scoring Approach'!H551 -> Item d) Grouping / isolation of high filtration/ventilation activities | EK9: ='Detailed Scoring Approach'!H552 -> Item e) Energy recovery - heat | EL9: ='Detailed Scoring Approach'!H553 -> Item f) Energy recovery - cooling | EM9: ='Detailed Scoring Approach'!H554 -> Item g) Grouping of cooling loads | EN9: ='Detailed Scoring Approach'!H555 -> Item h) Free cooling | EO9: ='Detailed Scoring Approach'!H556 -> Item i) Load responsiveness | EP9: ='Detailed Scoring Approach'!H557 -> Item j) Cleanrooms | EQ9: ='Detailed Scoring Approach'!H558 -> Item k) Diversity | ER9: ='Detailed Scoring Approach'!H559 -> Item l) Room air-change rates | ES9: ='Detailed Scoring Approach'!F590 -> Total BREEAM credits achieved | ET9: ='Detailed Scoring Approach'!F592 -> Total contribution to overall building score | EU9: ='Detailed Scoring Approach'!H588 -> Will the significant majority contributor(s) to 'unregulated' energy use (above) meet the BREEAM criteria? | EV9: ='Detailed Scoring Approach'!H579 -> Small power and plug in equipment | EW9: ='Detailed Scoring Approach'!H580 -> Swimming pool | EX9: ='Detailed Scoring Approach'!H581 -> Communal laundry | EY9: ='Detailed Scoring Approach'!H582 -> Data centre | EZ9: ='Detailed Scoring Approach'!H583 -> IT-intensive operation areas | FA9: ='Detailed Scoring Approach'!H584 -> Residential areas with domestic scale appliances | FB9: ='Detailed Scoring Approach'!#REF! ->  | FC9: ='Detailed Scoring Approach'!H585 -> Kitchen and catering facilities | FD9: ='Detailed Scoring Approach'!H579 -> Small power and plug in equipment | FE9: ='Detailed Scoring Approach'!H580 -> Swimming pool | FF9: ='Detailed Scoring Approach'!H581 -> Communal laundry | FG9: ='Detailed Scoring Approach'!H582 -> Data centre | FH9: ='Detailed Scoring Approach'!H583 -> IT-intensive operation areas | FI9: ='Detailed Scoring Approach'!H584 -> Residential areas with domestic scale appliances | FJ9: ='Detailed Scoring Approach'!#REF! ->  | FK9: ='Detailed Scoring Approach'!H585 -> Kitchen and catering facilities | FL9: ='Detailed Scoring Approach'!F609 -> Total BREEAM credits achieved | FM9: ='Detailed Scoring Approach'!F611 -> Total contribution to overall building score | FN9: ='Detailed Scoring Approach'!H607 -> Will internal/external drying space and fixings be provided? | FO9: ='Detailed Scoring Approach'!F645 -> Total BREEAM credits achieved | FP9: ='Detailed Scoring Approach'!F647 -> Total contribution to overall building score | FQ9: ='Detailed Scoring Approach'!H628 -> What is the building type category (for the purpose of Tra01 issue assessment)? | FR9: ='Detailed Scoring Approach'!H631 -> Indicative public transport accessibility index: | FS9: ='Detailed Scoring Approach'!H631 -> Indicative public transport accessibility index: | FT9: ='Detailed Scoring Approach'!H632 -> Will the building have a dedicated bus service? | FU9: ='Detailed Scoring Approach'!H632 -> Will the building have a dedicated bus service? | FV9: ='Detailed Scoring Approach'!F672 -> Total BREEAM credits achieved | FW9: ='Detailed Scoring Approach'!F674 -> Total contribution to overall building score | FX9: ='Detailed Scoring Approach'!H668 -> Will the building be in close proximity of and accessible to applicable amenities? | FY9: ='Detailed Scoring Approach'!F699 -> Total BREEAM credits achieved | FZ9: ='Detailed Scoring Approach'!F701 -> Total contribution to overall building score | GA9: ='Detailed Scoring Approach'!H688 -> What is the building type category (for the purpose of Tra03 issue assessment)? | GB9: ='Detailed Scoring Approach'!#REF! ->  | GC9: ='Detailed Scoring Approach'!#REF! ->  | GD9: ='Detailed Scoring Approach'!H691 -> Please Select | GE9: ='Detailed Scoring Approach'!#REF! ->  | GF9: ='Detailed Scoring Approach'!F723 -> Total BREEAM credits achieved | GG9: ='Detailed Scoring Approach'!F725 -> Total contribution to overall building score | GH9: ='Detailed Scoring Approach'!#REF! ->  | GI9: ='Detailed Scoring Approach'!F742 -> Total BREEAM credits achieved | GJ9: ='Detailed Scoring Approach'!F744 -> Total contribution to overall building score | GK9: ='Detailed Scoring Approach'!H740 -> Will a transport plan based on site specific travel survey/assessment be developed? | GL9: ='Detailed Scoring Approach'!F808 -> Total BREEAM credits achieved | GM9: ='Detailed Scoring Approach'!F810 -> Total contribution to overall building score | GN9: ='Detailed Scoring Approach'!F812 -> Total BREEAM innovation credits achieved | GO9: Calculation procedure used | GP9: ='Detailed Scoring Approach'!H793 -> Water Consumption from building micro-components | GQ9: ='Detailed Scoring Approach'!H794 -> Water demand met via greywater/rainwater sources | GR9: ='Detailed Scoring Approach'!H795 -> Total net water consumption | GS9: ='Detailed Scoring Approach'!H796 -> Improvement on baseline performance | GT9: ='Detailed Scoring Approach'!H799 -> Total net Water Consumption | GU9: ='Detailed Scoring Approach'!H800 -> Default building occupancy | GV9: ='Detailed Scoring Approach'!H804 -> What is the target for % reduction in potable water consumption for sanitary use in the building? | GW9: ='Detailed Scoring Approach'!H805 -> 0 | GX9: ='Detailed Scoring Approach'!F830 -> Total BREEAM credits achieved | GY9: ='Detailed Scoring Approach'!F832 -> Total contribution to overall building score | GZ9: ='Detailed Scoring Approach'!H825 -> Will there be a water meter on the mains water supply to the building(s)? | HA9: ='Detailed Scoring Approach'!H826 -> Will metering/monitoring equipment be specified on the water supply to any relevant plant/building areas? | HB9: ='Detailed Scoring Approach'!H827 -> Will all specified water meters have a pulsed output? | HC9: ='Detailed Scoring Approach'!H828 -> If the site/building has an existing BMS connection, will all pulsed meters be connected to the BMS? | HD9: ='Detailed Scoring Approach'!F850 -> Total BREEAM credits achieved | HE9: ='Detailed Scoring Approach'!F852 -> Total contribution to overall building score | HF9: ='Detailed Scoring Approach'!H847 -> Will a mains water leak detection system be installed on the building's mains water supply? | HG9: ='Detailed Scoring Approach'!H848 -> Will a flow control device be fitted to each sanitary area/facility? | HH9: ='Detailed Scoring Approach'!F869 -> Total BREEAM credits achieved | HI9: ='Detailed Scoring Approach'!F871 -> Total contribution to overall building score | HJ9: ='Detailed Scoring Approach'!H867 -> Will water efficient irrigation methods be installed (including vehicle wash systems where specified)?
A10: No. (credits) | B10: % | C10: No. (credits) | D10: No. (credits) | E10: No. (credits) | F10: No. (credits) | G10: No. (credits) | H10: No. (credits) | I10: No. (credits) | J10: No. (credits) | K10: No. (credits) | L10: No. (credits) | M10: No. (credits) | N10: No. (credits) | O10: % | P10: Text | Q10: Text | R10: No. (credits) | S10: % | T10: No. (credits) | U10: No. (credits) | V10: No. (credits) | W10: No. (credits) | X10: Text (compliant) | Y10: Text (compliant) | Z10: No. (credits) | AA10: No. (credits) | AB10: % | AC10: No. (credits) | AD10: No. (credits) | AE10: No. (credits) | AF10: No. (credits) | AG10: No. | AH10: % | AI10: No. (credits) | AJ10: No. (credits) | AK10: No. (credits) | AL10: No. (credits) | AM10: % | AN10: No. (credits) | AO10: Text (compliant) | AP10: No. (credits) | AQ10: No. (credits) | AR10: No. (credits) | AS10: No. (credits) | AT10: No. (credits) | AU10: No. (credits) | AV10: % | AW10: No. (credits) | AX10: No. (credits) | AY10: No. (credits) | AZ10: No. (credits) | BA10: No. (credits) | BB10: No. (credits) | BC10: No. (credits) | BD10: % | BE10: No. (credits) | BF10: No. (credits) | BG10: No. (credits) | BH10: % | BI10: Text (compliant) | BJ10: Text (compliant) | BK10: Text (compliant) | BL10: No. (credits) | BM10: % | BN10: Text (compliant) | BO10: No. (credits) | BP10: No. (credits) | BQ10: % | BR10: No. (credits) | BS10: No. (credits) | BT10: No. (credits) | BU10: % | BV10: No. (credits) | BW10: % | BX10: Text | BY10: kWh/yr | BZ10: Text | CA10: % | CB10: MJ/m2/annum | CC10: MJ/m2/annum | CD10: kWh/m2/annum | CE10: kWh/m2/annum | CF10: kgCO2/m2/annum | CG10: kgCO2/m2/annum | CH10: % | CI10: Ratio | CJ10: Ratio | CK10: Ratio | CL10: Ratio | CM10: No. (credits) | CN10: % | CO10: MJ/m2/annum | CP10: MJ/m2/annum | CQ10: kWh/m2/annum | CR10: kWh/m2/annum | CS10: kgCO2/m2/annum | CT10: kgCO2/m2/annum | CU10: % | CV10: Ratio | CW10: Ratio | CX10: Ratio | CY10: Ratio | CZ10: No. (credits) | DA10: No. (credits) | DB10: % | DC10: No. (credits) | DD10: No. (credits) | DE10: No. (credits) | DF10: % | DG10: No. (credits) | DH10: No. (credits) | DI10: % | DJ10: No. (credits) | DK10: Text | DL10: Text | DM10: No. (credits) | DN10: % | DO10: No. (credits) | DP10: =Ene04_23 ->  | DQ10: Text | DR10: Text | DS10: No. (credits) | DT10: No. (credits) | DU10: % | DV10: No. (credits) | DW10: No. (credits) | DX10: No. (credits) | DY10: No. (credits) | DZ10: No. (credits) | EA10: % | EB10: No. (credits) | EC10: No. (credits) | ED10: No. (credits) | EE10: % | EF10: No. (credits) | EG10: No. (credits) | EH10: Text (compliant) | EI10: Text (compliant) | EJ10: Text (compliant) | EK10: Text (compliant) | EL10: Text (compliant) | EM10: Text (compliant) | EN10: Text (compliant) | EO10: Text (compliant) | EP10: Text (compliant) | EQ10: Text (compliant) | ER10: Text (compliant) | ES10: No. (credits) | ET10: No. (credits) | EU10: No. (credits) | EV10: Text (equipment present) | EW10: Text (equipment present) | EX10: Text (equipment present) | EY10: Text (equipment present) | EZ10: Text (equipment present) | FA10: Text (equipment present) | FB10: Text (equipment present) | FC10: Text (equipment present) | FD10: Text (equipment a significant contributor) | FE10: Text (equipment a significant contributor) | FF10: Text (equipment a significant contributor) | FG10: Text (equipment a significant contributor) | FH10: Text (equipment a significant contributor) | FI10: Text (equipment a significant contributor) | FJ10: Text (equipment a significant contributor) | FK10: Text (equipment a significant contributor) | FL10: No. (credits) | FM10: % | FN10: Text (compliant) | FO10: No. (credits) | FP10: % | FQ10: Text | FR10: No. (Accessibility Index) | FS10: No. (credits) | FT10: Text (compliant) | FU10: No. (credits) | FV10: No. (credits) | FW10: % | FX10: Text (compliant) | FY10: No. (credits) | FZ10: % | GA10: Text (type) | GB10: No. | GC10: Text (type) | GD10: Text (compliant) | GE10: Text (compliant) | GF10: No. (credits) | GG10: % | GH10: No. (credits) | GI10: No. (credits) | GJ10: % | GK10: No. (credits) | GL10: No. (credits) | GM10: % | GN10: No. (credits) | GO10: Text | GP10: =IF(Wat01_01=AIS_option10,AIS_NA,'Detailed Scoring Approach'!L793) -> N/A | GQ10: =IF(Wat01_01=AIS_option10,AIS_NA,'Detailed Scoring Approach'!L794) -> N/A | GR10: =IF(Wat01_01=AIS_option10,AIS_NA,'Detailed Scoring Approach'!L795) -> N/A | GS10: =IF(Wat01_01=AIS_option10,AIS_NA,'Detailed Scoring Approach'!L796) -> N/A | GT10: =IF(Wat01_01=AIS_option10,AIS_NA,'Detailed Scoring Approach'!L799) -> N/A | GU10: =IF(Wat01_01=AIS_option10,AIS_NA,"No. (people)") -> N/A | GV10: Text | GW10: % | GX10: No. (credits) | GY10: % | GZ10: Text (compliant) | HA10: Text (compliant) | HB10: Text (compliant) | HC10: Text (compliant) | HD10: No. (credits) | HE10: % | HF10: No. (credits) | HG10: No. (credits) | HH10: No. (credits) | HI10: % | HJ10: No. (credits)
A11: =Man01_Tot -> 0 | B11: =Man01_39 -> 0 | C11: =Man01_Exemp -> 0 | D11: =Man01_19 -> 0 | E11: =Man01_20 -> 0 | F11: =Man01_21 -> 0 | G11: =Man01_22 -> 0 | H11: =Man01_23 -> 0 | I11: =Man01_24 -> 0 | J11: =Man01_25 -> 0 | K11: =Man01_26 -> 0 | L11: =Man01_27 -> 0 | M11: =Man02_Tot -> 0 | N11: =Man02_Exemp -> 0 | O11: =Man02_12 -> 0 | P11: =Man02_01 -> 0 | Q11: =Man02_14 -> Please select | R11: =Man03_Tot -> 0 | S11: =Man03_18 -> 0 | T11: =Man03_13 -> 0 | U11: =Man03_14 -> 0 | V11: =Man03_15 -> 0 | W11: =Man03_16 -> 0 | X11: =Man03_05 -> No | Y11: =Man03_11 -> No | Z11: =Man03_17 -> 0 | AA11: =Man04_tot -> 0 | AB11: ='Detailed Scoring Approach'!H136 -> 0 | AC11: =Man04_09 -> 0 | AD11: =Man04_10 -> 0 | AE11: =Man04_11 -> 0 | AF11: =Man04_12 -> 0 | AG11: =Man05_tot -> 0 | AH11: ='Detailed Scoring Approach'!H157 -> 0 | AI11: =Man05_07 -> 0 | AJ11: =Man05_08 -> 0 | AK11: =Man05_09 -> 0 | AL11: =Hea01_tot -> 0 | AM11: =Hea01_27 -> 0 | AN11: =Hea01_25 -> N/A | AO11: =Hea01_01 -> No | AP11: =Hea01_13 -> 0 | AQ11: =Hea01_14 -> 0 | AR11: =Hea01_15 -> 0 | AS11: =IF(Hea01_10=AIS_NA,AIS_NA,Hea01_16) -> 0 | AT11: =Hea01_17 ->  | AU11: =Hea02_tot -> 0 | AV11: =Hea02_26 -> 0 | AW11: =Hea02_13 -> 0 | AX11: =Hea02_14 -> 0 | AY11: =Hea02_15 -> 0 | AZ11: =Hea02_16 -> 0 | BA11: =Hea02_17 -> N/A | BB11: =Hea02_18 -> N/A | BC11: =Hea03_tot -> 0 | BD11: ='Detailed Scoring Approach'!H241 -> 0 | BE11: =Hea03_05 -> 0 | BF11: =Hea03_06 -> 0 | BG11: =Hea04_tot -> 0 | BH11: =Hea04_13 -> 0 | BI11: =Hea04_01 -> No | BJ11: =Hea04_02 -> No | BK11: =Hea04_03 -> No | BL11: =Hea05_tot -> 0 | BM11: =Hea05_08 -> 0 | BN11: =Hea05_01 -> No | BO11: =Hea05_06 -> 0 | BP11: =Hea06_tot -> 0 | BQ11: =Hea06_contr -> 0 | BR11: =Hea06_05 -> 0 | BS11: =Hea06_06 ->  | BT11: =Ene01_tot -> 0 | BU11: =Ene01_42 -> 0 | BV11: =Ene01_27 -> 0 | BW11: =Ene01_36 -> 0 | BX11: =Ene01_37 -> 0 | BY11: =Ene01_40 -> 0 | BZ11: =Ene01_80 -> SBEM only | CA11: =IF(BZ11=Ene01_80,Ene01_67,AIS_NA) -> 0 | CB11: =Ene01_02 -> 0 | CC11: =Ene01_03 -> 0 | CD11: =Ene01_04 -> 0 | CE11: =Ene01_05 -> 0 | CF11: =Ene01_06 -> 0 | CG11: =Ene01_07 -> 0 | CH11: =Ene01_08 ->  | CI11: =Ene01_33 -> 0 | CJ11: =Ene01_34 -> 0 | CK11: =Ene01_35 -> 0 | CL11: =Ene01_09 -> 0 | CM11: =IF(BZ11=Ene01_80,Ene01_89,AIS_NA) -> 0 | CN11: =IF(Ene01_80=AIS_statement90,AIS_NA,AD_MultiRes_option02) -> N/A | CO11: =IF(Ene01_80=AIS_statement90,AIS_NA,Ene01_44) -> N/A | CP11: =IF(Ene01_80=AIS_statement90,AIS_NA,Ene01_45) -> N/A | CQ11: =IF(Ene01_80=AIS_statement90,AIS_NA,Ene01_46) -> N/A | CR11: =IF(Ene01_80=AIS_statement90,AIS_NA,Ene01_47) -> N/A | CS11: =IF(Ene01_80=AIS_statement90,AIS_NA,Ene01_48) -> N/A | CT11: =IF(Ene01_80=AIS_statement90,AIS_NA,Ene01_49) -> N/A | CU11: =IF(Ene01_80=AIS_statement90,AIS_NA,Ene01_50) -> N/A | CV11: =IF(Ene01_80=AIS_statement90,AIS_NA,Ene01_51) -> N/A | CW11: =IF(Ene01_80=AIS_statement90,AIS_NA,Ene01_52) -> N/A | CX11: =IF(Ene01_80=AIS_statement90,AIS_NA,Ene01_53) -> N/A | CY11: =IF(Ene01_80=AIS_statement90,AIS_NA,'Detailed Scoring Approach'!L404) -> N/A | CZ11: =IF(BZ11=Ene01_80,Ene01_55,AIS_NA) -> 0 | DA11: =Ene02_tot -> 0 | DB11: =Ene02_13 -> 0 | DC11: =Ene02_06 -> 0 | DD11: =Ene02_07 -> 0 | DE11: =Ene03_tot -> 0 | DF11: =Ene03_06 -> 0 | DG11: =Ene03_03 -> 0 | DH11: =Ene04_tot -> 0 | DI11: =Ene04_20 -> 0 | DJ11: =Ene04_15 -> N/A | DK11: =IF(Ene04_01=AIS_option15,AIS_option15,IF(Ene04_01=AIS_option14,AIS_option14,IF(Ene04_01=AIS_option13,AIS_option13))) ->  | DL11: =IF(OR(Ene04_01=AIS_option15,Ene04_01=AIS_option14),AIS_NA,Ene04_02) ->  | DM11: =Ene04_11 ->  | DN11: =Ene04_05 ->  | DO11: =Ene04_12 ->  | DP11: =Ene04_KPI01 ->  | DQ11: =Ene04_06 ->  | DR11: =Ene04_10 ->  | DS11: =Ene04_09 ->  | DT11: =Ene05_tot -> 0 | DU11: =Ene05_21 -> N/A | DV11: =Ene05_14 -> N/A | DW11: =Ene05_07 -> 0 | DX11: =Ene05_08 -> 0 | DY11: =Ene05_09 -> 0 | DZ11: =Ene06_tot -> 0 | EA11: =Ene06_12 -> 0 | EB11: =Ene06_05 -> 0 | EC11: =Ene06_06 -> 0 | ED11: =Ene07_tot -> N/A | EE11: =Ene07_25 -> N/A | EF11: =Ene07_05 -> 0 | EG11: =Ene07_09 -> FALSE | EH11: =IF(ED11=AIS_NA,AIS_NA,Ene07_10) -> N/A | EI11: =IF(ED11=AIS_NA,AIS_NA,Ene07_11) -> N/A | EJ11: =IF(ED11=AIS_NA,AIS_NA,Ene07_12) -> N/A | EK11: =IF(ED11=AIS_NA,AIS_NA,Ene07_13) -> N/A | EL11: =IF(ED11=AIS_NA,AIS_NA,Ene07_14) -> N/A | EM11: =IF(ED11=AIS_NA,AIS_NA,Ene07_15) -> N/A | EN11: =IF(ED11=AIS_NA,AIS_NA,Ene07_16) -> N/A | EO11: =IF(ED11=AIS_NA,AIS_NA,Ene07_17) -> N/A | EP11: =IF(ED11=AIS_NA,AIS_NA,Ene07_18) -> N/A | EQ11: =IF(ED11=AIS_NA,AIS_NA,Ene07_19) -> N/A | ER11: =IF(ED11=AIS_NA,AIS_NA,Ene07_20) -> N/A | ES11: =Ene08_tot -> 0 | ET11: =Ene08_29 -> 0 | EU11: =Ene08_19 -> 0 | EV11: =Ene08_01 -> No | EW11: =Ene08_02 -> No | EX11: =Ene08_03 -> No | EY11: =Ene08_04 -> No | EZ11: =Ene08_05 -> No | FA11: =Ene08_06 -> No | FB11: =Ene08_07 ->  | FC11: =Ene08_08 -> No | FD11: =Ene08_09 -> No | FE11: =Ene08_10 -> No | FF11: =Ene08_11 -> No | FG11: =Ene08_12 -> No | FH11: =Ene08_13 -> No | FI11: =Ene08_14 -> No | FJ11: =Ene08_15 ->  | FK11: =Ene08_16 -> No | FL11: =Ene09_tot -> N/A | FM11: =Ene09_10 -> N/A | FN11: =IF(FL11=AIS_NA,AIS_NA,Ene09_01) -> N/A | FO11: =Tra01_tot -> 0 | FP11: =TRa01_08 -> See instruction | FQ11: =AD_tra01type -> 0 | FR11: =Tra01_03 -> 0 | FS11: =Tra01_05 -> 0 | FT11: =IF(Tra01_03>0,AIS_NA,Tra01_04) -> No | FU11: =Tra01_06 -> 0 | FV11: =Tra02_tot -> 0 | FW11: =Tra02_07 -> See instruction | FX11: =Tra02_01 -> No | FY11: =Tra03_tot -> 0 | FZ11: =Tra03_14 -> See instruction | GA11: =Tra03_02 ->  | GB11: =Tra03_03 ->  | GC11: =Tra03_04 ->  | GD11: =Tra03_05 -> 0 | GE11: =Tra03_06 ->  | GF11: =Tra04_tot -> 0 | GG11: =Tra04_10 -> N/A | GH11: =Tra04_04 ->  | GI11: =Tra05_tot -> 0 | GJ11: =Tra05_05 -> N/A | GK11: =Tra05_03 -> 0 | GL11: =Wat01_tot -> 0 | GM11: =Wat01_15 -> 0 | GN11: =Wat01_08 -> 0 | GO11: =Wat01_01 -> Alternative approach | GP11: =IF(Wat01_01=AIS_option10,AIS_NA,Wat01_02) -> N/A | GQ11: =IF(Wat01_01=AIS_option10,AIS_NA,Wat01_03) -> N/A | GR11: =IF(Wat01_01=AIS_option10,AIS_NA,Wat01_04) -> N/A | GS11: =IF(Wat01_01=AIS_option10,AIS_NA,Wat01_05) -> N/A | GT11: =IF(Wat01_01=AIS_option10,AIS_NA,Wat01_KPI01) -> N/A | GU11: =IF(Wat01_01=AIS_option10,AIS_NA,Wat01_KPI02) -> N/A | GV11: =IF(Wat01_01=AIS_option10,Wat01_10,AIS_NA) -> Select percentage improvement: | GW11: =IF(Wat01_01=AIS_option10,Wat01_11,AIS_NA) -> 0 | GX11: =Wat02_tot -> 0 | GY11: =Wat02_13 -> 0 | GZ11: =Wat02_02 -> No | HA11: =Wat02_03 -> No | HB11: =Wat02_04 -> No | HC11: =Wat02_05 -> No | HD11: =Wat03_tot -> 0 | HE11: =Wat03_10 -> 0 | HF11: =Wat03_05 -> 0 | HG11: =Wat03_06 -> 0 | HH11: =Wat04_tot -> 0 | HI11: =Wat04_06 -> 0 | HJ11: =Wat04_04 -> 0
A13: ='Detailed Scoring Approach'!B882 -> Mat01 Life Cycle Impacts | I13: ='Detailed Scoring Approach'!H898 -> External walls | L13: ='Detailed Scoring Approach'!H899 -> Windows | O13: ='Detailed Scoring Approach'!H900 -> Roof | R13: ='Detailed Scoring Approach'!H901 -> Upper floor construction | U13: ='Detailed Scoring Approach'!H902 -> Internal wall | X13: ='Detailed Scoring Approach'!H903 -> Floor finishes/coverings | AA13: ='Detailed Scoring Approach'!#REF! ->  | AD13: ='Detailed Scoring Approach'!B919 -> Mat03 Responsible Sourcing | AK13: ='Detailed Scoring Approach'!H939 -> Structural Frame | AN13: ='Detailed Scoring Approach'!H940 -> Ground floor | AQ13: ='Detailed Scoring Approach'!H941 -> Upper floors (including separating floors) | AT13: ='Detailed Scoring Approach'!H942 -> Roof | AW13: ='Detailed Scoring Approach'!H943 -> External walls | AZ13: ='Detailed Scoring Approach'!H944 -> Internal walls | BC13: ='Detailed Scoring Approach'!H945 -> Foundation/substructure | BF13: ='Detailed Scoring Approach'!H946 -> Fittings | BI13: ='Detailed Scoring Approach'!H947 -> Hard landscaping | BL13: =Mat_04 -> Mat04 Insulation | BR13: =Mat_05 -> Mat05 Designing for Robustness | BU13: =Wst_01 -> Wst01 Construction Waste Management | CK13: =Wst_02 -> Wst02 Recycled Aggregates | CW13: =Wst_03 -> Wst03 Operational Waste | DB13: =Wst_04 -> Wst04 Speculative Floor and Ceiling Finishes | DE13: =LE_01 -> LE01 Site Selection | DI13: =LE_02 -> LE02 Ecological Value of Site and Protection of Ecological Features | DN13: ='Detailed Scoring Approach'!#REF! ->  | DR13: =LE_04 -> LE04 Enhancing Site Ecology | DW13: =LE_05 -> LE05 Long Term Impact on Biodiversity | EE13: =Pol_01 -> Pol01 Impact of Refrigerants | EM13: =Pol_02 -> Pol02 NOx Emissions | ET13: =Pol_03 -> Pol03 Surface Water Run off | FB13: =Pol_04 -> Pol04 Reduction of Night Time Light Pollution | FE13: =Pol_05 -> Pol05 Noise Attenuation | FI13: =Inn_01 -> Inn01 Innovation
A14: ='Detailed Scoring Approach'!F909 -> Total BREEAM credits achieved | B14: ='Detailed Scoring Approach'!F911 -> Total contribution to overall building score | C14: ='Detailed Scoring Approach'!F913 -> Total BREEAM innovation credits achieved | D14: ='Detailed Scoring Approach'!H893 -> Percentage of Mat01 points achieved | E14: ='Detailed Scoring Approach'!#REF! ->  | F14: ='Detailed Scoring Approach'!H906 -> Total embodied green house gas emissions for building (by assessed elements) | G14: ='Detailed Scoring Approach'!H906 -> Total embodied green house gas emissions for building (by assessed elements) | H14: ='Detailed Scoring Approach'!H907 -> Proportion of applicable building elements that data reported covers | I14: ='Detailed Scoring Approach'!J896 -> Total area of element m2 | J14: ='Detailed Scoring Approach'!L896 -> Total impact kgCO2 eq. | K14: ='Detailed Scoring Approach'!N896 -> Area of element impact data relevant to m2 | L14: =I14 -> Total area of element m2 | M14: =J14 -> Total impact kgCO2 eq. | N14: Area of element impact data relevant to m2 | O14: Total area of element m2 | P14: Total impact kgCO2 eq. | Q14: Area of element impact data relevant to m2 | R14: Total area of element m2 | S14: =P14 -> Total impact kgCO2 eq. | T14: Area of element impact data relevant to m2 | U14: Total area of element m2 | V14: Total impact kgCO2 eq. | W14: Area of element impact data relevant to m2 | X14: Total area of element m2 | Y14: Total impact kgCO2 eq. | Z14: Area of element impact data relevant to m2 | AA14: ='Detailed Scoring Approach'!#REF! ->  | AB14: ='Detailed Scoring Approach'!#REF! ->  | AC14: ='Detailed Scoring Approach'!#REF! ->  | AD14: ='Detailed Scoring Approach'!F950 -> Total BREEAM credits achieved | AE14: ='Detailed Scoring Approach'!F952 -> Total contribution to overall building score | AF14: ='Detailed Scoring Approach'!F954 -> Total BREEAM innovation credits achieved | AG14: Total responisble sourcing points achieved | AH14: Total responsible sourcing points available | AI14: ='Detailed Scoring Approach'!H934 -> Predicted percentage of available responsible sourcing points achieved: | AJ14: ='Detailed Scoring Approach'!#REF! ->  | AK14: ='Detailed Scoring Approach'!J937 -> Element present / assessed | AL14: ='Detailed Scoring Approach'!L937 -> % element responsibly sourced | AM14: ='Detailed Scoring Approach'!N937 -> Responsible sourcing points | AN14: =AK14 -> Element present / assessed | AO14: % element responsibly sourced | AP14: Responsible sourcing points | AQ14: Element present / assessed | AR14: % element responsibly sourced | AS14: Responsible sourcing points | AT14: Element present / assessed | AU14: % element responsibly sourced | AV14: Responsible sourcing points | AW14: Element present / assessed | AX14: % element responsibly sourced | AY14: Responsible sourcing points | AZ14: Element present / assessed | BA14: % element responsibly sourced | BB14: Responsible sourcing points | BC14: Element present / assessed | BD14: % element responsibly sourced | BE14: Responsible sourcing points | BF14: Element present / assessed | BG14: % element responsibly sourced | BH14: Responsible sourcing points | BI14: Element present / assessed | BJ14: % element responsibly sourced | BK14: Responsible sourcing points | BL14: ='Detailed Scoring Approach'!F969 -> Total BREEAM credits achieved | BM14: ='Detailed Scoring Approach'!F971 -> Total contribution to overall building score | BN14: ='Detailed Scoring Approach'!#REF! ->  | BO14: ='Detailed Scoring Approach'!#REF! ->  | BP14: ='Detailed Scoring Approach'!H967 -> Will 80% of the building's insulating materials be responsibly sourced? | BQ14: ='Detailed Scoring Approach'!H967 -> Will 80% of the building's insulating materials be responsibly sourced? | BR14: ='Detailed Scoring Approach'!F988 -> Total BREEAM credits achieved | BS14: ='Detailed Scoring Approach'!F990 -> Total contribution to overall building score | BT14: ='Detailed Scoring Approach'!H986 -> Will suitable durability/protection measures be specified and installed to vulnerable areas of the building? | BU14: ='Detailed Scoring Approach'!F1035 -> Total BREEAM credits achieved | BV14: ='Detailed Scoring Approach'!F1037 -> Total contribution to overall building score | BW14: ='Detailed Scoring Approach'!#REF! ->  | BX14: ='Detailed Scoring Approach'!#REF! ->  | BY14: ='Detailed Scoring Approach'!H1013 -> Targets set for non-hazardous and hazardous waste produced on site | BZ14: ='Detailed Scoring Approach'!H1014 -> Procedures are in place to minimise non-hazardous and hazardous waste | CA14: ='Detailed Scoring Approach'!H1015 -> Site construction waste is being monitored and targets regularly reviewed | CB14: ='Detailed Scoring Approach'!H1016 -> Management has nominated individual responsible for implementing the above | CC14: ='Detailed Scoring Approach'!H1017 -> Pre-demolition audit completed | CD14: ='Detailed Scoring Approach'!H1018 -> Amount of waste generated will be reported via BREEAM Scoring & Reporting tool | CE14: ='Detailed Scoring Approach'!#REF! ->  | CF14: ='Detailed Scoring Approach'!#REF! ->  | CG14: ='Detailed Scoring Approach'!#REF! ->  | CH14: ='Detailed Scoring Approach'!H1021 -> 0 | CI14: ='Detailed Scoring Approach'!H1022 -> Above criteria met | CJ14: ='Detailed Scoring Approach'!#REF! ->  | CK14: ='Detailed Scoring Approach'!F1056 -> Total BREEAM credits achieved | CL14: ='Detailed Scoring Approach'!F1058 -> Total contribution to overall building score | CM14: ='Detailed Scoring Approach'!F1060 -> Total BREEAM innovation credits achieved | CN14: ='Detailed Scoring Approach'!H1052 -> What is the target total % of high-grade aggregate that will be recycled/secondary aggregate? | CO14: ='Detailed Scoring Approach'!#REF! ->  | CP14: ='Detailed Scoring Approach'!#REF! ->  | CQ14: ='Detailed Scoring Approach'!#REF! ->  | CR14: ='Detailed Scoring Approach'!#REF! ->  | CS14: ='Detailed Scoring Approach'!#REF! ->  | CT14: ='Detailed Scoring Approach'!#REF! ->  | CU14: ='Detailed Scoring Approach'!#REF! ->  | CV14: ='Detailed Scoring Approach'!#REF! ->  | CW14: ='Detailed Scoring Approach'!F1086 -> Total BREEAM credits achieved | CX14: ='Detailed Scoring Approach'!F1088 -> Total contribution to overall building score | CY14: ='Detailed Scoring Approach'!H1075 -> Will appropriate facilities for the storage of operational recyclable waste volumes be provided? | CZ14: ='Detailed Scoring Approach'!H1076 -> If relevant, will a static waste compactor(s) or baler(s) be specified/installed? | DA14: ='Detailed Scoring Approach'!H1077 -> If relevant, will a vessel for composting suitable organic waste be specified/installed? | DB14: ='Detailed Scoring Approach'!F1105 -> Total BREEAM credits achieved | DC14: ='Detailed Scoring Approach'!F1107 -> Total contribution to overall building score | DD14: Route to compliance | DE14: ='Detailed Scoring Approach'!F1130 -> Total BREEAM credits achieved | DF14: ='Detailed Scoring Approach'!F1132 -> Total contribution to overall building score | DG14: ='Detailed Scoring Approach'!H1125 -> What percentage of proposed development footprint will be on previously developed land? | DH14: ='Detailed Scoring Approach'!H1128 -> Will remediation of the site be carried out? | DI14: ='Detailed Scoring Approach'!F1152 -> Total BREEAM credits achieved | DJ14: ='Detailed Scoring Approach'!F1154 -> Total contribution to overall building score | DK14: ='Detailed Scoring Approach'!H1146 -> How will the ecological value of the land be defined? | DL14: ='Detailed Scoring Approach'!H1149 -> Can the land within the construction zone be defined as ‘land of low ecological value’? | DM14: ='Detailed Scoring Approach'!H1150 -> Will all features of ecological value surrounding the construction zone/site boundary be protected? | DN14: ='Detailed Scoring Approach'!#REF! ->  | DO14: ='Detailed Scoring Approach'!#REF! ->  | DP14: ='Detailed Scoring Approach'!#REF! ->  | DQ14: ='Detailed Scoring Approach'!#REF! ->  | DR14: ='Detailed Scoring Approach'!F1173 -> Total BREEAM credits achieved | DS14: ='Detailed Scoring Approach'!F1175 -> Total contribution to overall building score | DT14: ='Detailed Scoring Approach'!H1169 -> Will a Suitably Qualified Ecologist be appointed to report on enhancing site ecology? | DU14: ='Detailed Scoring Approach'!H1170 -> Will all recommendations in ecology report for protection of site ecology implemented? | DV14: ='Detailed Scoring Approach'!H1171 -> What percentage of recommendtations for enhancement of site ecology will be implemented? | DW14: ='Detailed Scoring Approach'!F1198 -> Total BREEAM credits achieved | DX14: ='Detailed Scoring Approach'!F1200 -> Total contribution to overall building score | DY14: ='Detailed Scoring Approach'!H1190 -> Will the project meet the pre-requisite criteria for this issue? | DZ14: ='Detailed Scoring Approach'!H1191 -> Will a Biodiversity Champion be appointed to monitor/minimise impacts of site activities on biodiversity? | EA14: ='Detailed Scoring Approach'!H1192 -> Will the contractor provide training for the site workforce on how to protect ecology during the project? | EB14: ='Detailed Scoring Approach'!H1193 -> Will the contractor record actions to protect biodiversity & monitor effectiveness during construction? | EC14: ='Detailed Scoring Approach'!H1194 -> Will a new ecologically valuable habitat, appropriate to the local area, be created? | ED14: ='Detailed Scoring Approach'!H1195 -> Will the contractor programme site works to minimise disturbance to wildlife? | EE14: ='Detailed Scoring Approach'!F1249 -> Total BREEAM credits achieved | EF14: ='Detailed Scoring Approach'!F1251 -> Total contribution to overall building score | EG14: ='Detailed Scoring Approach'!H1242 -> Will refrigerant containing systems be installed in the building? | EH14: DELC based credits | EI14: ='Detailed Scoring Approach'!H1244 -> Will the specified refrigerant(s) have a Global Warming Potential of 10 or less? | EJ14: ='Detailed Scoring Approach'!H1245 -> What is the target range Direct Effect Life Cycle CO2eq. emissions for the system? | EK14: ='Detailed Scoring Approach'!H1246 -> What will the Cooling/heating capacity of the system be? | EL14: ='Detailed Scoring Approach'!H1247 -> Will a refrigerant leak detection and containment system be specified/installed? | EM14: ='Detailed Scoring Approach'!F1273 -> Total BREEAM credits achieved | EN14: ='Detailed Scoring Approach'!F1275 -> Total contribution to overall building score | EO14: ='Detailed Scoring Approach'!H1266 -> Please enter the target/maximum dry NOx emission level for the space heating system: | EP14: ='Detailed Scoring Approach'!H1267 -> Dry NOx emission level - cooling | EQ14: ='Detailed Scoring Approach'!H1268 -> Please enter the target/maximum dry NOx emission level for the water heating system: | ER14: ='Detailed Scoring Approach'!H1269 -> Please select the Nominal Heat input for the heating plant: | ES14: ='Detailed Scoring Approach'!H1270 -> Energy consumption: heating only or heating and cooling (as appropriate) | ET14: ='Detailed Scoring Approach'!F1296 -> Total BREEAM credits achieved | EU14: ='Detailed Scoring Approach'!F1298 -> Total contribution to overall building score | EV14: ='Detailed Scoring Approach'!H1290 -> What is the actual/likely annual probability of flooding for the assessed site? | EW14: ='Detailed Scoring Approach'!H1291 -> Will a Flood Risk Assessment be undertaken and ground level of the building/access meet BREEAM criteria? | EX14: Flood risk credits achieved | EY14: ='Detailed Scoring Approach'!H1292 -> Will the site meet the BREEAM criteria for peak rate surface water run off? | EZ14: ='Detailed Scoring Approach'!H1293 -> Will the site meet the criteria for surface water run off volume, attenuation and/or limiting discharge? | FA14: ='Detailed Scoring Approach'!H1294 -> Will the site be designed to minimise watercourse pollution in accordance with the BREEAM criteria? | FB14: ='Detailed Scoring Approach'!F1315 -> Total BREEAM credits achieved | FC14: ='Detailed Scoring Approach'!F1317 -> Total contribution to overall building score | FD14: ='Detailed Scoring Approach'!H1313 -> Will the external lighting be designed to reduce light pollution? | FE14: ='Detailed Scoring Approach'!F1335 -> Total BREEAM credits achieved | FF14: ='Detailed Scoring Approach'!F1337 -> Total contribution to overall building score | FG14: ='Detailed Scoring Approach'!H1332 -> Will there be, or are there noise-sensitive areas/buildings within 800m radius of the development? | FH14: ='Detailed Scoring Approach'!H1333 -> Will a noise impact assessment be completed and, if applicable, noise attenuation measures specified? | FI14: ='Detailed Scoring Approach'!F1372 -> Total BREEAM innovation credits achieved | FJ14: ='Detailed Scoring Approach'!F1374 -> Total contribution to overall building score | FK14: ='Detailed Scoring Approach'!L1370 -> Number of 'approved' innovation credits achieved? | FL14: ='Detailed Scoring Approach'!H1359 -> Man01 Sustainable Procurement | FM14: ='Detailed Scoring Approach'!H1360 -> Man02 Responsible Construction Practices | FN14: ='Detailed Scoring Approach'!H1361 -> Hea02 Indoor Air Quality | FO14: ='Detailed Scoring Approach'!H1362 -> Ene01 Energy Efficiency | FP14: ='Detailed Scoring Approach'!H1363 -> Tra03 Alternative modes of transport | FQ14: ='Detailed Scoring Approach'!#REF! ->  | FR14: ='Detailed Scoring Approach'!H1364 -> Wat01 Water Consumption | FS14: ='Detailed Scoring Approach'!H1365 -> Mat01 Life Cycle Impacts | FT14: ='Detailed Scoring Approach'!H1366 -> Mat03 Responsible Sourcing of Materials | FU14: ='Detailed Scoring Approach'!H1367 -> Wst01 Construction Waste Management | FV14: ='Detailed Scoring Approach'!H1368 -> Wst02 Recycled Aggregates
A15: No. (credits) | B15: % | C15: No. (credits) | D15: No. | E15: No. | F15: ='Detailed Scoring Approach'!L906 -> kgCO2 eq. | G15: ='Detailed Scoring Approach'!P906 -> kgCO2 eq./m2 | H15: % | I15: m2 | J15: kgCO2eq | K15: m2 | L15: m2 | M15: kgCO2eq | N15: m2 | O15: m2 | P15: kgCO2eq | Q15: m2 | R15: m2 | S15: kgCO2eq | T15: m2 | U15: m2 | V15: kgCO2eq | W15: m2 | X15: m2 | Y15: kgCO2eq | Z15: m2 | AA15: No. (credits) | AB15: % | AC15: No. (credits) | AD15: No. (credits) | AE15: % | AF15: No. (credits) | AG15: No. | AH15: No. | AI15: % | AJ15: Text (compliant) | AK15: Text | AL15: % | AM15: No. | AN15: Text | AO15: % | AP15: No. | AQ15: Text | AR15: % | AS15: No. | AT15: Text | AU15: % | AV15: No. | AW15: Text | AX15: % | AY15: No. | AZ15: Text | BA15: % | BB15: No. | BC15: Text | BD15: % | BE15: No. | BF15: Text | BG15: % | BH15: No. | BI15: Text | BJ15: % | BK15: No. | BL15: No. (credits) | BM15: % | BN15: No. (index) | BO15: No. (credits) | BP15: % | BQ15: No. (credits) | BR15: No. (credits) | BS15: % | BT15: No. (credits) | BU15: No. (credits) | BV15: % | BW15: No. (credits) | BX15: Text (compliant) | BY15: Text (volume/percetnage) | BZ15: ='Detailed Scoring Approach'!L1014 -> 0 | CA15: ='Detailed Scoring Approach'!L1015 -> 0 | CB15: ='Detailed Scoring Approach'!L1016 -> 0 | CC15: ='Detailed Scoring Approach'!L1017 -> 0 | CD15: ='Detailed Scoring Approach'!L1018 -> 0 | CE15: ='Detailed Scoring Approach'!#REF! ->  | CF15: ='Detailed Scoring Approach'!#REF! ->  | CG15: ='Detailed Scoring Approach'!#REF! ->  | CH15: ='Detailed Scoring Approach'!L1021 -> 0 | CI15: ='Detailed Scoring Approach'!L1022 -> 0 | CJ15: ='Detailed Scoring Approach'!#REF! ->  | CK15: No. (credits) | CL15: % | CM15: No. (credits) | CN15: % | CO15: % | CP15: % | CQ15: % | CR15: % | CS15: % | CT15: % | CU15: % | CV15: % | CW15: No. (credits) | CX15: % | CY15: Text (compliant) | CZ15: Text (compliant) | DA15: Text (compliant) | DB15: No. (credits) | DC15: % | DD15: Text | DE15: No. (credits) | DF15: % | DG15: No. (credits) | DH15: No. (credits) | DI15: No. (credits) | DJ15: % | DK15: Text | DL15: Text (compliant) | DM15: Text (compliant) | DN15: No. (credits) | DO15: % | DP15: Text | DQ15: ='Detailed Scoring Approach'!#REF! ->  | DR15: No. (credits) | DS15: % | DT15: Text (compliant) | DU15: Text (compliant) | DV15: ='Detailed Scoring Approach'!L1171 -> 0 | DW15: No. (credits) | DX15: % | DY15: Text (compliant) | DZ15: Text (compliant) | EA15: Text (compliant) | EB15: Text (compliant) | EC15: Text (compliant) | ED15: Text (compliant) | EE15: No. credits | EF15: % | EG15: Text | EH15: No. | EI15: Text | EJ15: ='Detailed Scoring Approach'!L1245 -> kgCO2eq/kW coolth capacity | EK15: ='Detailed Scoring Approach'!L1246 -> kW | EL15: No. (credits) | EM15: No. (credits) | EN15: % | EO15: ='Detailed Scoring Approach'!L1266 -> mg/kWh | EP15: ='Detailed Scoring Approach'!L1267 -> mg/kWh | EQ15: ='Detailed Scoring Approach'!L1268 -> mg/kWh | ER15: Text (confirmation) | ES15: ='Detailed Scoring Approach'!L1270 -> kWh/m2/yr | ET15: No. (credits) | EU15: % | EV15: Text (risk level) | EW15: Text (compliant) | EX15: No. (credits) | EY15: No. (credits) | EZ15: No. (credits) | FA15: No. (credits) | FB15: No. (credits) | FC15: % | FD15: No. (credits) | FE15: No. (credits) | FF15: % | FG15: Text | FH15: Text (compliant) | FI15: No. (credits) | FJ15: % | FK15: No. (credits) | FL15: No. (credits) | FM15: No. (credits) | FN15: No. (credits) | FO15: No. (credits) | FP15: No. (credits) | FQ15: No. (credits) | FR15: No. (credits) | FS15: No. (credits) | FT15: No. (credits) | FU15: No. (credits) | FV15: No. (credits)
A16: =Mat01_tot -> 0 | B16: =Mat01_28 -> 0 | C16: =Mat01_08 -> 0 | D16: =Mat01_05 -> 0 | E16: =Mat01_04 ->  | F16: =Mat01_KPI01 -> Missing data | G16: =Mat01_KPI02 ->  | H16: =Mat01_KPI03 ->  | I16: =Mat01_09 -> 0 | J16: =Mat01_15 -> 0 | K16: =Mat01_21 -> 0 | L16: =Mat01_10 -> 0 | M16: =Mat01_16 -> 0 | N16: =Mat01_22 -> 0 | O16: =Mat01_11 -> 0 | P16: =Mat01_17 -> 0 | Q16: =Mat01_23 -> 0 | R16: =Mat01_12 -> 0 | S16: =Mat01_18 -> 0 | T16: =Mat01_24 -> 0 | U16: =Mat01_13 -> 0 | V16: =Mat01_19 -> 0 | W16: =Mat01_25 -> 0 | X16: =Mat01_14 -> 0 | Y16: =Mat01_20 -> 0 | Z16: =Mat01_26 -> 0 | AA16: =Mat02_tot ->  | AB16: =Mat02_06 ->  | AC16: =Mat02_04 ->  | AD16: =Mat03_tot -> 0 | AE16: =Mat03_38 -> 0 | AF16: =Mat03_35 -> 0 | AG16: =SUM(Mat03_totalpoints) -> 0 | AH16: =4*(COUNTIF(Mat03_elementapp,AIS_Yes)) -> 0 | AI16: =Mat03_03 -> No | AJ16: =Mat03_06 ->  | AK16: =Mat03_07 -> No | AL16: =Mat03_16 -> 0 | AM16: =Mat03_25 -> 0 | AN16: =Mat03_08 -> No | AO16: =Mat03_17 -> 0 | AP16: =Mat03_26 -> 0 | AQ16: =Mat03_09 -> No | AR16: =Mat03_18 -> 0 | AS16: =Mat03_27 -> 0 | AT16: =Mat03_10 -> No | AU16: =Mat03_19 -> 0 | AV16: =Mat03_28 -> 0 | AW16: =Mat03_11 -> No | AX16: =Mat03_20 -> 0 | AY16: =Mat03_29 -> 0 | AZ16: =Mat03_12 -> No | BA16: =Mat03_21 -> 0 | BB16: =Mat03_30 -> 0 | BC16: =Mat03_13 -> No | BD16: =Mat03_22 -> 0 | BE16: =Mat03_31 -> 0 | BF16: =Mat03_14 -> No | BG16: =Mat03_23 -> 0 | BH16: =Mat03_32 -> 0 | BI16: =Mat03_15 -> No | BJ16: =Mat03_24 -> 0 | BK16: =Mat03_33 -> 0 | BL16: =Mat04_tot -> 0 | BM16: =Mat04_10 -> 0 | BN16: =Mat04_01 ->  | BO16: =Mat04_05 ->  | BP16: =Mat04_02 -> No | BQ16: =Mat04_06 -> 0 | BR16: =Mat05_tot -> 0 | BS16: =Mat05_06 -> 0 | BT16: =Mat05_03 -> 0 | BU16: =Wst01_tot -> 0 | BV16: =Wst01_28 -> 0 | BW16: =Wst01_01 -> 0 | BX16: =Wst01_15 ->  | BY16: =Wst01_04 -> No | BZ16: =Wst01_02 -> No | CA16: =Wst01_03 -> No | CB16: =Wst01_05 -> No | CC16: =Wst01_06 -> No | CD16: =Wst01_29 -> No | CE16: =Wst01_07 ->  | CF16: =Wst01_08 ->  | CG16: =Wst01_09 ->  | CH16: =Wst01_10 -> 0 | CI16: =Wst01_11 -> No | CJ16: =Wst01_12 ->  | CK16: =Wst02_tot -> 0 | CL16: =Wst02_15 -> 0 | CM16: =Wst02_11 -> 0 | CN16: =Wst02_01 -> Please select | CO16: =Wst02_02 ->  | CP16: =Wst02_03 ->  | CQ16: =Wst02_04 ->  | CR16: =Wst02_05 ->  | CS16: =Wst02_06 ->  | CT16: =Wst02_07 ->  | CU16: =Wst02_08 ->  | CV16: =Wst02_09 ->  | CW16: =Wst03_tot -> 0 | CX16: =Wst03_13 -> 0 | CY16: =Wst03_02 -> No | CZ16: =Wst03_03 -> No | DA16: =Wst03_04 -> No | DB16: =Wst04_tot -> N/A | DC16: =Wst04_09 -> N/A | DD16: =Wst04_03 -> Please select | DE16: =LE01_tot -> 0 | DF16: =LE01_08 -> 0 | DG16: =LE01_05 -> 0 | DH16: =LE01_06 -> 0 | DI16: =LE02_tot -> 0 | DJ16: =LE02_08 -> 0 | DK16: =LE02_02 -> The BREEAM checklist | DL16: =LE02_03 -> No | DM16: =LE02_04 -> No | DN16: =LE03_tot ->  | DO16: =LE03_10 ->  | DP16: =LE03_02 ->  | DQ16: =LE03_03 ->  | DR16: =LE04_tot -> 0 | DS16: =LE04_14 -> 0 | DT16: =LE04_02 -> No | DU16: =LE04_03 -> No | DV16: =LE04_04 -> Please select | DW16: =LE05_tot -> 0 | DX16: =LE05_15 -> 0 | DY16: =LE05_02 -> No | DZ16: =LE05_03 -> No | EA16: =LE05_04 -> No | EB16: =LE05_05 -> No | EC16: =LE05_06 -> No | ED16: =LE05_07 -> No | EE16: =Pol01_tot -> 0 | EF16: =Pol01_20 -> 0 | EG16: =Pol01_02 -> Yes | EH16: =Pol01_04 -> 0 | EI16: =Pol01_06 -> No | EJ16: =Pol01_07 -> 0 | EK16: =Pol01_21 -> 0 | EL16: =Pol01_10 -> 0 | EM16: =Pol02_tot -> 0 | EN16: =Pol02_27 -> 0 | EO16: =Pol02_20 -> 0 | EP16: =Pol02_29 -> anything | EQ16: =Pol02_21 -> 0 | ER16: =Pol02_30 -> 0 | ES16: =Pol01_KPI02 -> anything | ET16: =Pol03_tot -> 0 | EU16: =Pol03_15 -> 0 | EV16: =Pol03_01 -> Please select | EW16: =Pol03_02 -> No | EX16: =Pol03_10 -> 0 | EY16: =Pol03_11 -> 0 | EZ16: =Pol03_12 -> 0 | FA16: =Pol03_13 -> 0 | FB16: =Pol04_tot -> 0 | FC16: =Pol04_06 -> 0 | FD16: =Pol04_03 -> 0 | FE16: =Pol05_tot -> 0 | FF16: =Pol05_11 -> 0 | FG16: =Pol05_02 -> Yes | FH16: =IF(Pol05_02=AIS_No,AIS_NA,Pol05_03) -> No | FI16: =Inn01_tot -> 0 | FJ16: =Inn01_04 -> 0 | FK16: =Inn01_01 -> 0 | FL16: ='Detailed Scoring Approach'!N1359 -> 0 | FM16: ='Detailed Scoring Approach'!N1360 -> 0 | FN16: ='Detailed Scoring Approach'!N1361 -> 0 | FO16: ='Detailed Scoring Approach'!N1362 -> 0 | FP16: ='Detailed Scoring Approach'!N1363 -> 0 | FQ16: ='Detailed Scoring Approach'!#REF! ->  | FR16: ='Detailed Scoring Approach'!N1364 -> 0 | FS16: ='Detailed Scoring Approach'!N1365 -> 0 | FT16: ='Detailed Scoring Approach'!N1366 -> 0 | FU16: ='Detailed Scoring Approach'!N1367 -> 0 | FV16: ='Detailed Scoring Approach'!N1368 -> 0

Sheet Assessment References (hidden)
B2: =IF(OR(projecttype='Assessment Details'!Z214,projecttype=""),"BREEAM International 2013 New Construction Assessment Report: Assessment Validation References","BREEAM International Bespoke 2013 New Construction Assessment Report: Assessment Validation References") -> BREEAM International 2013 New Construction Assessment Report: Assessment Validation References
B3: =IF(AD_Mandatory_fields_text=AIS_statement09,"Warning: All Mandatory fields in the assessment details worksheet must be completed/defined before the assessment can begin.","") -> Warning: All Mandatory fields in the assessment details worksheet must be completed/defined before the assessment can begin.
E4: Building name: | G4: =IF(ADBN="","",ADBN) -> 
B6: Identifier | D6: Assessment Evidence Reference | R6: Assessment issue | T6: Issue criteria No. and/or compliance note | V6: Assessor's supporting notes/information
B7: 1 | D7: e.g. Project A, First floor plan, rev05, 1/10/10. Supplied by F Fitzgerald (23/3/11) | R7: Wat02 | T7: 1 | V7: e.g. Plan indicates location of water meter in plant room located in south-west corner of the building.
B8: 2 | D8: e.g. See identifier 1 | R8: Mat05 | T8: e.g. 1 and 2c | V8: e.g. Plan indicates vehicle parking within 1m of north façade and the provision of barriers to protect façade.
B9: 3
B10: 4
B11: 5
B12: 6
B13: 7
B14: 8
B15: 9
B16: 10
B17: 11
B18: 12
B19: 13
B20: 14
B21: 15
B22: 16
B23: 17
B24: 18
B25: 19
B26: 20
B27: 21
B28: 22
B29: 23
B30: 24
B31: 25
B32: 26
B33: 27
B34: 28
B35: 29
B36: 30
B37: 31
B38: 32
B39: 33
B40: 34
B41: 35
B42: 36
B43: 37
B44: 38
B45: 39
B46: 40
B47: 41
B48: 42
B49: 43
B50: 44
B51: 45
B52: 46
B53: 47
B54: 48
B55: 49
B56: 50
B57: 51
B58: 52
B59: 53
B60: 54
B61: 55
B62: 56
B63: 57
B64: 58
B65: 59
B66: 60
B67: 61
B68: 62
B69: 63
B70: 64
B71: 65
B72: 66
B73: 67
B74: 68
B75: 69
B76: 70
B77: 71
B78: 72
B79: 73
B80: 74
B81: 75
B82: 76
B83: 77
B84: 78
B85: 79
B86: 80
B87: 81
B88: 82
B89: 83
B90: 84
B91: 85
B92: 86
B93: 87
B94: 88
B95: 89
B96: 90
B97: 91
B98: 92
B99: 93
B100: 94
B101: 95
B102: 96
B103: 97
B104: 98
B105: 99
B106: 100
B107: 101
B108: 102
B109: 103
B110: 104
B111: 105
B112: 106
B113: 107
B114: 108
B115: 109
B116: 110
B117: 111
B118: 112
B119: 113
B120: 114
B121: 115
B122: 116
B123: 117
B124: 118
B125: 119
B126: 120
B127: 121
B128: 122
B129: 123
B130: 124
B131: 125
B132: 126
B133: 127
B134: 128
B135: 129
B136: 130
B137: 131
B138: 132
B139: 133
B140: 134
B141: 135
B142: 136
B143: 137
B144: 138
B145: 139
B146: 140
B147: 141
B148: 142
B149: 143
B150: 144
B151: 145
B152: 146
B153: 147
B154: 148
B155: 149
B156: 150
B157: 151
B158: 152
B159: 153
B160: 154
B161: 155
B162: 156
B163: 157
B164: 158
B165: 159
B166: 160
B167: 161
B168: 162
B169: 163
B170: 164
B171: 165
B172: 166
B173: 167
B174: 168
B175: 169
B176: 170
B177: 171
B178: 172
B179: 173
B180: 174
B181: 175
B182: 176
B183: 177
B184: 178
B185: 179
B186: 180
B187: 181
B188: 182
B189: 183
B190: 184
B191: 185
B192: 186
B193: 187
B194: 188
B195: 189
B196: 190
B197: 191
B198: 192
B199: 193
B200: 194
B201: 195
B202: 196
... 61 more rows

Sheet Ene01 Calibrators - Domestic (hidden)
D1: m2 | E1: kgCO2/m2 | F1: kgCO2/m2 | G1: MJ/m2 | H1: MJ/m2 | I1: MJ/m2 | J1: MJ/m2 | N1: CO2 | O1: Dem | P1: Con
A2: # | B2: File Name | C2: Building Type | D2: Area | E2: TER | F2: BER | G2: Dn | H2: Da | I2: Cn | J2: Ca | N2: % A/N | O2: % A/N | P2: % A/N
A3: 1 | B3: SH Baseline 1 bed ground elec.sap | E3: 28.9331 | F3: 26.1952 | G3: 153.3923686 | H3: 110.3277898 | I3: 130.1197 | J3: 50.66764 | N3: =(F3/E3) -> 0.9053713567 | O3: =(H3/G3) -> 0.7192521426 | P3: =(J3/I3) -> 0.3893925363
A4: 2 | B4: SH Baseline 1 bed top elec.sap | E4: 27.664 | F4: 24.5022 | G4: 134.7681785 | H4: 108.8288697 | I4: 124.0659 | J4: 47.39308 | N4: =(F4/E4) -> 0.8857070561 | O4: =(H4/G4) -> 0.8075264567 | P4: =(J4/I4) -> 0.381999244
A5: 3 | B5: SH Baseline 1 bed ground gas.sap | E5: 17.6394 | F5: 13.05444 | G5: 153.3923686 | H5: 77.94319654 | I5: 130.1197 | J5: 75.65294 | N5: =(F5/E5) -> 0.7400727916 | O5: =(H5/G5) -> 0.5081295585 | P5: =(J5/I5) -> 0.5814103475
A6: 4 | B6: SH Baseline 1 bed top gas.sap | E6: 16.9202 | F6: 13.02314 | G6: 134.7681785 | H6: 77.33599712 | I6: 124.0659 | J6: 75.49494 | N6: 0.7696800274 | O6: 0.5738446416 | P6: 0.6085067694
A7: 5 | B7: SH Baseline 1 bed ground heat pump.sap | E7: 28.9331 | F7: 21.8102 | G7: 153.3923686 | H7: 206.0148956 | I7: 130.1197 | J7: 42.18606 | N7: 0.7538148349 | O7: 1.343058312 | P7: 0.3242096316
A8: 6 | B8: SH Baseline 1 bed top heat pump.sap | E8: 27.664 | F8: 20.945 | G8: 134.7681785 | H8: 195.0821598 | I8: 124.0659 | J8: 40.51246 | N8: 0.7571211683 | O8: 1.447538743 | P8: 0.326539847
A9: 7 | B9: SH Baseline 2 bed ground elec.sap | E9: 26.777 | F9: 25.99484375 | G9: 162.0179761 | H9: 108.8916262 | I9: 120.8516094 | J9: 50.28004687 | N9: 0.970789997 | O9: 0.6720959539 | P9: 0.4160478055
A10: 8 | B10: SH Baseline 2 bed top elec.sap | E10: 25.4953 | F10: 24.46625 | G10: 143.2915992 | H10: 103.2027875 | I10: 114.7373906 | J10: 47.32346875 | N10: 0.9596376587 | O10: 0.720229156 | P10: 0.4124502788
A11: 9 | B11: SH Baseline 2 bed ground gas.sap | E11: 16.3449 | F11: 16.03265625 | G11: 162.0179761 | H11: 88.64285232 | I11: 120.8516094 | J11: 69.26598438 | N11: 0.9808965641 | O11: 0.5471173908 | P11: 0.573149044
A12: 10 | B12: SH Baseline 2 bed top gas.sap | E12: 15.6186 | F12: 15.40801563 | G12: 143.2915992 | H12: 80.91938895 | I12: 114.7373906 | J12: 66.70628125 | N12: 0.9865170774 | O12: 0.5647183046 | P12: 0.5813822407
A13: 11 | B13: SH Baseline 2 bed ground heat pump.sap | E13: 26.777 | F13: 19.75 | G13: 162.0179761 | H13: 214.9078699 | I13: 120.8516094 | J13: 38.20098437 | N13: 0.7375732905 | O13: 1.326444603 | P13: 0.3160982677
A14: 12 | B14: SH Baseline 2 bed top heat pump.sap | E14: 25.4953 | F14: 19.19296875 | G14: 143.2915992 | H14: 192.7809294 | I14: 114.7373906 | J14: 37.12373437 | N14: 0.7528041933 | O14: 1.345374959 | P14: 0.3235539363
A15: 13 | B15: SH Baseline 2 bed corner ground elec.sap | E15: 26.4814 | F15: 25.50042857 | G15: 170.5877815 | H15: 108.5300319 | I15: 119.7684857 | J15: 49.32397143 | N15: 0.9629562097 | O15: 0.636212224 | P15: 0.4118276284
A16: 14 | B16: SH Baseline 2 bed corner top elec.sap | E16: 25.1849 | F16: 21.98685714 | G16: 151.6208989 | H16: 108.5659776 | I16: 113.5839143 | J16: 48.69864286 | N16: 0.8730174487 | O16: 0.7160357073 | P16: 0.4287459467
A17: 15 | B17: SH Baseline 2 bed corner ground gas.sap | E17: 16.5127 | F17: 15.99128571 | G17: 179.974802 | H17: 99.32896225 | I17: 122.8147714 | J17: 69.3014 | N17: 0.9684234386 | O17: 0.5519048286 | P17: 0.5642757723
A18: 16 | B18: SH Baseline 2 bed corner top gas.sap | E18: 15.4161 | F18: 15.16571429 | G18: 151.6208989 | H18: 86.82361411 | I18: 113.5839143 | J18: 65.7165 | N18: 0.9837581675 | O18: 0.5726361916 | P18: 0.5785722425
A19: 17 | B19: SH Baseline 2 bed corner ground heat pump.sap | E19: 26.4814 | F19: 19.51585714 | G19: 170.5877815 | H19: 211.7818575 | I19: 119.7684857 | J19: 37.74848571 | N19: 0.7369647051 | O19: 1.241483156 | P19: 0.3151787842
A20: 18 | B20: SH Baseline 2 bed corner top heat pump.sap | E20: 25.1849 | F20: 19.02142857 | G20: 151.6208989 | H20: 196.9953461 | I20: 113.5839143 | J20: 36.79205714 | N20: 0.7552711574 | O20: 1.299262486 | P20: 0.3239196093
A21: 19 | B21: SH Baseline bungalow elec.sap | E21: 36.553 | F21: 33.4228125 | G21: 308.205656 | H21: 195.9013341 | I21: 167.4870781 | J21: 71.39696875 | N21: 0.9143657839 | O21: 0.6356188808 | P21: 0.4262834456
A22: 20 | B22: SH Baseline bungalow gas.sap | E22: 21.8852 | F22: 20.3578125 | G22: 308.205656 | H22: 195.3793197 | I22: 167.4870781 | J22: 92.213375 | N22: 0.9302091139 | O22: 0.6339251595 | P22: 0.550570086
A23: 21 | B23: SH Baseline bungalow heat pump.sap | E23: 36.553 | F23: 24.08625 | G23: 308.205656 | H23: 398.9909557 | I23: 167.4870781 | J23: 46.58853125 | N23: 0.6589404426 | O23: 1.294560784 | P23: 0.278161944
A25: CO2 | E25: Dem | I25: Con
C26: points | G26: points | K26: points
A27: Mean | B27: ='Ene01 Calibrators - Domestic'!N27 -> 0.8563758325 | C27: 0.6 | E27: Mean | F27: ='Ene01 Calibrators - Domestic'!O27 -> 0.8646176019 | G27: 0.8 | I27: Mean | J27: ='Ene01 Calibrators - Domestic'!P27 -> 0.4339178766 | K27: 0.8 | M27: Mean | N27: =AVERAGE(N3:N23) -> 0.8563758325 | O27: =AVERAGE(O3:O23) -> 0.8646176019 | P27: =AVERAGE(P3:P23) -> 0.4339178766
A28: Std Dev | B28: ='Ene01 Calibrators - Domestic'!N28 -> 0.1091796497 | C28: =LOG(1-C27)/LOG(B27) -> 5.909801425 | E28: Std Dev | F28: ='Ene01 Calibrators - Domestic'!O28 -> 0.3447128166 | G28: =LOG(1-G27)/LOG(F27) -> 11.06386616 | I28: Std Dev | J28: ='Ene01 Calibrators - Domestic'!P28 -> 0.1120289098 | K28: =LOG(1-K27)/LOG(J27) -> 1.927701446 | M28: StanDev | N28: =STDEV(N3:N23) -> 0.1091796497 | O28: =STDEV(O3:O23) -> 0.3447128166 | P28: =STDEV(P3:P23) -> 0.1120289098
A29: x | B29: CO2 | C29: Translator | E29: x | F29: Dem | G29: Translator | I29: x | J29: Con | K29: Translator | M29: x | N29: CO2 | O29: Dem | P29: Con
A30: =M30 -> 0 | B30: =ROUND(NORMDIST($A30,B$27,B$28,FALSE),3) -> 0 | C30: =1-$A30^C$28 -> 1 | E30: =M30 -> 0 | F30: =ROUND(NORMDIST($A30,F$27,F$28,FALSE),3) -> 0.05 | G30: =1-$E30^G$28 -> 1 | I30: =M30 -> 0 | J30: =ROUND(NORMDIST($A30,J$27,J$28,FALSE),3) -> 0.002 | K30: =1-$I30^K$28 -> 1 | M30: 0 | N30: =ROUND(NORMDIST($M30,N$27,N$28,FALSE),3) -> 0 | O30: 0.05 | P30: 0.002
A31: 0.0025 | B31: 0 | C31: 1 | E31: 0.0025 | F31: 0.051 | G31: 1 | I31: 0.0025 | J31: 0.002 | K31: 0.9999903616 | M31: 0.0025 | N31: 0 | O31: 0.051 | P31: 0.002
A32: 0.01 | B32: 0 | C32: 1 | E32: 0.01 | F32: 0.054 | G32: 1 | I32: 0.01 | J32: 0.003 | K32: 0.9998604926 | M32: 0.01 | N32: 0 | O32: 0.054 | P32: 0.003
A33: 0.0225 | B33: 0 | C33: 0.9999999998 | E33: 0.0225 | F33: 0.059 | G33: 1 | I33: 0.0225 | J33: 0.004 | K33: 0.9993339607 | M33: 0.0225 | N33: 0 | O33: 0.059 | P33: 0.004
A34: 0.04 | B34: 0 | C34: 0.9999999945 | E34: 0.04 | F34: 0.066 | G34: 1 | I34: 0.04 | J34: 0.007 | K34: 0.997980755 | M34: 0.04 | N34: 0 | O34: 0.066 | P34: 0.007
A35: 0.0625 | B35: 0 | C35: 0.9999999235 | E35: 0.0625 | F35: 0.077 | G35: 1 | I35: 0.0625 | J35: 0.015 | K35: 0.9952267282 | M35: 0.0625 | N35: 0 | O35: 0.077 | P35: 0.015
A36: 0.09 | B36: 0 | C36: 0.9999993396 | E36: 0.09 | F36: 0.093 | G36: 1 | I36: 0.09 | J36: 0.032 | K36: 0.9903596728 | M36: 0.09 | N36: 0 | O36: 0.093 | P36: 0.032
A37: 0.1225 | B37: 0 | C37: 0.9999959162 | E37: 0.1225 | F37: 0.114 | G37: 0.9999999999 | I37: 0.1225 | J37: 0.075 | K37: 0.9825337923 | M37: 0.1225 | N37: 0 | O37: 0.114 | P37: 0.075
A38: 0.16 | B38: 0 | C38: 0.9999802072 | E38: 0.16 | F38: 0.143 | G38: 0.9999999984 | I38: 0.16 | J38: 0.179 | K38: 0.970773222 | M38: 0.16 | N38: 0 | O38: 0.143 | P38: 0.179
A39: 0.2025 | B39: 0 | C39: 0.999920364 | E39: 0.2025 | F39: 0.183 | G39: 0.9999999788 | I39: 0.2025 | J39: 0.422 | K39: 0.9539749231 | M39: 0.2025 | N39: 0 | O39: 0.183 | P39: 0.422
A40: 0.25 | B40: 0 | C40: 0.9997233409 | E40: 0.25 | F40: 0.236 | G40: 0.9999997818 | I40: 0.25 | J40: 0.925 | K40: 0.9309111308 | M40: 0.25 | N40: 0 | O40: 0.236 | P40: 0.925
A41: 0.3025 | B41: 0 | C41: 0.9991465264 | E41: 0.3025 | F41: 0.306 | G41: 0.9999982019 | I41: 0.3025 | J41: 1.79 | K41: 0.9002314725 | M41: 0.3025 | N41: 0 | O41: 0.306 | P41: 1.79
A42: 0.36 | B42: 0 | C42: 0.9976130909 | E42: 0.36 | F42: 0.396 | G42: 0.9999876692 | I42: 0.36 | J42: 2.864 | K42: 0.8604648289 | M42: 0.36 | N42: 0 | O42: 0.396 | P42: 2.864
A43: 0.4225 | B43: 0.001 | C43: 0.9938523352 | E43: 0.4225 | F43: 0.508 | G43: 0.9999275236 | I43: 0.4225 | J43: 3.543 | K43: 0.8100209926 | M43: 0.4225 | N43: 0.001 | O43: 0.508 | P43: 3.543
A44: 0.49 | B44: 0.013 | C44: 0.9852388446 | E44: 0.49 | F44: 0.641 | G44: 0.9996264309 | I44: 0.49 | J44: 3.142 | K44: 0.7471921614 | M44: 0.49 | N44: 0.013 | O44: 0.641 | P44: 3.142
A45: 0.5625 | B45: 0.098 | C45: 0.9666363349 | E45: 0.5625 | F45: 0.788 | G45: 0.9982805519 | I45: 0.5625 | J45: 1.843 | K45: 0.6701542948 | M45: 0.5625 | N45: 0.098 | O45: 0.788 | P45: 1.843
A46: 0.64 | B46: 0.513 | C46: 0.9284578259 | E46: 0.64 | F46: 0.936 | G46: 0.9928286458 | I46: 0.64 | J46: 0.656 | K46: 0.5769683554 | M46: 0.64 | N46: 0.513 | O46: 0.936 | P46: 0.656
A47: 0.7225 | B47: 1.723 | C47: 0.8535262727 | E47: 0.7225 | F47: 1.063 | G47: 0.9725715743 | I47: 0.7225 | J47: 0.129 | K47: 0.4655814527 | M47: 0.7225 | N47: 1.723 | O47: 1.063 | P47: 0.129
A48: 0.81 | B48: 3.339 | C48: 0.7121510602 | E48: 0.81 | F48: 1.143 | G48: 0.9028393307 | I48: 0.81 | J48: 0.013 | K48: 0.3338279022 | M48: 0.81 | N48: 3.339 | O48: 1.143 | P48: 0.013
A49: 0.9025 | B49: 3.342 | C49: 0.4546166672 | E49: 0.9025 | F49: 1.15 | G49: 0.6785792568 | I49: 0.9025 | J49: 0.001 | K49: 0.1794302111 | M49: 0.9025 | N49: 3.342 | O49: 1.15 | P49: 0.001
A50: 1 | B50: 1.538 | C50: 0 | E50: 1 | F50: 1.071 | G50: 0 | I50: 1 | J50: 0 | K50: 0 | M50: 1 | N50: 1.538 | O50: 1.071 | P50: 0
A51: 1.09 | B51: 0.37 | E51: 1.09 | F51: 0.935 | I51: 1.09 | J51: 0 | M51: 1.09 | N51: 0.37 | O51: 0.935 | P51: 0
A52: 1.1825 | B52: 0.042 | E52: 1.1825 | F52: 0.756 | I52: 1.1825 | J52: 0 | M52: 1.1825 | N52: 0.042 | O52: 0.756 | P52: 0
A53: 1.275 | B53: 0.002 | E53: 1.275 | F53: 0.57 | I53: 1.275 | J53: 0 | M53: 1.275 | N53: 0.002 | O53: 0.57 | P53: 0
A54: 1.3675 | B54: 0 | E54: 1.3675 | F54: 0.399 | I54: 1.3675 | J54: 0 | M54: 1.3675 | N54: 0 | O54: 0.399 | P54: 0
A55: 1.46 | B55: 0 | E55: 1.46 | F55: 0.26 | I55: 1.46 | J55: 0 | M55: 1.46 | N55: 0 | O55: 0.26 | P55: 0
A56: 1.5 | B56: 0 | E56: 1.5 | F56: 0.212 | I56: 1.5 | J56: 0 | M56: 1.5 | N56: 0 | O56: 0.212 | P56: 0
B57: 0 | F57: 0.05 | J57: 0.002
B59: Scale weights
C60: CO2 | D60: Dem | E60: Con
A61: =SUM(B28,F28,J28) -> 0.5659213762 | B61: D StdDev | C61: =B28/A61 -> 0.1929237069 | D61: =F28/A61 -> 0.6091178583 | E61: =J28/A61 -> 0.1979584348
A62: =1/B28+1/F28+1/J28 -> 20.98644893 | B62: I StdDev | C62: =1/B28/A62 -> 0.4364347718 | D62: =1/F28/A62 -> 0.1382304145 | E62: =1/J28/A62 -> 0.4253348138 | V62: 0.02
B63: Arbitrary | C63: 0.4 | D63: 0.3 | E63: 0.3 | V63: First stage | Y63: Weighted
B64: linear | C64: 0.33333333 | D64: 0.33333333 | E64: 0.33333333 | L64: kgCO2/m2 | M64: kgCO2/m2 | N64: MJ/m2 | O64: MJ/m2 | P64: MJ/m2 | Q64: MJ/m2 | S64: CO2 | T64: Dem | U64: Con | V64: CO2 | W64: Dem | X64: Con | Y64: CO2 | Z64: Dem | AA64: Con
B65: Used | C65: =C62 -> 0.4364347718 | D65: =D62 -> 0.1382304145 | E65: =E62 -> 0.4253348138 | I65: IFsap | J65: =1-(1-0.25)*(1-0.25) -> 0.4375 | L65: TER | M65: BER | N65: Dn | O65: Da | P65: Cn | Q65: Ca | S65: % A/N | T65: % A/N | U65: % A/N | V65: EPR | W65: EPR | X65: EPR | AB65: EPR
I66: IF | J66: =J65 -> 0.4375 | L66: =IF(AD_MultiRes_option02=1,Ene01_06,Ene01_48) -> 0 | M66: =IF(AD_MultiRes_option02=1,Ene01_07,Ene01_49) -> 0 | N66: =IF(AD_MultiRes_option02=1,Ene01_02,Ene01_44) -> 0 | O66: =IF(AD_MultiRes_option02=1,Ene01_03,Ene01_45) -> 0 | P66: =IF(AD_MultiRes_option02=1,Ene01_04,Ene01_46) -> 0 | Q66: =IF(AD_MultiRes_option02=1,Ene01_05,Ene01_47) -> 0 | S66: =IF(L66=0,1,(M66/L66)) -> 1 | T66: =IF(N66=0,1,(O66/N66)) -> 1 | U66: =IF(P66=0,1,(Q66/P66)) -> 1 | V66: =IF(S66>1,0,IF(VLOOKUP(S66,$E$91:$F$191,2,1)<V62,0,VLOOKUP(S66,$E$91:$F$191,2,1))) -> 0.05766598743 | W66: =IF(T66>1,0,IF(VLOOKUP(T66,$M$91:$N$191,2,1)<V62,0,VLOOKUP(T66,$M$91:$N$191,2,1))) -> 0 | X66: =IF(U66>1,0,IF(VLOOKUP(U66,$T$91:$U$191,2,1)<V62,0,VLOOKUP(U66,$T$91:$U$191,2,1))) -> 0 | Y66: =V66*C65 -> 0.02516744206 | Z66: =W66*D65 -> 0 | AA66: =X66*E65 -> 0 | AB66: =IF(V66>1,0,V66*$C$65+W66*$D$65+X66*$E$65) -> 0.02516744206
B69: CO2 | C69: Use Bezier? | E69: 0 | I69: Demand | J69: Use Bezier? | M69: 1 | Q69: Consumption | R69: Use Bezier? | T69: 1
D70: Bezier | E70: key slope | K70: Bezier | M70: key slope | S70: Bezier | T70: key slope
D71: Demand | E71: =-$C$28*$B$27^($C$28-1) -> -2.760377489 | K71: Demand | M71: =-$G$28*$F$27^($G$28-1) -> -2.559250733 | S71: Demand | T71: =-$K$28*$J$27^($K$28-1) -> -0.8885098078
D72: x | E72: y | K72: x | M72: y | S72: x | T72: y
C73: 1 | D73: =$B$27 -> 0.8563758325 | E73: =$C$27 -> 0.6 | J73: 1 | K73: =$F$27 -> 0.8646176019 | M73: =$G$27 -> 0.8 | R73: 1 | S73: =$J$27 -> 0.4339178766 | T73: =$K$27 -> 0.8
C74: 2 | D74: =(-$C$28+E73-E71*D73)/(-$C$28-E71) -> 0.9353713297 | E74: =-$C$28*(D74-1) -> 0.381942608 | J74: 2 | K74: =(-$G$28+M73-M71*K73)/(-$G$28-M71) -> 0.9466733678 | M74: =-$G$28*(K74-1) -> 0.5899987209 | R74: 2 | S74: =(-$K$28+T73-T71*S73)/(-$K$28-T71) -> 0.7141716017 | T74: =-$K$28*(S74-1) -> 0.5509918165
C75: 3 | D75: =IF(E69,MAX(D73,1-$J$66),1) -> 1 | E75: 0 | J75: 3 | K75: =IF(M69,MAX(K73,1-$J$66),1) -> 0.8646176019 | M75: 0 | R75: 3 | S75: =IF(T69,MAX(S73,1-$J$66),1) -> 0.5625 | T75: 0
C76: 4 | D76: 1 | E76: 0 | J76: 4 | K76: 1 | M76: 0 | R76: 4 | S76: 1 | T76: 0
B77: Integers | C77: t | D77: Dx | E77: Dy | I77: Integers | J77: t | K77: Dx | M77: Dy | Q77: Integers | R77: t | S77: Dx | T77: Dy
B78: 0 | C78: =0.001*B78 -> 0 | D78: =$D$73*(1-C78)^3+$D$74*3*(1-C78)^2*C78+$D$75*3*(1-C78)*C78^2+$D$76*C78^3 -> 0.8563758325 | E78: =$E$73*(1-C78)^3+$E$74*3*(1-C78)^2*C78+$E$75*3*(1-C78)*C78^2+$E$76*C78^3 -> 0.6 | I78: 0 | J78: =0.001*I78 -> 0 | K78: =$K$73*(1-J78)^3+$K$74*3*(1-J78)^2*J78+$K$75*3*(1-J78)*J78^2+$K$76*J78^3 -> 0.8646176019 | M78: =$M$73*(1-J78)^3+$M$74*3*(1-J78)^2*J78+$M$75*3*(1-J78)*J78^2+$M$76*J78^3 -> 0.8 | Q78: 0 | R78: =0.001*Q78 -> 0 | S78: =$S$73*(1-R78)^3+$S$74*3*(1-R78)^2*R78+$S$75*3*(1-R78)*R78^2+$S$76*R78^3 -> 0.4339178766 | T78: =$T$73*(1-R78)^3+$T$74*3*(1-R78)^2*R78+$T$75*3*(1-R78)*R78^2+$T$76*R78^3 -> 0.8
B79: =B78+1 -> 1 | C79: =0.1*B79 -> 0.1 | D79: 0.879593215 | E79: 0.5302120537 | I79: =I78+1 -> 1 | J79: =0.1*I79 -> 0.1 | K79: 0.8846925354 | M79: 0.7265696892 | Q79: =Q78+1 -> 1 | R79: =0.1*Q79 -> 0.1 | S79: 0.5060573312 | T79: 0.7170910114
B80: 2 | C80: 0.2 | D80: 0.9016470169 | E80: 0.4538659615 | I80: 2 | J80: 0.2 | K80: 0.8972100752 | M80: 0.6361595088 | Q80: 2 | R80: 0.2 | S80: 0.5584078479 | T80: 0.6211808575
B81: 3 | C81: 0.3 | D81: 0.9222356669 | E81: 0.3742366901 | I81: 3 | J81: 0.3 | K81: 0.9044595194 | M81: 0.5345894359 | Q81: 3 | R81: 0.3 | S81: 0.597096008 | T81: 0.5173873911
B82: 4 | C82: 0.4 | D82: 0.9410575942 | E82: 0.2945992067 | I82: 4 | J82: 0.4 | K82: 0.9087301663 | M82: 0.4276794474 | Q82: 4 | R82: 0.4 | S82: 0.6282483933 | T82: 0.4108284647
B83: 5 | C83: 0.5 | D83: 0.9578112277 | E83: 0.218228478 | I83: 5 | J83: 0.5 | K83: 0.9123113139 | M83: 0.3212495204 | Q83: 5 | R83: 0.5 | S83: 0.6579915852 | T83: 0.3066219312
B84: 6 | C84: 0.6 | D84: 0.9721949962 | E84: 0.1483994711 | I84: 6 | J84: 0.6 | K84: 0.9174922605 | M84: 0.2211196316 | Q84: 6 | R84: 0.6 | S84: 0.6924521654 | T84: 0.2098856431
B85: 7 | C85: 0.7 | D85: 0.9839073288 | E85: 0.08838715292 | I85: 7 | J85: 0.7 | K85: 0.9265623042 | M85: 0.1331097583 | Q85: 7 | R85: 0.7 | S85: 0.7377567154 | T85: 0.1257374533
B86: 8 | C86: 0.8 | D86: 0.9926466543 | E86: 0.04146649037 | I86: 8 | J86: 0.8 | K86: 0.9418107433 | M86: 0.06303987721 | Q86: 8 | R86: 0.8 | S86: 0.8000318168 | T86: 0.05929521438
B87: 9 | C87: 0.9 | D87: 0.9981114017 | E87: 0.01091245042 | I87: 9 | J87: 0.9 | K87: 0.9655268758 | M87: 0.01672996547 | Q87: 9 | R87: 0.9 | S87: 0.8854040511 | T87: 0.01567677905
B88: 10 | C88: 1 | D88: 1 | E88: 0 | I88: 10 | J88: 1 | K88: 1 | M88: 0 | Q88: 10 | R88: 1 | S88: 1 | T88: 0
H89: dupY? | P89: dupY? | W89: dupY?
B90: X | D90: t | E90: x | F90: y | G90: yold | H90: =SUM(H91:H191) -> 0 | I90: X | K90: t | M90: x | N90: y | O90: yold | P90: =SUM(P91:P191) -> 0 | Q90: X | S90: t | T90: x | U90: y | V90: yold | W90: =SUM(W91:W191) -> 0
B91: 0 | C91: =IF(B91<$B$27,0,1) -> 0 | D91: =0 -> 0 | E91: =IF(AND(C91,$E$69),$D$73*(1-D91)^3+$D$74*3*(1-D91)^2*D91+$D$75*3*(1-D91)*D91^2+$D$76*D91^3,B91) -> 0 | F91: =IF(AND(C91,$E$69),$E$73*(1-D91)^3+$E$74*3*(1-D91)^2*D91+$E$75*3*(1-D91)*D91^2+$E$76*D91^3,1-E91^$C$28) -> 1 | G91: =1-E91^$C$28 -> 1 | H91: =E91 -> 0 | I91: 0 | J91: =IF(I91<$F$27,0,1) -> 0 | K91: =0 -> 0 | M91: =IF(AND(J91,$M$69),$K$73*(1-K91)^3+$K$74*3*(1-K91)^2*K91+$K$75*3*(1-K91)*K91^2+$K$76*K91^3,I91) -> 0 | N91: =IF(AND(J91,$M$69),$M$73*(1-K91)^3+$M$74*3*(1-K91)^2*K91+$M$75*3*(1-K91)*K91^2+$M$76*K91^3,1-M91^$G$28) -> 1 | O91: =1-M91^$G$28 -> 1 | P91: =M91 -> 0 | Q91: 0 | R91: =IF(Q91<$J$27,0,1) -> 0 | S91: =0 -> 0 | T91: =IF(AND(R91,$T$69),$S$73*(1-S91)^3+$S$74*3*(1-S91)^2*S91+$S$75*3*(1-S91)*S91^2+$S$76*S91^3,Q91) -> 0 | U91: =IF(AND(R91,$T$69),$T$73*(1-S91)^3+$T$74*3*(1-S91)^2*S91+$T$75*3*(1-S91)*S91^2+$T$76*S91^3,1-T91^$K$28) -> 1 | V91: =1-T91^$K$28 -> 1 | W91: =T91 -> 0
B92: =B91+0.01 -> 0.01 | C92: 0 | D92: =IF(C92,D91+1/SUM($C$91:$C$191),0) -> 0 | E92: 0.01 | F92: 1 | G92: 1 | H92: =IF(E92<=E91,1,0) -> 0 | I92: =I91+0.01 -> 0.01 | J92: 0 | K92: =IF(J92,K91+1/SUM($J$91:$J$191),0) -> 0 | M92: 0.01 | N92: 1 | O92: 1 | P92: =IF(M92<=M91,1,0) -> 0 | Q92: =Q91+0.01 -> 0.01 | R92: 0 | S92: =IF(R92,S91+1/SUM($R$91:$R$191),0) -> 0 | T92: =IF(AND(R92,$T$69),$S$73*(1-S92)^3+$S$74*3*(1-S92)^2*S92+$S$75*3*(1-S92)*S92^2+$S$76*S92^3,Q92) -> 0.01 | U92: 0.9998604926 | V92: 0.9998604926 | W92: =IF(T92<=T91,1,0) -> 0
B93: 0.02 | C93: 0 | D93: 0 | E93: 0.02 | F93: 0.9999999999 | G93: 0.9999999999 | H93: 0 | I93: 0.02 | J93: 0 | K93: 0 | M93: 0.02 | N93: 1 | O93: 1 | P93: 0 | Q93: 0.02 | R93: 0 | S93: 0 | T93: 0.02 | U93: 0.9994692463 | V93: 0.9994692463 | W93: 0
B94: 0.03 | C94: 0 | D94: 0 | E94: 0.03 | F94: 0.999999999 | G94: 0.999999999 | H94: 0 | I94: 0.03 | J94: 0 | K94: 0 | M94: 0.03 | N94: 1 | O94: 1 | P94: 0 | Q94: 0.03 | R94: 0 | S94: 0 | T94: 0.03 | U94: 0.9988403032 | V94: 0.9988403032 | W94: 0
B95: 0.04 | C95: 0 | D95: 0 | E95: 0.04 | F95: 0.9999999945 | G95: 0.9999999945 | H95: 0 | I95: 0.04 | J95: 0 | K95: 0 | M95: 0.04 | N95: 1 | O95: 1 | P95: 0 | Q95: 0.04 | R95: 0 | S95: 0 | T95: 0.04 | U95: 0.997980755 | V95: 0.997980755 | W95: 0
B96: 0.05 | C96: 0 | D96: 0 | E96: 0.05 | F96: 0.9999999795 | G96: 0.9999999795 | H96: 0 | I96: 0.05 | J96: 0 | K96: 0 | M96: 0.05 | N96: 1 | O96: 1 | P96: 0 | Q96: 0.05 | R96: 0 | S96: 0 | T96: 0.05 | U96: 0.9968954218 | V96: 0.9968954218 | W96: 0
B97: 0.06 | C97: 0 | D97: 0 | E97: 0.06 | F97: 0.9999999399 | G97: 0.9999999399 | H97: 0 | I97: 0.06 | J97: 0 | K97: 0 | M97: 0.06 | N97: 1 | O97: 1 | P97: 0 | Q97: 0.06 | R97: 0 | S97: 0 | T97: 0.06 | U97: 0.9955879503 | V97: 0.9955879503 | W97: 0
B98: 0.07 | C98: 0 | D98: 0 | E98: 0.07 | F98: 0.9999998505 | G98: 0.9999998505 | H98: 0 | I98: 0.07 | J98: 0 | K98: 0 | M98: 0.07 | N98: 1 | O98: 1 | P98: 0 | Q98: 0.07 | R98: 0 | S98: 0 | T98: 0.07 | U98: 0.9940612667 | V98: 0.9940612667 | W98: 0
B99: 0.08 | C99: 0 | D99: 0 | E99: 0.08 | F99: 0.9999996708 | G99: 0.9999996708 | H99: 0 | I99: 0.08 | J99: 0 | K99: 0 | M99: 0.08 | N99: 1 | O99: 1 | P99: 0 | Q99: 0.08 | R99: 0 | S99: 0 | T99: 0.08 | U99: 0.9923178111 | V99: 0.9923178111 | W99: 0
B100: 0.09 | C100: 0 | D100: 0 | E100: 0.09 | F100: 0.9999993396 | G100: 0.9999993396 | H100: 0 | I100: 0.09 | J100: 0 | K100: 0 | M100: 0.09 | N100: 1 | O100: 1 | P100: 0 | Q100: 0.09 | R100: 0 | S100: 0 | T100: 0.09 | U100: 0.9903596728 | V100: 0.9903596728 | W100: 0
B101: 0.1 | C101: 0 | D101: 0 | E101: 0.1 | F101: 0.9999987692 | G101: 0.9999987692 | H101: 0 | I101: 0.1 | J101: 0 | K101: 0 | M101: 0.1 | N101: 1 | O101: 1 | P101: 0 | Q101: 0.1 | R101: 0 | S101: 0 | T101: 0.1 | U101: 0.9881886768 | V101: 0.9881886768 | W101: 0
B102: 0.11 | C102: 0 | D102: 0 | E102: 0.11 | F102: 0.9999978382 | G102: 0.9999978382 | H102: 0 | I102: 0.11 | J102: 0 | K102: 0 | M102: 0.11 | N102: 1 | O102: 1 | P102: 0 | Q102: 0.11 | R102: 0 | S102: 0 | T102: 0.11 | U102: 0.9858064415 | V102: 0.9858064415 | W102: 0
B103: 0.12 | C103: 0 | D103: 0 | E103: 0.12 | F103: 0.9999963847 | G103: 0.9999963847 | H103: 0 | I103: 0.12 | J103: 0 | K103: 0 | M103: 0.12 | N103: 0.9999999999 | O103: 0.9999999999 | P103: 0 | Q103: 0.12 | R103: 0 | S103: 0 | T103: 0.12 | U103: 0.9832144198 | V103: 0.9832144198 | W103: 0
B104: 0.13 | C104: 0 | D104: 0 | E104: 0.13 | F104: 0.999994198 | G104: 0.999994198 | H104: 0 | I104: 0.13 | J104: 0 | K104: 0 | M104: 0.13 | N104: 0.9999999998 | O104: 0.9999999998 | P104: 0 | Q104: 0.13 | R104: 0 | S104: 0 | T104: 0.13 | U104: 0.9804139292 | V104: 0.9804139292 | W104: 0
B105: 0.14 | C105: 0 | D105: 0 | E105: 0.14 | F105: 0.9999910095 | G105: 0.9999910095 | H105: 0 | I105: 0.14 | J105: 0 | K105: 0 | M105: 0.14 | N105: 0.9999999996 | O105: 0.9999999996 | P105: 0 | Q105: 0.14 | R105: 0 | S105: 0 | T105: 0.14 | U105: 0.977406174 | V105: 0.977406174 | W105: 0
B106: 0.15 | C106: 0 | D106: 0 | E106: 0.15 | F106: 0.9999864835 | G106: 0.9999864835 | H106: 0 | I106: 0.15 | J106: 0 | K106: 0 | M106: 0.15 | N106: 0.9999999992 | O106: 0.9999999992 | P106: 0 | Q106: 0.15 | R106: 0 | S106: 0 | T106: 0.15 | U106: 0.9741922627 | V106: 0.9741922627 | W106: 0
B107: 0.16 | C107: 0 | D107: 0 | E107: 0.16 | F107: 0.9999802072 | G107: 0.9999802072 | H107: 0 | I107: 0.16 | J107: 0 | K107: 0 | M107: 0.16 | N107: 0.9999999984 | O107: 0.9999999984 | P107: 0 | Q107: 0.16 | R107: 0 | S107: 0 | T107: 0.16 | U107: 0.970773222 | V107: 0.970773222 | W107: 0
B108: 0.17 | C108: 0 | D108: 0 | E108: 0.17 | F108: 0.9999716792 | G108: 0.9999716792 | H108: 0 | I108: 0.17 | J108: 0 | K108: 0 | M108: 0.17 | N108: 0.9999999969 | O108: 0.9999999969 | P108: 0 | Q108: 0.17 | R108: 0 | S108: 0 | T108: 0.17 | U108: 0.9671500076 | V108: 0.9671500076 | W108: 0
B109: 0.18 | C109: 0 | D109: 0 | E109: 0.18 | F109: 0.9999602984 | G109: 0.9999602984 | H109: 0 | I109: 0.18 | J109: 0 | K109: 0 | M109: 0.18 | N109: 0.9999999942 | O109: 0.9999999942 | P109: 0 | Q109: 0.18 | R109: 0 | S109: 0 | T109: 0.18 | U109: 0.9633235129 | V109: 0.9633235129 | W109: 0
B110: 0.19 | C110: 0 | D110: 0 | E110: 0.19 | F110: 0.9999453517 | G110: 0.9999453517 | H110: 0 | I110: 0.19 | J110: 0 | K110: 0 | M110: 0.19 | N110: 0.9999999895 | O110: 0.9999999895 | P110: 0 | Q110: 0.19 | R110: 0 | S110: 0 | T110: 0.19 | U110: 0.9592945768 | V110: 0.9592945768 | W110: 0
B111: 0.2 | C111: 0 | D111: 0 | E111: 0.2 | F111: 0.999926001 | G111: 0.999926001 | H111: 0 | I111: 0.2 | J111: 0 | K111: 0 | M111: 0.2 | N111: 0.9999999815 | O111: 0.9999999815 | P111: 0 | Q111: 0.2 | R111: 0 | S111: 0 | T111: 0.2 | U111: 0.9550639895 | V111: 0.9550639895 | W111: 0
B112: 0.21 | C112: 0 | D112: 0 | E112: 0.21 | F112: 0.9999012697 | G112: 0.9999012697 | H112: 0 | I112: 0.21 | J112: 0 | K112: 0 | M112: 0.21 | N112: 0.9999999683 | O112: 0.9999999683 | P112: 0 | Q112: 0.21 | R112: 0 | S112: 0 | T112: 0.21 | U112: 0.9506324977 | V112: 0.9506324977 | W112: 0
B113: 0.22 | C113: 0 | D113: 0 | E113: 0.22 | F113: 0.9998700284 | G113: 0.9998700284 | H113: 0 | I113: 0.22 | J113: 0 | K113: 0 | M113: 0.22 | N113: 0.999999947 | O113: 0.999999947 | P113: 0 | Q113: 0.22 | R113: 0 | S113: 0 | T113: 0.22 | U113: 0.9460008093 | V113: 0.9460008093 | W113: 0
B114: 0.23 | C114: 0 | D114: 0 | E114: 0.23 | F114: 0.9998309799 | G114: 0.9998309799 | H114: 0 | I114: 0.23 | J114: 0 | K114: 0 | M114: 0.23 | N114: 0.9999999133 | O114: 0.9999999133 | P114: 0 | Q114: 0.23 | R114: 0 | S114: 0 | T114: 0.23 | U114: 0.9411695965 | V114: 0.9411695965 | W114: 0
B115: 0.24 | C115: 0 | D115: 0 | E115: 0.24 | F115: 0.9997826441 | G115: 0.9997826441 | H115: 0 | I115: 0.24 | J115: 0 | K115: 0 | M115: 0.24 | N115: 0.9999998611 | O115: 0.9999998611 | P115: 0 | Q115: 0.24 | R115: 0 | S115: 0 | T115: 0.24 | U115: 0.9361395 | V115: 0.9361395 | W115: 0
B116: 0.25 | C116: 0 | D116: 0 | E116: 0.25 | F116: 0.9997233409 | G116: 0.9997233409 | H116: 0 | I116: 0.25 | J116: 0 | K116: 0 | M116: 0.25 | N116: 0.9999997818 | O116: 0.9999997818 | P116: 0 | Q116: 0.25 | R116: 0 | S116: 0 | T116: 0.25 | U116: 0.9309111308 | V116: 0.9309111308 | W116: 0
B117: 0.26 | C117: 0 | D117: 0 | E117: 0.26 | F117: 0.9996511742 | G117: 0.9996511742 | H117: 0 | I117: 0.26 | J117: 0 | K117: 0 | M117: 0.26 | N117: 0.9999996632 | O117: 0.9999996632 | P117: 0 | Q117: 0.26 | R117: 0 | S117: 0 | T117: 0.26 | U117: 0.9254850735 | V117: 0.9254850735 | W117: 0
B118: 0.27 | C118: 0 | D118: 0 | E118: 0.27 | F118: 0.9995640138 | G118: 0.9995640138 | H118: 0 | I118: 0.27 | J118: 0 | K118: 0 | M118: 0.27 | N118: 0.9999994887 | O118: 0.9999994887 | P118: 0 | Q118: 0.27 | R118: 0 | S118: 0 | T118: 0.27 | U118: 0.9198618881 | V118: 0.9198618881 | W118: 0
B119: 0.28 | C119: 0 | D119: 0 | E119: 0.28 | F119: 0.9994594775 | G119: 0.9994594775 | H119: 0 | I119: 0.28 | J119: 0 | K119: 0 | M119: 0.28 | N119: 0.9999992354 | O119: 0.9999992354 | P119: 0 | Q119: 0.28 | R119: 0 | S119: 0 | T119: 0.28 | U119: 0.9140421117 | V119: 0.9140421117 | W119: 0
B120: 0.29 | C120: 0 | D120: 0 | E120: 0.29 | F120: 0.9993349123 | G120: 0.9993349123 | H120: 0 | I120: 0.29 | J120: 0 | K120: 0 | M120: 0.29 | N120: 0.9999988727 | O120: 0.9999988727 | P120: 0 | Q120: 0.29 | R120: 0 | S120: 0 | T120: 0.29 | U120: 0.9080262607 | V120: 0.9080262607 | W120: 0
B121: 0.3 | C121: 0 | D121: 0 | E121: 0.3 | F121: 0.9991873745 | G121: 0.9991873745 | H121: 0 | I121: 0.3 | J121: 0 | K121: 0 | M121: 0.3 | N121: 0.9999983596 | O121: 0.9999983596 | P121: 0 | Q121: 0.3 | R121: 0 | S121: 0 | T121: 0.3 | U121: 0.9018148322 | V121: 0.9018148322 | W121: 0
B122: 0.31 | C122: 0 | D122: 0 | E122: 0.31 | F122: 0.9990136101 | G122: 0.9990136101 | H122: 0 | I122: 0.31 | J122: 0 | K122: 0 | M122: 0.31 | N122: 0.9999976423 | O122: 0.9999976423 | P122: 0 | Q122: 0.31 | R122: 0 | S122: 0 | T122: 0.31 | U122: 0.8954083048 | V122: 0.8954083048 | W122: 0
B123: 0.32 | C123: =IF(B123<$B$27,0,1) -> 0 | D123: 0 | E123: =IF(AND(C123,$E$69),$D$73*(1-D123)^3+$D$74*3*(1-D123)^2*D123+$D$75*3*(1-D123)*D123^2+$D$76*D123^3,B123) -> 0.32 | F123: =IF(AND(C123,$E$69),$E$73*(1-D123)^3+$E$74*3*(1-D123)^2*D123+$E$75*3*(1-D123)*D123^2+$E$76*D123^3,1-E123^$C$28) -> 0.9988100338 | G123: =1-E123^$C$28 -> 0.9988100338 | H123: 0 | I123: 0.32 | J123: =IF(I123<$F$27,0,1) -> 0 | K123: 0 | M123: =IF(AND(J123,$M$69),$K$73*(1-K123)^3+$K$74*3*(1-K123)^2*K123+$K$75*3*(1-K123)*K123^2+$K$76*K123^3,I123) -> 0.32 | N123: =IF(AND(J123,$M$69),$M$73*(1-K123)^3+$M$74*3*(1-K123)^2*K123+$M$75*3*(1-K123)*K123^2+$M$76*K123^3,1-M123^$G$28) -> 0.99999665 | O123: =1-M123^$G$28 -> 0.99999665 | P123: 0 | Q123: 0.32 | R123: =IF(Q123<$J$27,0,1) -> 0 | S123: 0 | T123: =IF(AND(R123,$T$69),$S$73*(1-S123)^3+$S$74*3*(1-S123)^2*S123+$S$75*3*(1-S123)*S123^2+$S$76*S123^3,Q123) -> 0.32 | U123: =IF(AND(R123,$T$69),$T$73*(1-S123)^3+$T$74*3*(1-S123)^2*S123+$T$75*3*(1-S123)*S123^2+$T$76*S123^3,1-T123^$K$28) -> 0.8888071408 | V123: =1-T123^$K$28 -> 0.8888071408 | W123: 0
B124: =B123+0.01 -> 0.33 | C124: 0 | D124: =IF(C124,D123+1/SUM($C$91:$C$191),0) -> 0 | E124: 0.33 | F124: 0.9985727075 | G124: 0.9985727075 | H124: =IF(E124<=E123,1,0) -> 0 | I124: =I123+0.01 -> 0.33 | J124: 0 | K124: =IF(J124,K123+1/SUM($J$91:$J$191),0) -> 0 | M124: 0.33 | N124: 0.9999952913 | O124: 0.9999952913 | P124: =IF(M124<=M123,1,0) -> 0 | Q124: =Q123+0.01 -> 0.33 | R124: 0 | S124: =IF(R124,S123+1/SUM($R$91:$R$191),0) -> 0 | T124: 0.33 | U124: 0.8820117864 | V124: 0.8820117864 | W124: =IF(T124<=T123,1,0) -> 0
B125: 0.34 | C125: 0 | D125: 0 | E125: 0.34 | F125: 0.9982973184 | G125: 0.9982973184 | H125: 0 | I125: 0.34 | J125: 0 | K125: 0 | M125: 0.34 | N125: 0.9999934484 | O125: 0.9999934484 | P125: 0 | Q125: 0.34 | R125: 0 | S125: 0 | T125: 0.34 | U125: 0.8750226732 | V125: 0.8750226732 | W125: 0
B126: 0.35 | C126: 0 | D126: 0 | E126: 0.35 | F126: 0.9979791565 | G126: 0.9979791565 | H126: 0 | I126: 0.35 | J126: 0 | K126: 0 | M126: 0.35 | N126: 0.9999909712 | O126: 0.9999909712 | P126: 0 | Q126: 0.35 | R126: 0 | S126: 0 | T126: 0.35 | U126: 0.8678402191 | V126: 0.8678402191 | W126: 0
B127: 0.36 | C127: 0 | D127: 0 | E127: 0.36 | F127: 0.9976130909 | G127: 0.9976130909 | H127: 0 | I127: 0.36 | J127: 0 | K127: 0 | M127: 0.36 | N127: 0.9999876692 | O127: 0.9999876692 | P127: 0 | Q127: 0.36 | R127: 0 | S127: 0 | T127: 0.36 | U127: 0.8604648289 | V127: 0.8604648289 | W127: 0
B128: 0.37 | C128: 0 | D128: 0 | E128: 0.37 | F128: 0.997193546 | G128: 0.997193546 | H128: 0 | I128: 0.37 | J128: 0 | K128: 0 | M128: 0.37 | N128: 0.9999833029 | O128: 0.9999833029 | P128: 0 | Q128: 0.37 | R128: 0 | S128: 0 | T128: 0.37 | U128: 0.8528968952 | V128: 0.8528968952 | W128: 0
B129: 0.38 | C129: 0 | D129: 0 | E129: 0.38 | F129: 0.9967144771 | G129: 0.9967144771 | H129: 0 | I129: 0.38 | J129: 0 | K129: 0 | M129: 0.38 | N129: 0.9999775724 | O129: 0.9999775724 | P129: 0 | Q129: 0.38 | R129: 0 | S129: 0 | T129: 0.38 | U129: 0.845136799 | V129: 0.845136799 | W129: 0
B130: 0.39 | C130: 0 | D130: 0 | E130: 0.39 | F130: 0.9961693451 | G130: 0.9961693451 | H130: 0 | I130: 0.39 | J130: 0 | K130: 0 | M130: 0.39 | N130: 0.9999701053 | O130: 0.9999701053 | P130: 0 | Q130: 0.39 | R130: 0 | S130: 0 | T130: 0.39 | U130: 0.8371849107 | V130: 0.8371849107 | W130: 0
B131: 0.4 | C131: 0 | D131: 0 | E131: 0.4 | F131: 0.9955510905 | G131: 0.9955510905 | H131: 0 | I131: 0.4 | J131: 0 | K131: 0 | M131: 0.4 | N131: 0.999960441 | O131: 0.999960441 | P131: 0 | Q131: 0.4 | R131: 0 | S131: 0 | T131: 0.4 | U131: 0.82904159 | V131: 0.82904159 | W131: 0
B132: 0.41 | C132: 0 | D132: 0 | E132: 0.41 | F132: 0.9948521073 | G132: 0.9948521073 | H132: 0 | I132: 0.41 | J132: 0 | K132: 0 | M132: 0.41 | N132: 0.9999480133 | O132: 0.9999480133 | P132: 0 | Q132: 0.41 | R132: 0 | S132: 0 | T132: 0.41 | U132: 0.8207071871 | V132: 0.8207071871 | W132: 0
B133: 0.42 | C133: 0 | D133: 0 | E133: 0.42 | F133: 0.9940642156 | G133: 0.9940642156 | H133: 0 | I133: 0.42 | J133: 0 | K133: 0 | M133: 0.42 | N133: 0.9999321296 | O133: 0.9999321296 | P133: 0 | Q133: 0.42 | R133: 0 | S133: 0 | T133: 0.42 | U133: 0.8121820429 | V133: 0.8121820429 | W133: 0
B134: 0.43 | C134: 0 | D134: 0 | E134: 0.43 | F134: 0.9931786339 | G134: 0.9931786339 | H134: 0 | I134: 0.43 | J134: 0 | K134: 0 | M134: 0.43 | N134: 0.999911947 | O134: 0.999911947 | P134: 0 | Q134: 0.43 | R134: 0 | S134: 0 | T134: 0.43 | U134: 0.8034664893 | V134: 0.8034664893 | W134: 0
B135: 0.44 | C135: 0 | D135: 0 | E135: 0.44 | F135: 0.9921859512 | G135: 0.9921859512 | H135: 0 | I135: 0.44 | J135: 0 | K135: 0 | M135: 0.44 | N135: 0.9998864445 | O135: 0.9998864445 | P135: 0 | Q135: 0.44 | R135: 1 | S135: 0.01754385965 | T135: 0.4482747633 | U135: 0.7866200721 | V135: 0.7870481468 | W135: 0
B136: 0.45 | C136: 0 | D136: 0 | E136: 0.45 | F136: 0.9910760974 | G136: 0.9910760974 | H136: 0 | I136: 0.45 | J136: 0 | K136: 0 | M136: 0.45 | N136: 0.9998543905 | O136: 0.9998543905 | P136: 0 | Q136: 0.45 | R136: 1 | S136: 0.0350877193 | T136: 0.4618670861 | U136: 0.7727100996 | V136: 0.77442604 | W136: 0
B137: 0.46 | C137: 0 | D137: 0 | E137: 0.46 | F137: 0.9898383144 | G137: 0.9898383144 | H137: 0 | I137: 0.46 | J137: 0 | K137: 0 | M137: 0.46 | N137: 0.999814306 | O137: 0.999814306 | P137: 0 | Q137: 0.46 | R137: 1 | S137: 0.05263157895 | T137: 0.4747279272 | U137: 0.7582977177 | V137: 0.7621615112 | W137: 0
B138: 0.47 | C138: 0 | D138: 0 | E138: 0.47 | F138: 0.9884611254 | G138: 0.9884611254 | H138: 0 | I138: 0.47 | J138: 0 | K138: 0 | M138: 0.47 | N138: 0.9997644221 | O138: 0.9997644221 | P138: 0 | Q138: 0.47 | R138: 1 | S138: 0.0701754386 | T138: 0.4868903687 | U138: 0.7434105617 | V138: 0.7502757939 | W138: 0
B139: 0.48 | C139: 0 | D139: 0 | E139: 0.48 | F139: 0.9869323044 | G139: 0.9869323044 | H139: 0 | I139: 0.48 | J139: 0 | K139: 0 | M139: 0.48 | N139: 0.999702631 | O139: 0.999702631 | P139: 0 | Q139: 0.48 | R139: 1 | S139: 0.08771929825 | T139: 0.4983874928 | U139: 0.7280762668 | V139: 0.7387840276 | W139: 0
B140: 0.49 | C140: 0 | D140: 0 | E140: 0.49 | F140: 0.9852388446 | G140: 0.9852388446 | H140: 0 | I140: 0.49 | J140: 0 | K140: 0 | M140: 0.49 | N140: 0.9996264309 | O140: 0.9996264309 | P140: 0 | Q140: 0.49 | R140: 1 | S140: 0.1052631579 | T140: 0.5092523815 | U140: 0.7123224683 | V140: 0.7276957292 | W140: 0
B141: 0.5 | C141: 0 | D141: 0 | E141: 0.5 | F141: 0.9833669267 | G141: 0.9833669267 | H141: 0 | I141: 0.5 | J141: 0 | K141: 0 | M141: 0.5 | N141: 0.9995328628 | O141: 0.9995328628 | P141: 0 | Q141: 0.5 | R141: 1 | S141: 0.1228070175 | T141: 0.5195181171 | U141: 0.6961768013 | V141: 0.7170152364 | W141: 0
B142: 0.51 | C142: 0 | D142: 0 | E142: 0.51 | F142: 0.9813018857 | G142: 0.9813018857 | H142: 0 | I142: 0.51 | J142: 0 | K142: 0 | M142: 0.51 | N142: 0.9994184386 | O142: 0.9994184386 | P142: 0 | Q142: 0.51 | R142: 1 | S142: 0.1403508772 | T142: 0.5292177817 | U142: 0.6796669012 | V142: 0.7067421222 | W142: 0
B143: 0.52 | C143: 0 | D143: 0 | E143: 0.52 | F143: 0.9790281784 | G143: 0.9790281784 | H143: 0 | I143: 0.52 | J143: 0 | K143: 0 | M143: 0.52 | N143: 0.9992790602 | O143: 0.9992790602 | P143: 0 | Q143: 0.52 | R143: 1 | S143: 0.1578947368 | T143: 0.5383844573 | U143: 0.6628204031 | V143: 0.6968715841 | W143: 0
B144: 0.53 | C144: 0 | D144: 0 | E144: 0.53 | F144: 0.9765293487 | G144: 0.9765293487 | H144: 0 | I144: 0.53 | J144: 0 | K144: 0 | M144: 0.53 | N144: 0.999109928 | O144: 0.999109928 | P144: 0 | Q144: 0.53 | R144: 1 | S144: 0.1754385965 | T144: 0.5470512263 | U144: 0.6456649424 | V144: 0.6873948065 | W144: 0
B145: 0.54 | C145: 0 | D145: 0 | E145: 0.54 | F145: 0.9737879939 | G145: 0.9737879939 | H145: 0 | I145: 0.54 | J145: 0 | K145: 0 | M145: 0.54 | N145: 0.998905438 | O145: 0.998905438 | P145: 0 | Q145: 0.54 | R145: 1 | S145: 0.1929824561 | T145: 0.5552511706 | U145: 0.6282281542 | V145: 0.6782992994 | W145: 0
B146: 0.55 | C146: 0 | D146: 0 | E146: 0.55 | F146: 0.9707857291 | G146: 0.9707857291 | H146: 0 | I146: 0.55 | J146: 0 | K146: 0 | M146: 0.55 | N146: 0.9986590656 | O146: 0.9986590656 | P146: 0 | Q146: 0.55 | R146: 1 | S146: 0.2105263158 | T146: 0.5630173725 | U146: 0.6105376738 | V146: 0.6695692129 | W146: 0
B147: 0.56 | C147: 0 | D147: 0 | E147: 0.56 | F147: 0.9675031517 | G147: 0.9675031517 | H147: 0 | I147: 0.56 | J147: 0 | K147: 0 | M147: 0.56 | N147: 0.9983632361 | O147: 0.9983632361 | P147: 0 | Q147: 0.56 | R147: 1 | S147: 0.2280701754 | T147: 0.5703829141 | U147: 0.5926211364 | V147: 0.6611856278 | W147: 0
B148: 0.57 | C148: 0 | D148: 0 | E148: 0.57 | F148: 0.9639198052 | G148: 0.9639198052 | H148: 0 | I148: 0.57 | J148: 0 | K148: 0 | M148: 0.57 | N148: 0.9980091796 | O148: 0.9980091796 | P148: 0 | Q148: 0.57 | R148: 1 | S148: 0.2456140351 | T148: 0.5773808776 | U148: 0.5745061773 | V148: 0.6531268242 | W148: 0
B149: 0.58 | C149: 0 | D149: 0 | E149: 0.58 | F149: 0.960014142 | G149: 0.960014142 | H149: 0 | I149: 0.58 | J149: 0 | K149: 0 | M149: 0.58 | N149: 0.9975867685 | O149: 0.9975867685 | P149: 0 | Q149: 0.58 | R149: 1 | S149: 0.2631578947 | T149: 0.584044345 | U149: 0.5562204316 | V149: 0.6453685271 | W149: 0
B150: 0.59 | C150: 0 | D150: 0 | E150: 0.59 | F150: 0.9557634864 | G150: 0.9557634864 | H150: 0 | I150: 0.59 | J150: 0 | K150: 0 | M150: 0.59 | N150: 0.997084337 | O150: 0.997084337 | P150: 0 | Q150: 0.59 | R150: 1 | S150: 0.2807017544 | T150: 0.5904063986 | U150: 0.5377915347 | V150: 0.6378841296 | W150: 0
B151: 0.6 | C151: 0 | D151: 0 | E151: 0.6 | F151: 0.9511439959 | G151: 0.9511439959 | H151: 0 | I151: 0.6 | J151: 0 | K151: 0 | M151: 0.6 | N151: 0.9964884802 | O151: 0.9964884802 | P151: 0 | Q151: 0.6 | R151: 1 | S151: 0.298245614 | T151: 0.5965001204 | U151: 0.5192471218 | V151: 0.6306448956 | W151: 0
B152: 0.61 | C152: 0 | D152: 0 | E152: 0.61 | F152: 0.946130623 | G152: 0.946130623 | H152: 0 | I152: 0.61 | J152: 0 | K152: 0 | M152: 0.61 | N152: 0.9957838308 | O152: 0.9957838308 | P152: 0 | Q152: 0.61 | R152: 1 | S152: 0.3157894737 | T152: 0.6023585927 | U152: 0.5006148281 | V152: 0.6236201392 | W152: 0
B153: 0.62 | C153: 0 | D153: 0 | E153: 0.62 | F153: 0.9406970755 | G153: 0.9406970755 | H153: 0 | I153: 0.62 | J153: 0 | K153: 0 | M153: 0.62 | N153: 0.9949528125 | O153: 0.9949528125 | P153: 0 | Q153: 0.62 | R153: 1 | S153: 0.3333333333 | T153: 0.6080148975 | U153: 0.4819222888 | V153: 0.6167773847 | W153: 0
B154: 0.63 | C154: 0 | D154: 0 | E154: 0.63 | F154: 0.934815777 | G154: 0.934815777 | H154: 0 | I154: 0.63 | J154: 0 | K154: 0 | M154: 0.63 | N154: 0.9939753656 | O154: 0.9939753656 | P154: 0 | Q154: 0.63 | R154: 1 | S154: 0.350877193 | T154: 0.6135021171 | U154: 0.4631971392 | V154: 0.6100825037 | W154: 0
B155: 0.64 | C155: =IF(B155<$B$27,0,1) -> 0 | D155: 0 | E155: =IF(AND(C155,$E$69),$D$73*(1-D155)^3+$D$74*3*(1-D155)^2*D155+$D$75*3*(1-D155)*D155^2+$D$76*D155^3,B155) -> 0.64 | F155: =IF(AND(C155,$E$69),$E$73*(1-D155)^3+$E$74*3*(1-D155)^2*D155+$E$75*3*(1-D155)*D155^2+$E$76*D155^3,1-E155^$C$28) -> 0.9284578259 | G155: =1-E155^$C$28 -> 0.9284578259 | H155: 0 | I155: 0.64 | J155: =IF(I155<$F$27,0,1) -> 0 | K155: 0 | M155: =IF(AND(J155,$M$69),$K$73*(1-K155)^3+$K$74*3*(1-K155)^2*K155+$K$75*3*(1-K155)*K155^2+$K$76*K155^3,I155) -> 0.64 | N155: =IF(AND(J155,$M$69),$M$73*(1-K155)^3+$M$74*3*(1-K155)^2*K155+$M$75*3*(1-K155)*K155^2+$M$76*K155^3,1-M155^$G$28) -> 0.9928286458 | O155: =1-M155^$G$28 -> 0.9928286458 | P155: 0 | Q155: 0.64 | R155: =IF(Q155<$J$27,0,1) -> 1 | S155: 0.3684210526 | T155: =IF(AND(R155,$T$69),$S$73*(1-S155)^3+$S$74*3*(1-S155)^2*S155+$S$75*3*(1-S155)*S155^2+$S$76*S155^3,Q155) -> 0.6188533335 | U155: =IF(AND(R155,$T$69),$T$73*(1-S155)^3+$T$74*3*(1-S155)^2*S155+$T$75*3*(1-S155)*S155^2+$T$76*S155^3,1-T155^$K$28) -> 0.4444670146 | V155: =1-T155^$K$28 -> 0.6034998328 | W155: 0
B156: =B155+0.01 -> 0.65 | C156: 0 | D156: =IF(C156,D155+1/SUM($C$91:$C$191),0) -> 0 | E156: 0.65 | F156: 0.9215929546 | G156: 0.9215929546 | H156: =IF(E156<=E155,1,0) -> 0 | I156: =I155+0.01 -> 0.65 | J156: 0 | K156: =IF(J156,K155+1/SUM($J$91:$J$191),0) -> 0 | M156: 0.65 | N156: 0.9914866906 | O156: 0.9914866906 | P156: =IF(M156<=M155,1,0) -> 0 | Q156: =Q155+0.01 -> 0.65 | R156: 1 | S156: =IF(R156,S155+1/SUM($R$91:$R$191),0) -> 0.3859649123 | T156: 0.6241016289 | U156: 0.4257595501 | V156: 0.5969922695 | W156: =IF(T156<=T155,1,0) -> 0
B157: 0.66 | C157: 0 | D157: 0 | E157: 0.66 | F157: 0.914189488 | G157: 0.914189488 | H157: 0 | I157: 0.66 | J157: 0 | K157: 0 | M157: 0.66 | N157: 0.9899200528 | O157: 0.9899200528 | P157: 0 | Q157: 0.66 | R157: 1 | S157: 0.4035087719 | T157: 0.6292800854 | U157: 0.407102381 | V157: 0.590521348 | W157: 0
B158: 0.67 | C158: 0 | D158: 0 | E158: 0.67 | F158: 0.9062143007 | G158: 0.9062143007 | H158: 0 | I158: 0.67 | J158: 0 | K158: 0 | M158: 0.67 | N158: 0.9880953976 | O158: 0.9880953976 | P158: 0 | Q158: 0.67 | R158: 1 | S158: 0.4210526316 | T158: 0.6344217853 | U158: 0.3885231426 | V158: 0.584047294 | W158: 0
B159: 0.68 | C159: 0 | D159: 0 | E159: 0.68 | F159: 0.8976327743 | G159: 0.8976327743 | H159: 0 | I159: 0.68 | J159: 0 | K159: 0 | M159: 0.68 | N159: 0.9859750595 | O159: 0.9859750595 | P159: 0 | Q159: 0.68 | R159: 1 | S159: 0.4385964912 | T159: 0.6395598105 | U159: 0.37004947 | V159: 0.5775290595 | W159: 0
B160: 0.69 | C160: 0 | D160: 0 | E160: 0.69 | F160: 0.888408754 | G160: 0.888408754 | H160: 0 | I160: 0.69 | J160: 0 | K160: 0 | M160: 0.69 | N160: 0.9835165578 | O160: 0.9835165578 | P160: 0 | Q160: 0.69 | R160: 1 | S160: 0.4561403509 | T160: 0.6447272434 | U160: 0.3517089986 | V160: 0.5709243372 | W160: 0
B161: 0.7 | C161: 0 | D161: 0 | E161: 0.7 | F161: 0.8785045046 | G161: 0.8785045046 | H161: 0 | I161: 0.7 | J161: 0 | K161: 0 | M161: 0.7 | N161: 0.9806720654 | O161: 0.9806720654 | P161: 0 | Q161: 0.7 | R161: 1 | S161: 0.4736842105 | T161: 0.649957166 | U161: 0.3335293635 | V161: 0.564189554 | W161: 0
B162: 0.71 | C162: 0 | D162: 0 | E162: 0.71 | F162: 0.8678806656 | G162: 0.8678806656 | H162: 0 | I162: 0.71 | J162: 0 | K162: 0 | M162: 0.71 | N162: 0.9773878281 | O162: 0.9773878281 | P162: 0 | Q162: 0.71 | R162: 1 | S162: 0.4912280702 | T162: 0.6552826604 | U162: 0.3155382001 | V162: 0.5572798452 | W162: 0
B163: 0.72 | C163: 0 | D163: 0 | E163: 0.72 | F163: 0.8564962057 | G163: 0.8564962057 | H163: 0 | I163: 0.72 | J163: 0 | K163: 0 | M163: 0.72 | N163: 0.973603531 | O163: 0.973603531 | P163: 0 | Q163: 0.72 | R163: 1 | S163: 0.5087719298 | T163: 0.6607368088 | U163: 0.2977631434 | V163: 0.5501490084 | W163: 0
B164: 0.73 | C164: 0 | D164: 0 | E164: 0.73 | F164: 0.8443083777 | G164: 0.8443083777 | H164: 0 | I164: 0.73 | J164: 0 | K164: 0 | M164: 0.73 | N164: 0.9692516074 | O164: 0.9692516074 | P164: 0 | Q164: 0.73 | R164: 1 | S164: 0.5263157895 | T164: 0.6663526934 | U164: 0.2802318288 | V164: 0.5427494363 | W164: 0
B165: 0.74 | C165: 0 | D165: 0 | E165: 0.74 | F165: 0.8312726713 | G165: 0.8312726713 | H165: 0 | I165: 0.74 | J165: 0 | K165: 0 | M165: 0.74 | N165: 0.9642564857 | O165: 0.9642564857 | P165: 0 | Q165: 0.74 | R165: 1 | S165: 0.5438596491 | T165: 0.6721633963 | U165: 0.2629718916 | V165: 0.5350320314 | W165: 0
B166: 0.75 | C166: 0 | D166: 0 | E166: 0.75 | F166: 0.8173427662 | G166: 0.8173427662 | H166: 0 | I166: 0.75 | J166: 0 | K166: 0 | M166: 0.75 | N166: 0.9585337711 | O166: 0.9585337711 | P166: 0 | Q166: 0.75 | R166: 1 | S166: 0.5614035088 | T166: 0.6782019997 | U166: 0.2460109669 | V166: 0.5269460996 | W166: 0
B167: 0.76 | C167: 0 | D167: 0 | E167: 0.76 | F167: 0.8024704848 | G167: 0.8024704848 | H167: 0 | I167: 0.76 | J167: 0 | K167: 0 | M167: 0.76 | N167: 0.9519893553 | O167: 0.9519893553 | P167: 0 | Q167: 0.76 | R167: 1 | S167: 0.5789473684 | T167: 0.6845015856 | U167: 0.22937669 | V167: 0.518439224 | W167: 0
B168: 0.77 | C168: 0 | D168: 0 | E168: 0.77 | F168: 0.7866057437 | G168: 0.7866057437 | H168: 0 | I168: 0.77 | J168: 0 | K168: 0 | M168: 0.77 | N168: 0.9445184512 | O168: 0.9445184512 | P168: 0 | Q168: 0.77 | R168: 1 | S168: 0.5964912281 | T168: 0.6910952363 | U168: 0.2130966961 | V168: 0.5094571198 | W168: 0
B169: 0.78 | C169: 0 | D169: 0 | E169: 0.78 | F169: 0.7696965047 | G169: 0.7696965047 | H169: 0 | I169: 0.78 | J169: 0 | K169: 0 | M169: 0.78 | N169: 0.9360045457 | O169: 0.9360045457 | P169: 0 | Q169: 0.78 | R169: 1 | S169: 0.6140350877 | T169: 0.6980160338 | U169: 0.1971986204 | V169: 0.4999434694 | W169: 0
B170: 0.79 | C170: 0 | D170: 0 | E170: 0.79 | F170: 0.751688726 | G170: 0.751688726 | H170: 0 | I170: 0.79 | J170: 0 | K170: 0 | M170: 0.79 | N170: 0.9263182656 | O170: 0.9263182656 | P170: 0 | Q170: 0.79 | R170: 1 | S170: 0.6315789474 | T170: 0.7052970604 | U170: 0.1817100983 | V170: 0.4898397376 | W170: 0
B171: 0.8 | C171: 0 | D171: 0 | E171: 0.8 | F171: 0.7325263113 | G171: 0.7325263113 | H171: 0 | I171: 0.8 | J171: 0 | K171: 0 | M171: 0.8 | N171: 0.9153161514 | O171: 0.9153161514 | P171: 0 | Q171: 0.8 | R171: 1 | S171: 0.649122807 | T171: 0.7129713981 | U171: 0.1666587649 | V171: 0.4790849681 | W171: 0
B172: 0.81 | C172: 0 | D172: 0 | E172: 0.81 | F172: 0.7121510602 | G172: 0.7121510602 | H172: 0 | I172: 0.81 | J172: 0 | K172: 0 | M172: 0.81 | N172: 0.9028393307 | O172: 0.9028393307 | P172: 0 | Q172: 0.81 | R172: 1 | S172: 0.6666666667 | T172: 0.7210721292 | U172: 0.1520722555 | V172: 0.4676155609 | W172: 0
B173: 0.82 | C173: 0 | D173: 0 | E173: 0.82 | F173: 0.6905026164 | G173: 0.6905026164 | H173: 0 | I173: 0.82 | J173: 0 | K173: 0 | M173: 0.82 | N173: 0.8887120869 | O173: 0.8887120869 | P173: 0 | Q173: 0.82 | R173: 1 | S173: 0.6842105263 | T173: 0.7296323356 | U173: 0.1379782053 | V173: 0.4553650301 | W173: 0
B174: 0.83 | C174: 0 | D174: 0 | E174: 0.83 | F174: 0.667518416 | G174: 0.667518416 | H174: 0 | I174: 0.83 | J174: 0 | K174: 0 | M174: 0.83 | N174: 0.8727403147 | O174: 0.8727403147 | P174: 0 | Q174: 0.83 | R174: 1 | S174: 0.701754386 | T174: 0.7386850997 | U174: 0.1244042496 | V174: 0.4422637436 | W174: 0
B175: 0.84 | C175: 0 | D175: 0 | E175: 0.84 | F175: 0.6431336353 | G175: 0.6431336353 | H175: 0 | I175: 0.84 | J175: 0 | K175: 0 | M175: 0.84 | N175: 0.8547098555 | O175: 0.8547098555 | P175: 0 | Q175: 0.84 | R175: 1 | S175: 0.7192982456 | T175: 0.7482635036 | U175: 0.1113780236 | V175: 0.4282386438 | W175: 0
B176: 0.85 | C176: 0 | D176: 0 | E176: 0.85 | F176: 0.617281138 | G176: 0.617281138 | H176: 0 | I176: 0.85 | J176: 0 | K176: 0 | M176: 0.85 | N176: 0.8343847056 | O176: 0.8343847056 | P176: 0 | Q176: 0.85 | R176: 1 | S176: 0.7368421053 | T176: 0.7584006293 | U176: 0.09892716246 | V176: 0.4132129497 | W176: 0
B177: 0.86 | C177: 1 | D177: 0.06666666667 | E177: 0.86 | F177: 0.5898914215 | G177: 0.5898914215 | H177: 0 | I177: 0.86 | J177: 0 | K177: 0 | M177: 0.86 | N177: 0.8115050881 | O177: 0.8115050881 | P177: 0 | Q177: 0.86 | R177: 1 | S177: 0.7543859649 | T177: 0.7691295591 | U177: 0.08707930153 | V177: 0.3971058414 | W177: 0
B178: 0.87 | C178: 1 | D178: 0.1333333333 | E178: 0.87 | F178: 0.5608925627 | G178: 0.5608925627 | H178: 0 | I178: 0.87 | J178: 1 | K178: 0.07142857143 | M178: 0.8798281178 | N178: 0.7495369357 | O178: 0.7574366887 | P178: 0 | Q178: 0.87 | R178: 1 | S178: 0.7719298246 | T178: 0.780483375 | U178: 0.07586207601 | V178: 0.3798321257 | W178: 0
B179: 0.88 | C179: 1 | D179: 0.2 | E179: 0.88 | F179: 0.5302101637 | G179: 0.5302101637 | H179: 0 | I179: 0.88 | J179: 1 | K179: 0.1428571429 | M179: 0.8908491037 | N179: 0.6895622795 | O179: 0.7216188625 | P179: 0 | Q179: 0.88 | R179: 1 | S179: 0.7894736842 | T179: 0.7924951593 | U179: 0.06530312114 | V179: 0.3613018845 | W179: 0
B180: 0.89 | C180: 1 | D180: 0.2666666667 | E180: 0.89 | F180: 0.4977672962 | G180: 0.4977672962 | H180: 0 | I180: 0.89 | J180: 1 | K180: 0.2142857143 | M180: 0.8985148518 | N180: 0.6221970142 | O180: 0.6939377983 | P180: 0 | Q180: 0.89 | R180: 1 | S180: 0.8070175439 | T180: 0.805197994 | U180: 0.05543007215 | V180: 0.3414201052 | W180: 0
B181: 0.9 | C181: 1 | D181: 0.3333333333 | E181: 0.9 | F181: 0.4634844459 | G181: 0.4634844459 | H181: 0 | I181: 0.9 | J181: 1 | K181: 0.2857142857 | M181: 0.9036596546 | N181: 0.5495621229 | O181: 0.6739801648 | P181: 0 | Q181: 0.9 | R181: 1 | S181: 0.8245614035 | T181: 0.8186249613 | U181: 0.04627056429 | V181: 0.3200862941 | W181: 0
B182: 0.91 | C182: 1 | D182: 0.4 | E182: 0.91 | F182: 0.427279456 | G182: 0.427279456 | H182: 0 | I182: 0.91 | J182: 1 | K182: 0.3571428571 | M182: 0.9071178043 | N182: 0.4737785882 | O182: 0.6599077429 | P182: 0 | Q182: 0.91 | R182: 1 | S182: 0.8421052632 | T182: 0.8328091434 | U182: 0.03785223279 | V182: 0.2971940722 | W182: 0
B183: 0.92 | C183: 1 | D183: 0.4666666667 | E183: 0.92 | F183: 0.3890674699 | G183: 0.3890674699 | H183: 0 | I183: 0.92 | J183: 1 | K183: 0.4285714286 | M183: 0.9097235933 | N183: 0.396967393 | O183: 0.6489412969 | P183: 0 | Q183: 0.92 | R183: 1 | S183: 0.8596491228 | T183: 0.8477836224 | U183: 0.0302027129 | V183: 0.2726307546 | W183: 0
B184: 0.93 | C184: 1 | D184: 0.5333333333 | E184: 0.93 | F184: 0.3487608745 | G184: 0.3487608745 | H184: 0 | I184: 0.93 | J184: 1 | K184: 0.5 | M184: 0.9123113139 | N184: 0.3212495204 | O184: 0.6377335139 | P184: 0 | Q184: 0.93 | R184: 1 | S184: 0.8771929825 | T184: 0.8635814804 | U184: 0.02334963984 | V184: 0.2462769126 | W184: 0
B185: 0.94 | C185: 1 | D185: 0.6 | E185: 0.94 | F185: 0.306269241 | G185: 0.306269241 | H185: 0 | I185: 0.94 | J185: 1 | K185: 0.5714285714 | M185: 0.9157152585 | N185: 0.2487459529 | O185: 0.6224949669 | P185: 0 | Q185: 0.94 | R185: 1 | S185: 0.8947368421 | T185: 0.8802357996 | U185: 0.01732064886 | V185: 0.2180059199 | W185: 0
B186: 0.95 | C186: 1 | D186: 0.6666666667 | E186: 0.95 | F186: 0.2614992669 | G186: 0.2614992669 | H186: 0 | I186: 0.95 | J186: 1 | K186: 0.6428571429 | M186: 0.9207697193 | N186: 0.1815776737 | O186: 0.5987899734 | P186: 0 | Q186: 0.95 | R186: 1 | S186: 0.9122807018 | T186: 0.8977796622 | U186: 0.0121433752 | V186: 0.1876834824 | W186: 0
B187: 0.96 | C187: =IF(B187<$B$27,0,1) -> 1 | D187: 0.7333333333 | E187: =IF(AND(C187,$E$69),$D$73*(1-D187)^3+$D$74*3*(1-D187)^2*D187+$D$75*3*(1-D187)*D187^2+$D$76*D187^3,B187) -> 0.96 | F187: =IF(AND(C187,$E$69),$E$73*(1-D187)^3+$E$74*3*(1-D187)^2*D187+$E$75*3*(1-D187)*D187^2+$E$76*D187^3,1-E187^$C$28) -> 0.2143547163 | G187: 0.2143547163 | H187: 0 | I187: 0.96 | J187: =IF(I187<$F$27,0,1) -> 1 | K187: 0.7142857143 | M187: 0.9283089888 | N187: =IF(AND(J187,$M$69),$M$73*(1-K187)^3+$M$74*3*(1-K187)^2*K187+$M$75*3*(1-K187)*K187^2+$M$76*K187^3,1-M187^$G$28) -> 0.1218656655 | O187: 0.560908772 | P187: 0 | Q187: 0.96 | R187: =IF(Q187<$J$27,0,1) -> 1 | S187: 0.9298245614 | T187: =IF(AND(R187,$T$69),$S$73*(1-S187)^3+$S$74*3*(1-S187)^2*S187+$S$75*3*(1-S187)*S187^2+$S$76*S187^3,Q187) -> 0.9162461502 | U187: =IF(AND(R187,$T$69),$T$73*(1-S187)^3+$T$74*3*(1-S187)^2*S187+$T$75*3*(1-S187)*S187^2+$T$76*S187^3,1-T187^$K$28) -> 0.0078454541 | V187: 0.1551671517 | W187: 0
B188: 0.97 | C188: =IF(B188<$B$27,0,1) -> 1 | D188: =IF(C188,D187+1/SUM($C$91:$C$191),0) -> 0.8 | E188: =IF(AND(C188,$E$69),$D$73*(1-D188)^3+$D$74*3*(1-D188)^2*D188+$D$75*3*(1-D188)*D188^2+$D$76*D188^3,B188) -> 0.97 | F188: =IF(AND(C188,$E$69),$E$73*(1-D188)^3+$E$74*3*(1-D188)^2*D188+$E$75*3*(1-D188)*D188^2+$E$76*D188^3,1-E188^$C$28) -> 0.1647363603 | G188: 0.1647363603 | H188: 0 | I188: 0.97 | J188: =IF(I188<$F$27,0,1) -> 1 | K188: =IF(J188,K187+1/SUM($J$91:$J$191),0) -> 0.7857142857 | M188: 0.9391673593 | N188: =IF(AND(J188,$M$69),$M$73*(1-K188)^3+$M$74*3*(1-K188)^2*K188+$M$75*3*(1-K188)*K188^2+$M$76*K188^3,1-M188^$G$28) -> 0.07173091112 | O188: 0.5006189101 | P188: 0 | Q188: 0.97 | R188: =IF(Q188<$J$27,0,1) -> 1 | S188: =IF(R188,S187+1/SUM($R$91:$R$191),0) -> 0.9473684211 | T188: =IF(AND(R188,$T$69),$S$73*(1-S188)^3+$S$74*3*(1-S188)^2*S188+$S$75*3*(1-S188)*S188^2+$S$76*S188^3,Q188) -> 0.9356683459 | U188: =IF(AND(R188,$T$69),$T$73*(1-S188)^3+$T$74*3*(1-S188)^2*S188+$T$75*3*(1-S188)*S188^2+$T$76*S188^3,1-T188^$K$28) -> 0.004454520789 | V188: 0.1203058238 | W188: 0
B189: 0.98 | C189: =IF(B189<$B$27,0,1) -> 1 | D189: =IF(C189,D188+1/SUM($C$91:$C$191),0) -> 0.8666666667 | E189: =IF(AND(C189,$E$69),$D$73*(1-D189)^3+$D$74*3*(1-D189)^2*D189+$D$75*3*(1-D189)*D189^2+$D$76*D189^3,B189) -> 0.98 | F189: =IF(AND(C189,$E$69),$E$73*(1-D189)^3+$E$74*3*(1-D189)^2*D189+$E$75*3*(1-D189)*D189^2+$E$76*D189^3,1-E189^$C$28) -> 0.1125419164 | G189: 0.1125419164 | H189: 0 | I189: 0.98 | J189: =IF(I189<$F$27,0,1) -> 1 | K189: =IF(J189,K188+1/SUM($J$91:$J$191),0) -> 0.8571428571 | M189: 0.9541791231 | N189: =IF(AND(J189,$M$69),$M$73*(1-K189)^3+$M$74*3*(1-K189)^2*K189+$M$75*3*(1-K189)*K189^2+$M$76*K189^3,1-M189^$G$28) -> 0.03329439352 | O189: 0.4048477867 | P189: 0 | Q189: 0.98 | R189: =IF(Q189<$J$27,0,1) -> 1 | S189: =IF(R189,S188+1/SUM($R$91:$R$191),0) -> 0.9649122807 | T189: =IF(AND(R189,$T$69),$S$73*(1-S189)^3+$S$74*3*(1-S189)^2*S189+$S$75*3*(1-S189)*S189^2+$S$76*S189^3,Q189) -> 0.9560793313 | U189: =IF(AND(R189,$T$69),$T$73*(1-S189)^3+$T$74*3*(1-S189)^2*S189+$T$75*3*(1-S189)*S189^2+$T$76*S189^3,1-T189^$K$28) -> 0.001998210509 | V189: 0.08293922081 | W189: 0
B190: 0.99 | C190: =IF(B190<$B$27,0,1) -> 1 | D190: =IF(C190,D189+1/SUM($C$91:$C$191),0) -> 0.9333333333 | E190: =IF(AND(C190,$E$69),$D$73*(1-D190)^3+$D$74*3*(1-D190)^2*D190+$D$75*3*(1-D190)*D190^2+$D$76*D190^3,B190) -> 0.99 | F190: =IF(AND(C190,$E$69),$E$73*(1-D190)^3+$E$74*3*(1-D190)^2*D190+$E$75*3*(1-D190)*D190^2+$E$76*D190^3,1-E190^$C$28) -> 0.05766598743 | G190: 0.05766598743 | H190: 0 | I190: 0.99 | J190: =IF(I190<$F$27,0,1) -> 1 | K190: =IF(J190,K189+1/SUM($J$91:$J$191),0) -> 0.9285714286 | M190: 0.9741785726 | N190: =IF(AND(J190,$M$69),$M$73*(1-K190)^3+$M$74*3*(1-K190)^2*K190+$M$75*3*(1-K190)*K190^2+$M$76*K190^3,1-M190^$G$28) -> 0.008677095524 | O190: 0.2513157607 | P190: 0 | Q190: 0.99 | R190: =IF(Q190<$J$27,0,1) -> 1 | S190: =IF(R190,S189+1/SUM($R$91:$R$191),0) -> 0.9824561404 | T190: =IF(AND(R190,$T$69),$S$73*(1-S190)^3+$S$74*3*(1-S190)^2*S190+$S$75*3*(1-S190)*S190^2+$S$76*S190^3,Q190) -> 0.9775121886 | U190: =IF(AND(R190,$T$69),$T$73*(1-S190)^3+$T$74*3*(1-S190)^2*S190+$T$75*3*(1-S190)*S190^2+$T$76*S190^3,1-T190^$K$28) -> 0.0005041585004 | V190: 0.04289735887 | W190: 0
B191: 1 | C191: =IF(B191<$B$27,0,1) -> 1 | D191: =IF(C191,D190+1/SUM($C$91:$C$191),0) -> 1 | E191: =IF(AND(C191,$E$69),$D$73*(1-D191)^3+$D$74*3*(1-D191)^2*D191+$D$75*3*(1-D191)*D191^2+$D$76*D191^3,B191) -> 1 | F191: =IF(AND(C191,$E$69),$E$73*(1-D191)^3+$E$74*3*(1-D191)^2*D191+$E$75*3*(1-D191)*D191^2+$E$76*D191^3,1-E191^$C$28) -> -3.996802889e-15 | G191: -3.996802889e-15 | H191: 0 | I191: 1 | J191: =IF(I191<$F$27,0,1) -> 1 | K191: =IF(J191,K190+1/SUM($J$91:$J$191),0) -> 1 | M191: 1 | N191: =IF(AND(J191,$M$69),$M$73*(1-K191)^3+$M$74*3*(1-K191)^2*K191+$M$75*3*(1-K191)*K191^2+$M$76*K191^3,1-M191^$G$28) -> 1.96351984e-31 | O191: 0 | P191: 0 | Q191: 1 | R191: =IF(Q191<$J$27,0,1) -> 1 | S191: =IF(R191,S190+1/SUM($R$91:$R$191),0) -> 1 | T191: =IF(AND(R191,$T$69),$S$73*(1-S191)^3+$S$74*3*(1-S191)^2*S191+$S$75*3*(1-S191)*S191^2+$S$76*S191^3,Q191) -> 1 | U191: =IF(AND(R191,$T$69),$T$73*(1-S191)^3+$T$74*3*(1-S191)^2*S191+$T$75*3*(1-S191)*S191^2+$T$76*S191^3,1-T191^$K$28) -> 3.99340111e-30 | V191: -3.774758284e-15 | W191: 0

Sheet Summary of Building Performance
B2: =IF(OR(projecttype='Assessment Details'!Z214,projecttype=""),"BREEAM International 2013 New Construction Pre-Assessment Estimator: Summary of Building Performance","BREEAM International Bespoke 2013 New Construction Pre-Assessment Estimator: Summary of Building Performance") -> BREEAM International 2013 New Construction Pre-Assessment Estimator: Summary of Building Performance
B3: =IF(AD_Mandatory_fields_text=AIS_statement09,"Warning: All Mandatory fields in the assessment details worksheet must be completed/defined to reveal the BREEAM rating and Summary of building performance.","") -> Warning: All Mandatory fields in the assessment details worksheet must be completed/defined to reveal the BREEAM rating and Summary of building performance.
B4: Overall Building Performance
D6: Building name | F6: =IF(ISBLANK(ADBN),"",ADBN) -> 
D8: Indicative BREEAM rating | F8: =IF(ISERROR(IF(AD_Mandatory_fields_text=AIS_statement09,"",IF(AIS_MinStand_rating_check=AIS_No,VLOOKUP(AIS_MinStandMin,AIS_MinSt_benchmarks,3,FALSE),IF(AIS_MinStand_rating_check=AIS_Yes,VLOOKUP(AIS_BREEAM_rating_level,AIS_MinSt_benchmarks,3,FALSE))))),AIS_statement49,IF(AD_Mandatory_fields_text=AIS_statement09,"",IF(AIS_MinStand_rating_check=AIS_No,VLOOKUP(AIS_MinStandMin,AIS_MinSt_benchmarks,3,FALSE),IF(AIS_MinStand_rating_check=AIS_Yes,VLOOKUP(AIS_BREEAM_rating_level,AIS_MinSt_benchmarks,3,FALSE)))) ) ->  | H8: =IF(ISERROR(IF(AIS_MinStand_rating_check=AIS_No,"Note: the BREEAM rating has been pegged back to the minimum standards level achieved","")),"",IF(AIS_MinStand_rating_check=AIS_No,"Note: the BREEAM rating has been limited to the minimum standards level achieved","")) ->  | U8: =IF(BP_BREEAMRating=AIS_statement49,"Note: BREEAM issue Tra03 requires building type definition in order to define the number of credits available for the transport section. Please define for Tra03 in the Assessment Issue Scoring worksheet.","") -> 
D10: Indicative total score | F10: =IF(ISERROR(IF(AD_Mandatory_fields_text=AIS_statement09,"",BP_Man_score+BP_HW_score_unmerged+BP_Energy_score+BP_Trans_score+BP_Water_score+BP_Materials_score+BP_Waste_Score+BP_LUE_score+BP_Pol_score_unmerged+BP_Innovation_score)),AIS_statement49,IF(AD_Mandatory_fields_text=AIS_statement09,"",BP_Man_score+BP_HW_score_unmerged+BP_Energy_score+BP_Trans_score+BP_Water_score+BP_Materials_score+BP_Waste_Score+BP_LUE_score+BP_Pol_score_unmerged+BP_Innovation_score)) -> 
D12: Min. standards level achieved | F12: =IF(AD_Mandatory_fields_text=AIS_statement09,"",VLOOKUP(AIS_MinStandMin,AIS_MinSt_benchmarks,2,FALSE)) -> 
B13: Building Performance by Environment Section
B15: Environmental Section | J15: No. credits available | L15: Indicative No. credits Achieved | N15: % credits achieved | P15: Section Weighting (User entry) | R15: Section Weighting (default) | T15: Section Weighting | V15: Section Score
H17: Management | J17: =Man01_credits+Man02_credits+Man03_credits+Man04_credits+Man05_credits -> 23 | L17: =IF(Score_option=_PSc2,Man_tot_simple,Man_tot_det) -> 0 | N17: =BP_11/BP_01 -> 0 | P17: 0.12 | R17: 0.12 | T17: =IF(AD_Weightings=AD_weight_Yes,BP_32u,BP_32d) -> 0.12 | V17: =BP_22*T17 -> 0
H19: Health & Wellbeing | J19: =Hea01_credits+Hea02_creditsNA+Hea03_credits+Hea04_credits+Hea05_credits+Hea06_creditsNA+Hea08_creditsNA -> 13 | L19: =IF(Score_option=_PSc2,Hea01_user+Hea02_user+Hea03_user+Hea04_user+Hea05_user+Hea06_user+Hea08_user,Hea01_tot+IF(Hea02_tot=AIS_NA,0,Hea02_tot)+IF(Hea03_tot=AIS_NA,0,Hea03_tot)+Hea04_tot+Hea05_tot+Hea06_tot+Hea08_tot) -> 0 | N19: =BP_12/BP_02 -> 0 | P19: 0.14 | R19: 0.14 | T19: =IF(AD_Weightings=AD_weight_Yes,BP_33+BP_33c,BP_33d+BP_33cd) -> 0.15 | V19: =IF(BP_02c=0,(T19*BP_23),((BP_33*BP_23)+(BP_33c*N21))) -> 0 | X19: Unmerged HW score | Y19: =BP_HW_score -> 0 | Z19: HW weighting | AB19: =IF(AD_Weightings=AD_weight_Yes,BP_33u,BP_33d) -> 0.14
H21: Health & Wellbeing - Hazards | J21: =IF(Hea07_Credits=AIS_NA,0,Hea07_Credits) -> 1 | L21: =IF(Hea07_Tot=AIS_NA,0,IF(Score_option=_PSc2,Hea07_user,Hea07_Tot)) -> 0 | N21: =IF(BP_02c=0,0,L21/BP_02c) -> 0 | P21: 0.01 | R21: 0.01 | Z21: Hazards weight | AB21: =IF(AD_Weightings=AD_weight_Yes,BP_33cu,BP_33cd) -> 0.01
H23: Energy | J23: =Ene01_credits+Ene02_credits+Ene03_credits+Ene04_credits+Ene08_credits+Ene05_creditsNA+Ene06_creditsNA+Ene09_creditsNA -> 23 | L23: =IF(Score_option=_PSc2,Ene_tot_simple,Ene_tot_det) -> 0 | N23: =BP_13/BP_03 -> 0 | P23: 0.19 | R23: 0.19 | T23: =IF(AD_Weightings=AD_weight_Yes,BP_34u,BP_34d) -> 0.19 | V23: =BP_24*T23 -> 0
H25: Transport | J25: =IF(ISERROR(Tra01_credits+Tra03_credits+Tra02_credits+Tra04_creditsNA+Tra05_creditsNA+Tra06_creditsNA),AIS_statement49, Tra01_credits+Tra03_credits+Tra05_creditsNA+Tra02_credits+Tra04_creditsNA+Tra06_creditsNA) -> See note | L25: =IF(Score_option=_PSc2,Tra_tot_simple,Tra_tot_det) -> 0 | N25: =IF(ISERROR(BP_14/BP_04),0,BP_14/BP_04) -> 0 | P25: 0.08 | R25: 0.08 | T25: =IF(AD_Weightings=AD_weight_Yes,BP_35u,BP_35d) -> 0.08 | V25: =BP_25*T25 -> 0
H27: Water | J27: =Wat01_credits+Wat02_credits+Wat03_creditsNA+Wat04_creditsNA -> 9 | L27: =IF(Score_option=_PSc2,Wat_tot_simple,Wat_tot_det) -> 0 | N27: =BP_15/BP_05 -> 0 | P27: 0.06 | R27: 0.06 | T27: =IF(AD_Weightings=AD_weight_Yes,BP_36u,BP_36d) -> 0.06 | V27: =BP_26*T27 -> 0
H29: Materials | J29: =Mat01_credits+Mat03_credits+Mat04_credits+Mat05_credits -> 11 | L29: =IF(Score_option=_PSc2,Mat_tot_simple,Mat_tot_det) -> 0 | N29: =BP_16/BP_06 -> 0 | P29: 0.125 | R29: 0.125 | T29: =IF(AD_Weightings=AD_weight_Yes,BP_38u,BP_38d) -> 0.125 | V29: =BP_27*T29 -> 0
H31: Waste | J31: =Wst01_credits+Wst02_credits+Wst03_credits+Wst04_creditsNA -> 5 | L31: =IF(Score_option=_PSc2,Wst_tot_simple,Wst_tot_det) -> 0 | N31: =BP_18/BP_07 -> 0 | P31: 0.075 | R31: 0.075 | T31: =IF(AD_Weightings=AD_weight_Yes,BP_39u,BP_39d) -> 0.075 | V31: =BP_28*T31 -> 0
H33: Land Use & Ecology | J33: =LE01_credits+LE02_credits+LE04_credits+LE05_credits+LE06_creditsNA -> 10 | L33: =IF(Score_option=_PSc2,Lue_tot_simple,Lue_tot_det) -> 0 | N33: =BP_19/BP_08 -> 0 | P33: 0.1 | R33: 0.1 | T33: =IF(AD_Weightings=AD_weight_Yes,BP_40u,BP_40d) -> 0.1 | V33: =BP_29*T33 -> 0
H35: Pollution | J35: =IF(ISERROR(Pol01_creditsNA+Pol02_credits+Pol04_credits+Pol05_creditsNA),AIS_statement49,Pol01_creditsNA+Pol02_credits+Pol04_credits+Pol05_creditsNA) -> 9 | L35: =IF(Score_option=_PSc2,Pol01_user+Pol02_user+Pol04_user+Pol05_user,IF(Pol01_tot=AIS_NA,0,Pol01_tot)+IF(Pol02_tot=AIS_NA,0,Pol02_tot)+Pol04_tot+IF(Pol05_tot=AIS_NA,0,Pol05_tot)) -> 0 | N35: =IF(ISERROR(BP_20/BP_09),0,BP_20/BP_09) -> 0 | P35: 0.064 | R35: 0.064 | T35: =IF(AD_Weightings=AD_weight_Yes,BP_41+BP_41a,BP_41d+BP_41ad) -> 0.1 | V35: =IF(BP_09b=0,(T35*BP_30),((BP_41*BP_30)+(BP_41a*N37))) -> 0 | X35: Unmerged pol score | Y35: =BP_Pollution_score -> 0 | Z35: Pollution weighting | AB35: =IF(AD_Weightings=AD_weight_Yes,BP_41u,BP_41d) -> 0.064
H37: Pollution - Surface water run-off | J37: =Pol03_credits -> 5 | L37: =IF(Score_option=_PSc2,Pol03_user,Pol03_tot) -> 0 | N37: =IF(ISERROR(L37/J37),0,L37/J37) -> 0 | P37: 0.036 | R37: 0.036 | Z37: Surface WR weighting | AB37: =IF(AD_Weightings=AD_weight_Yes,BP_41au,BP_41ad) -> 0.036
H39: Innovation | J39: =Inn01_credits -> 10 | L39: =IF(Score_option=_PSc2,Innov_user,Inn01_tot) -> 0 | N39: =BP_21/BP_10 -> 0 | P39: 0.1 | R39: 0.1 | T39: 0.1 | V39: =BP_31*T39 -> 0
AD276: =H17 -> Management | AF276: =T17 -> 0.12
AD277: =H19 -> Health & Wellbeing | AF277: =T19 -> 0.15
AD278: =H23 -> Energy | AF278: =T23 -> 0.19
AD279: =H25 -> Transport | AF279: =T25 -> 0.08
AD280: =H27 -> Water | AF280: =T27 -> 0.06
AD281: =H29 -> Materials | AF281: =T29 -> 0.125
AD282: =H31 -> Waste | AF282: =T31 -> 0.075
AD283: =H33 -> Land Use & Ecology | AF283: =T33 -> 0.1
AD284: =H35 -> Pollution | AF284: =T35 -> 0.1
AD285: =H39 -> Innovation | AF285: =T39 -> 0.1

Sheet Version Control
B2: =IF(OR(projecttype='Assessment Details'!Z214,projecttype=""),"BREEAM International 2013 New Construction Pre-Assessment Estimator: Version Control","BREEAM International Bespoke 2013 New Construction Pre-Assessment Estimator: Version Control") -> BREEAM International 2013 New Construction Pre-Assessment Estimator: Version Control
B4: Version | D4: Release Date | F4: Description of changes/additions made to the BREEAM Assessment Scoring and Reporting Tool
B6: Current Version
B8: 1 | D8: 2013-10-19 | F8: Initial Release Version of BREEAM International New Construction 2013 Pre-Assessment Tool
B10: Previous Versions
B13: N/A | D13: N/A | F13: N/A
